Workbook

Sheet AER only (hidden)
B1: Data in these columns used for data validation and database purposes.
AC4: FOR ELECTRICITY BUSINESSES ONLY
AC5: Feeder Types | AG5: TasNetworks (D) | AH5: MAIFI flag | AI5: Feeder Names
AC6: CBD | AD6: Urban | AE6: Short rural | AF6: long rural | AG6: EXTRA
B7: dms_TradingName_List | C7: dms_TradingNameFull_List | D7: dms_ABN_List | E7: dms_JurisdictionList | F7: dms_Sector_List | G7: dms_Segment_List | H7: dms_FormControl_List | I7: dms_RPT_List | J7: dms_RPTMonth_List | K7: dms_CRCPlength_List | L7: dms_FRCPlength_List | M7: dms_663_List | N7: dms_DeterminationRef_List | O7: dms_Addr1_List | P7: dms_Addr2_List | Q7: dms_Suburb_List | R7: dms_State_List | S7: dms_PostCode_List | T7: dms_PAddr1_List | U7: dms_PAddr2_List | V7: dms_PSuburb_List | W7: dms_PState_List | X7: dms_PPostCode_List | Y7: dms_ContactName1_List | Z7: dms_ContactPh1_List | AA7: dms_ContactEmail_List | AC7: dms_CBD_flag | AD7: dms_Urban_flag | AE7: dms_ShortRural_flag | AF7: dms_LongRural_flag | AG7: dms_FeederType_5_flag | AH7: dms_MAIFI_flag_List | AI7: dms_FeederName_1 | AJ7: dms_FeederName_2 | AK7: dms_FeederName_3 | AL7: dms_FeederName_4 | AM7: dms_FeederName_5
B8: ActewAGL Distribution | C8: ActewAGL Distribution | D8: 76670568688 | E8: ACT | F8: Electricity | G8: Distribution | H8: Revenue cap | I8: Financial | J8: June | K8: 5 | L8: 5 | M8: 5 | N8: 2014-19 Distribution Determination | O8: 40 Bunda Street | Q8: CANBERRA | R8: ACT | S8: 2600 | T8: GPO BOX 366 | V8: CANBERRA | W8: ACT | X8: 2601 | Y8: Robert Walker | Z8: 02 6248 3847 | AA8: robert.walker@actewagle.com.au | AC8: NO | AD8: YES | AE8: YES | AF8: NO | AG8: NO | AI8: CBD | AJ8: Urban | AK8: Short rural | AL8: Long rural | AN8: ActewAGL Distribution
B9: ActewAGL Distribution (Tx Assets) | C9: ActewAGL Distribution (Tx Assets) | D9: 76670568688 | E9: ACT | F9: Electricity | G9: Distribution | H9: Revenue cap | I9: Financial | J9: June | K9: 5 | L9: 5 | M9: 5 | N9: distribution determination | O9: 40 Bunda Street | Q9: CANBERRA | R9: ACT | S9: 2600 | T9: GPO BOX 366 | V9: CANBERRA | W9: ACT | X9: 2601 | Y9: Robert Walker | Z9: 02 6248 3847 | AA9: robert.walker@actewagle.com.au | AI9: CBD | AJ9: Urban | AK9: Short rural | AL9: Long rural | AN9: ActewAGL Distribution (Tx Assets)
B10: ActewAGL Gas | C10: ActewAGL Gas | D10: 76670568688 | E10: ACT | F10: Gas | G10: Distribution | H10: Weighted average price cap | I10: Financial | J10: June | K10: 5 | L10: 5 | M10: x | O10: 40 Bunda Street | Q10: CANBERRA | R10: ACT | S10: 2600 | T10: GPO BOX 366 | V10: CANBERRA | W10: ACT | X10: 2601 | Y10: Philip Deamer | Z10: 02 6248 3438 | AA10: GasAAReview@actewagl.com.au | AN10: ActewAGL Gas
B11: AGN (Albury) | C11: Australian Gas Networks Limited (reporting data for Albury) | D11: 19078551685 | E11: Vic | F11: Gas | G11: Distribution | H11: Weighted average price cap | I11: Calendar | J11: December | K11: 5 | L11: 5 | M11: x | O11: Level 10 | P11: 81 Flinders Street | Q11: ADELAIDE | R11: SA | S11: 5000 | Z11: 08 8227 1500 | AI11: CBD | AJ11: Urban | AK11: Short rural | AL11: Long rural | AN11: AGN (SA)
B12: AGN (SA) | C12: AGN (SA) | D12: 78551685 | E12: SA | F12: Gas | G12: Distribution | H12: Revenue cap | I12: Financial | J12: June | K12: 5 | L12: 5 | M12: 5 | N12: distribution determination | R12: SA | AN12: AGN (Victoria)
B13: AGN (Victoria) | C13: Australian Gas Networks Limited (reporting data for Victoria) | D13: 19078551685 | E13: Vic | F13: Gas | G13: Distribution | H13: Weighted average price cap | I13: Calendar | J13: December | K13: 5 | L13: 5 | M13: x | O13: Level 10 | P13: 81 Flinders Street | Q13: ADELAIDE | R13: SA | S13: 5000 | Z13: 08 8227 1500 | AN13: AGN (Albury)
B14: Amadeus | C14: APT Pipelines (NT) Pty Ltd | D14: 39009737393 | E14: NT | F14: Gas | G14: Transmission | H14: Weighted average price cap | I14: Financial | J14: June | K14: 5 | L14: 5 | M14: x | N14: n/a | O14: Level 19, HSBC Building | P14: 580 George Street | Q14: SYDNEY | R14: NSW | S14: 2000 | T14: Level 19, HSBC Building | U14: 580 George Street | V14: SYDNEY | W14: NSW | X14: 2000 | Y14: Alexandra Curran | Z14: 02 9275 0020 | AA14: alexandra.curran@apa.com.au | AN14: Amadeus
B15: APA GasNet | C15: APA GasNet Australia (Operations) Pty Ltd | D15: 65083009 | E15: Vic | F15: Gas | G15: Transmission | H15: Weighted average price cap | I15: Calendar | J15: December | K15: 5 | L15: 5 | M15: x | O15: Level 19, HSBC Building | P15: 580 George Street | Q15: SYDNEY | R15: NSW | S15: 2000 | T15: PO Box R41 | V15: ROYAL EXCHANGE | W15: NSW | X15: 1225 | Z15: 02 9693 0000 | AN15: APA GasNet
B16: Ausgrid | C16: Ausgrid | D16: 67505337385 | E16: NSW | F16: Electricity | G16: Distribution | H16: Revenue cap | I16: Financial | J16: June | K16: 5 | L16: 5 | M16: 5 | N16: 2014-19 Distribution Determination | O16: 570 George St | Q16: SYDNEY | R16: NSW | S16: 2000 | Y16: John Thomson | Z16: (02) 9269 2312 | AA16: john.thomson@ausgrid.com.au | AC16: YES | AD16: YES | AE16: YES | AF16: YES | AG16: NO | AI16: CBD | AJ16: Urban | AK16: Short rural | AL16: Long rural | AN16: Ausgrid
B17: Ausgrid (Tx Assets) | C17: Ausgrid (Tx Assets) | D17: 67505337385 | E17: NSW | F17: Electricity | G17: Distribution | H17: Revenue cap | I17: Financial | J17: June | K17: 5 | L17: 5 | M17: 5 | N17: distribution determination | R17: NSW | AI17: CBD | AJ17: Urban | AK17: Short rural | AL17: Long rural | AN17: Ausgrid (Tx Assets)
B18: AusNet (D) | C18: AusNet Services (D) | D18: 91064651118 | E18: Vic | F18: Electricity | G18: Distribution | H18: Revenue cap | I18: Calendar | J18: December | K18: 5 | L18: 5 | M18: 2 | N18: 2016-20 Distribution Determination | O18: Level 32 | P18: 2 Southbank Boulevard | Q18: SOUTHBANK | R18: Vic | S18: 3006 | T18: Locked Bag 14051 | V18: MELBOURNE CITY MAIL CENTRE | W18: VIC | X18: 8001 | Y18: Hannah Williams | Z18: 03 9683 4088 | AA18: hwilliams@powercor.com.au | AD18: YES | AE18: YES | AF18: YES | AG18: NO | AI18: CBD | AJ18: Urban | AK18: Short rural | AL18: Long rural | AN18: AusNet (D)
B19: AusNet (Gas) | C19: AusNet Gas Services | D19: 86015036 | E19: Vic | F19: Gas | G19: Distribution | H19: Weighted average price cap | I19: Calendar | J19: December | K19: 5 | L19: 5 | M19: X | AN19: AusNet (Gas)
B20: AusNet (T) | C20: AusNet (T) | D20: 78079798173 | E20: Vic | F20: Electricity | G20: Transmission | H20: Revenue cap | I20: Financial | J20: March | K20: 5 | L20: 5 | M20: 2 | N20: transmission determination | O20: Level 32 | P20: 2 Southbank Boulevard | Q20: SOUTHBANK | R20: Vic | S20: 3006 | T20: Locked Bag 14051 | V20: MELBOURNE CITY MAIL CENTRE | W20: Vic | X20: 8001 | Y20: Clare Thompson | Z20: 03 9695 6670 | AA20: clare.e.thompson@ausnetservices.com.au | AI20: CBD | AJ20: Urban | AK20: Short rural | AL20: Long rural | AN20: AusNet (T)
B21: Australian Distribution Co. | C21: Australian Distribution Co. | D21: 11222333444 | E21: - | F21: Electricity | G21: Distribution | H21: Revenue cap | I21: Financial | J21: June | K21: 5 | L21: 5 | M21: 2 | N21: distribution determination | O21: 123 Straight Street | Q21: SYDNEY | R21: NSW | S21: 2000 | T21: PO Box 123 | V21: SYDNEY | W21: NSW | X21: 2000 | Y21: Bob Smith | Z21: 02 1234 5678 | AA21: bob@auselec.net.au | AI21: CBD | AJ21: Urban | AK21: Short rural | AL21: Long rural | AN21: Australian Distribution Co.
B22: Australian Distribution Co. (Vic) | C22: Australian Distribution Co. (Victoria) | D22: 11222333444 | E22: - | F22: Electricity | G22: Distribution | H22: Revenue cap | I22: Calendar | J22: December | K22: 5 | L22: 5 | M22: 2 | N22: distribution determination | O22: 123 Straight Street | Q22: MELBOURNE | R22: Vic | S22: 3000 | T22: PO Box 123 | V22: MELBOURNE | W22: VIC | X22: 3000 | Y22: Bob Smith | Z22: 02 1234 5678 | AA22: bob@auselec.net.au | AI22: CBD | AJ22: Urban | AK22: Short rural | AL22: Long rural | AN22: Australian Distribution Co. (Vic)
B23: Australian Transmission Co. | C23: Australian Transmission Co. | D23: 11222333444 | E23: - | F23: Electricity | G23: Transmission | H23: Revenue cap | I23: Financial | J23: June | K23: 5 | L23: 5 | M23: 5 | N23: transmission determination | O23: 123 Straight Street | Q23: SYDNEY | R23: NSW | S23: 2000 | T23: PO Box 123 | V23: SYDNEY | W23: NSW | X23: 2000 | Y23: Bob Smith | Z23: 02 1234 5678 | AA23: bob@auselec.net.au | AI23: CBD | AJ23: Urban | AK23: Short rural | AL23: Long rural | AN23: Australian Transmission Co.
B24: CitiPower | C24: CitiPower | D24: 76064651056 | E24: Vic | F24: Electricity | G24: Distribution | H24: Revenue cap | I24: Calendar | J24: December | K24: 5 | L24: 5 | M24: 2 | N24: 2016-20 Distribution Determination | O24: 40 Market Street | Q24: MELBOURNE | R24: Vic | S24: 3000 | T24: Locked Bag 14090 | V24: MELBOURNE | W24: VIC | X24: 8001 | Y24: Hannah Williams | Z24: 03 9683 4088 | AA24: hwilliams@powercor.com.au | AC24: YES | AD24: YES | AE24: NO | AF24: NO | AG24: NO | AI24: CBD | AJ24: Urban | AK24: Short rural | AL24: Long rural | AN24: CitiPower
B25: Directlink | C25: Directlink | D25: 16779340889 | E25: Qld | F25: Electricity | G25: Transmission | H25: Revenue cap | I25: Financial | J25: June | K25: 9 | L25: 5 | M25: 5 | N25: transmission determination | R25: NSW | AI25: CBD | AJ25: Urban | AK25: Short rural | AL25: Long rural | AN25: Directlink
B26: ElectraNet | C26: ElectraNet | D26: 41094482416 | E26: SA | F26: Electricity | G26: Transmission | H26: Revenue cap | I26: Financial | J26: June | K26: 5 | L26: 5 | M26: 5 | N26: transmission determination | O26: 52-55 East Terrace | P26: Rymill Park | Q26: ADELAIDE | R26: SA | S26: 5000 | T26: PO Box 7096 | U26: Hutt Street Post Office | V26: ADELAIDE | W26: SA | X26: 5000 | Y26: Bill Jackson | Z26: 08 8404 7969 | AA26: jackson.bill@electranet.com.au | AI26: CBD | AJ26: Urban | AK26: Short rural | AL26: Long rural | AN26: ElectraNet
B27: Endeavour Energy | C27: Endeavour Energy | D27: 59253130878 | E27: NSW | F27: Electricity | G27: Distribution | H27: Revenue cap | I27: Financial | J27: June | K27: 5 | L27: 5 | M27: 5 | N27: 2014-19 Distribution Determination | O27: 51 Huntingwood Drive | Q27: HUNTINGWOOD | R27: NSW | S27: 2148 | T27: PO Box 811 | V27: SEVEN HILLS | W27: NSW | X27: 1730 | Y27: Jon Hocking | Z27: 02 9853 4386 / 0407 348 156 | AA27: Jon.Hocking@Endeavourenergy.com.au | AC27: NO | AD27: YES | AE27: YES | AF27: YES | AG27: NO | AI27: CBD | AJ27: Urban | AK27: Short rural | AL27: Long rural | AN27: Endeavour Energy
B28: Energex | C28: Energex | D28: 40078849055 | E28: Qld | F28: Electricity | G28: Distribution | H28: Revenue cap | I28: Financial | J28: June | K28: 5 | L28: 5 | M28: 5 | N28: 2015-20 Distribution Determination | O28: 26 Reddacliff Street | Q28: NEWSTEAD | R28: Qld | S28: 4006 | T28: 26 Reddacliff Street | V28: NEWSTEAD | W28: QLD | X28: 4006 | Y28: Nicola Roscoe | Z28: 07 3664 5891 | AA28: nicolaroscoe@energex.com.au | AC28: YES | AD28: YES | AE28: YES | AF28: NO | AG28: NO | AI28: CBD | AJ28: Urban | AK28: Short rural | AL28: Long rural | AN28: Energex
B29: Ergon Energy | C29: Ergon Energy | D29: 50087646062 | E29: Qld | F29: Electricity | G29: Distribution | H29: Revenue cap | I29: Financial | J29: June | K29: 5 | L29: 5 | M29: 5 | N29: 2015-20 Distribution Determination | O29: 22 Walker Street | Q29: TOWNSVILLE | R29: Qld | S29: 4810 | T29: Po Box 264 | V29: FORTITUDE VALLEY | W29: QLD | X29: 4006 | Y29: Jenny Doyle, Group Manager Regulatory Affairs | Z29: (07) 3851 6416 | AA29: jenny.doyle@ergon.com.au | AC29: NO | AD29: YES | AE29: YES | AF29: YES | AG29: NO | AI29: CBD | AJ29: Urban | AK29: Short rural | AL29: Long rural | AN29: Ergon Energy
B30: Essential Energy | C30: Essential Energy | D30: 37428185226 | E30: NSW | F30: Electricity | G30: Distribution | H30: Revenue cap | I30: Financial | J30: June | K30: 5 | L30: 5 | M30: 5 | N30: 2014-19 Distribution Determination | O30: 8 Buller Street | Q30: PORT MACQUARIE | R30: NSW | S30: 2444 | T30: PO Box 5730 | V30: PORT MACQUARIE | W30: NSW | X30: 2444 | Y30: Catherine Waddell | Z30: 02 6338 3553 | AA30: catherine.waddell@essentialenergy.com.au | AE30: YES | AF30: YES | AG30: NO | AI30: CBD | AJ30: Urban | AK30: Short rural | AL30: Long rural | AN30: Essential Energy
B31: Jemena Electricity | C31: Jemena Electricity | D31: 82064651083 | E31: Vic | F31: Electricity | G31: Distribution | H31: Revenue cap | I31: Calendar | J31: December | K31: 5 | L31: 5 | M31: 2 | N31: 2016-20 Distribution Determination | O31: Level 16 | P31: 567 Collins Street | Q31: MELBOURNE | R31: VIC | S31: 3000 | T31: PO Box 16182 | V31: MELBOURNE | W31: VIC | X31: 8001 | Y31: Robert McMillan | Z31: 03 9173 7000 | AA31: robert.mcmillan@jemena.com.au | AE31: YES | AF31: NO | AG31: NO | AI31: CBD | AJ31: Urban | AK31: Short rural | AL31: Long rural | AN31: Jemena Electricity
B32: JGN | C32: Jemena Gas Networks | E32: NSW | F32: Gas | G32: Distribution | H32: Weighted average price cap | I32: Financial | J32: June | K32: 5 | L32: 5 | AN32: JGN
B33: Multinet Gas | C33: Multinet Gas (DB No.1) Pty Ltd (ACN 086 026 986), Multinet Gas (DB No.2) Pty Ltd (ACN 086 230 122) | D33: 86026986 | E33: Vic | F33: Gas | G33: Distribution | H33: Weighted average price cap | I33: Calendar | J33: December | K33: 5 | L33: 5 | M33: x | AN33: Multinet Gas
B34: Murraylink | C34: Murraylink | D34: 79181207909 | E34: SA | F34: Electricity | G34: Transmission | H34: Revenue cap | I34: Financial | J34: June | K34: 5 | L34: 5 | M34: 5 | N34: transmission determination | AI34: CBD | AJ34: Urban | AK34: Short rural | AL34: Long rural | AN34: Murraylink
B35: Powercor Australia | C35: Powercor Australia | D35: 89064651109 | E35: Vic | F35: Electricity | G35: Distribution | H35: Revenue cap | I35: Calendar | J35: December | K35: 5 | L35: 5 | M35: 2 | N35: 2016-20 Distribution Determination | O35: 40 Market Street | Q35: MELBOURNE | R35: Vic | S35: 3000 | T35: Locked bag 14090 | V35: MELBOURNE | W35: VIC | X35: 8001 | Y35: Hannah Williams | Z35: 03 9683 4088 | AA35: hwilliams@powercor.com.au | AE35: YES | AF35: YES | AG35: NO | AI35: CBD | AJ35: Urban | AK35: Short rural | AL35: Long rural | AN35: Powercor Australia
B36: Powerlink | C36: Queensland Electricity Transmission Corporation Limited trading as Powerlink Queensland | D36: 82078849233 | E36: Qld | F36: Electricity | G36: Transmission | H36: Revenue cap | I36: Financial | J36: June | K36: 5 | L36: 5 | M36: 5 | N36: transmission determination | O36: 33 Harold St | Q36: VIRGINIA | R36: Qld | S36: 4014 | T36: PO Box 1193 | V36: VIRGINIA | W36: QLD | X36: 4014 | Y36: Jennifer Harris | Z36: 07 3860 2667 | AA36: jharris@powerlink.com.au | AI36: CBD | AJ36: Urban | AK36: Short rural | AL36: Long rural | AN36: Powerlink
B37: Roma to Brisbane Pipeline | C37: APT Petroleum Pipelines Limited t/a Roma to Brisbane Pipeline | D37: 009 737 393 | E37: Qld | F37: Gas | G37: Transmission | H37: Revenue cap | I37: Financial | J37: June | K37: 5 | L37: 5 | M37: x | N37: n/a | AI37: CBD | AJ37: Urban | AK37: Short rural | AL37: Long rural | AN37: Roma to Brisbane Pipeline
B38: SA Power Networks | C38: SA Power Networks | D38: 13332330749 | E38: SA | F38: Electricity | G38: Distribution | H38: Revenue cap | I38: Financial | J38: June | K38: 5 | L38: 5 | M38: 5 | N38: 2015-20 Distribution Determination | O38: 1 Anzac Highway | Q38: KESWICK | R38: SA | S38: 5035 | T38: GPO Box 77 | V38: ADELAIDE | W38: SA | X38: 5000 | Y38: Damien O'Connor | Z38: 08 8404 5066 | AA38: damien.oconnor@sapowernetworks.com.au | AE38: YES | AF38: YES | AG38: NO | AI38: CBD | AJ38: Urban | AK38: Short rural | AL38: Long rural | AN38: SA Power Networks
B39: TasNetworks (D) | C39: TasNetworks (D) | D39: 24167357299 | E39: Tas | F39: Electricity | G39: Distribution | H39: Revenue cap | I39: Financial | J39: June | K39: 5 | L39: 5 | M39: 5 | N39: distribution determination | O39: 1-7 Maria Street | Q39: LENAH VALLEY | R39: Tas | S39: 7008 | T39: PO Box 606 | V39: MOONAH | W39: Tas | X39: 7009 | Y39: John Sayers | Z39: 03 6271 6469 | AA39: john.sayers@tasnetworks.com.au | AE39: YES | AF39: YES | AG39: YES | AI39: Critical Infrastructure | AJ39: High density commercial | AK39: Urban | AL39: High density rural | AM39: Low density rural | AN39: TasNetworks (D)
B40: TasNetworks (T) | C40: TasNetworks (T) | D40: 24167357299 | E40: Tas | F40: Electricity | G40: Transmission | H40: Revenue cap | I40: Financial | J40: March | K40: 5 | L40: 5 | M40: 5 | N40: transmission determination | O40: 1-7 Maria Street | Q40: LENAH VALLEY | R40: Tas | S40: 7008 | T40: PO Box 606 | V40: MOONAH | W40: Tas | X40: 7009 | Y40: John Sayers | Z40: 03 6271 6469 | AA40: john.sayers@tasnetworks.com.au | AI40: CBD | AJ40: Urban | AK40: Short rural | AL40: Long rural | AN40: TasNetworks (T)
B41: TransGrid | C41: NSW Electricity Networks Operations Pty Ltd trading as TransGrid | D41: 609169959 | E41: NSW | F41: Electricity | G41: Transmission | H41: Revenue cap | I41: Financial | J41: June | K41: 5 | L41: 4 | M41: 5 | N41: transmission determination | O41: 180 Thomas Street | Q41: SYDNEY | R41: NSW | S41: 2000 | T41: PO Box A1000 | V41: SYDNEY SOUTH | W41: NSW | X41: 1235 | Y41: Garrie Chubb | Z41: 0408 210 221 | AA41: garrie.chubb@transgrid.com.au | AI41: CBD | AJ41: Urban | AK41: Short rural | AL41: Long rural | AN41: TransGrid
B42: United Energy | C42: United Energy | D42: 70064651029 | E42: Vic | F42: Electricity | G42: Distribution | H42: Revenue cap | I42: Calendar | J42: December | K42: 5 | L42: 5 | M42: 2 | N42: 2016-20 Distribution Determination | O42: Level 3 | P42: 6 Nexus Court | Q42: MULGRAVE | R42: Vic | S42: 3149 | T42: PO Box 449 | V42: MOUNT WAVERLEY | W42: VIC | X42: 3170 | Y42: Mathew Abraham | Z42: 03 8846 9758 | AA42: mathew.abraham@ue.com.au | AE42: YES | AF42: NO | AG42: NO | AI42: CBD | AJ42: Urban | AK42: Short rural | AL42: Long rural | AN42: United Energy
B43: Western Power (D) | C43: Western Power (D) | D43: 18540492861 | E43: WA | F43: Electricity | G43: Distribution | H43: Revenue cap | I43: Financial | J43: June | K43: 12 | L43: 4 | M43: x | N43: distribution determination | O43: 363 Wellington Street | Q43: PERTH | R43: WA | S43: 6000 | T43: GPO Box L921 | V43: PERTH | W43: WA | X43: 6842 | Y43: Judy Hunter | Z43: 08 9326 6239 | AA43: judy.hunter@westernpower.com.au | AE43: YES | AF43: YES | AG43: NO | AH43: NO | AI43: CBD | AJ43: Urban | AK43: Short rural | AL43: Long rural | AN43: Western Power (D)
B44: Western Power (T) | C44: Western Power (T) | D44: 18540492861 | E44: WA | F44: Electricity | G44: Transmission | H44: Revenue cap | I44: Financial | J44: June | K44: 12 | L44: 4 | M44: x | N44: transmission determination | O44: 363 Wellington Street | Q44: PERTH | R44: WA | S44: 6000 | T44: GPO Box L921 | V44: PERTH | W44: WA | X44: 6842 | Y44: Judy Hunter | Z44: 08 9326 6239 | AA44: judy.hunter@westernpower.com.au | AE44: YES | AF44: YES | AG44: NO | AI44: CBD | AJ44: Urban | AK44: Short rural | AL44: Long rural | AN44: Western Power (T)
W47: For EB & Reset RINs only
B48: The Reg Year Ending (dms_RYE) must be set to the last year of the regulatory period. For forecast data is is usually (FRCP_y5) for actual it is a single year (CRY). For historical actual data the RYE will need to be set manually in the business details sheet by setting the dms_Multiyear_flag to 1 and putting the correct value in 'dms_Specified_FinalYear. See cells C67:C68 | G48: =IF(dms_RPT="financial",VALUE(LEFT(CRCP_y1,4)-1)&"-"&TEXT(VALUE(RIGHT(CRCP_y1,2)-1),"00"),VALUE(LEFT(CRCP_y1,4)-1)) -> 2009-10 | N48: Drop down selector box for CA & Reset RINs. | O48: For CA & Reset RINs only | W48: for DNSP only | AI48: Reason for interruption | AJ48: dms_Reason_Interruption_Detailed | AK48: dms_Reason_Interruption
B49: dms_Model_List | C49: DELETE NR 'CRY' IF NOT AN ANNUAL RIN (EB, CA , ARR) | E49: dms_RYE_Formula_Result | N49: dms_0203_ProjectType | O49: dms_020303_01_UOM | P49: dms_020501_01_UOM | Q49: dms_020501_02_UOM | R49: dms_020501_03_UOM | S49: dms_020501_04_UOM | T49: dms_020603_01_UOM | U49: dms_040102_01_UOM | V49: dms_040102_04_UOM | W49: dms_030601_01_UOM | X49: dms_030601_02_UOM | Y49: dms_030701_01_UOM | Z49: dms_030702_01_UOM | AA49: dms_030703_01_UOM | AI49: Animal | AJ49: Animal impact | AK49: Animal
B50: ARR | C50: ANNUAL REPORTING STATEMENT | E50: =LEFT(dms_SingleYear_FinalYear_Result,2)&RIGHT(dms_SingleYear_FinalYear_Result,2) -> 2017 | F50: =LEFT(dms_SingleYear_FinalYear_Result,2)&RIGHT(dms_SingleYear_FinalYear_Result,2) | H50: Formula errors are OK | N50: New line on new route - single circuit | O50: Circuit line length in km | P50: 0's | Q50: 0's | R50: 0's | S50: 0's | T50: 0's | U50: 0's | V50: days | W50: minutes/customer | X50: minutes/customer | Y50: Customer / km | Z50: % | AA50: km | AJ50: Animal nesting/burrowing, etc and other | AK50: Asset failure
B51: CA | C51: CATEGORY ANALYSIS | E51: =LEFT(dms_SingleYear_FinalYear_Result,2)&RIGHT(dms_SingleYear_FinalYear_Result,2) -> 2017 | F51: =LEFT(dms_SingleYear_FinalYear_Result,2)&RIGHT(dms_SingleYear_FinalYear_Result,2) | H51: Formula errors are OK | N51: New line on new route - dual circuit | O51: Circuit line length in km | P51: 0's | Q51: 0's | R51: 0's | S51: 0's | T51: 0's | U51: 0's | V51: 0's | W51: minutes/customer | X51: minutes/customer | Y51: MWh/customer | Z51: Number of spans | AJ51: Other | AK51: Other
B52: CPI | C52: CPI | N52: New line on new route - other | O52: Circuit line length in km | P52: MVA added | Q52: MVA added | R52: MVA added | S52: MVA added | T52: 0's | U52: 0's | V52: $0s | W52: interruptions/customer | X52: interruptions/customer | Y52: kVA / customer | Z52: Number of spans | AI52: Asset failure | AJ52: LV | AK52: Overloads
B53: EB | C53: ECONOMIC BENCHMARKING | E53: =LEFT(dms_SingleYear_FinalYear_Result,2)&RIGHT(dms_SingleYear_FinalYear_Result,2) -> 2017 | F53: =LEFT(dms_SingleYear_FinalYear_Result,2)&RIGHT(dms_SingleYear_FinalYear_Result,2) | H53: Formula errors are OK | N53: Line rebuild over existing route - single circuit | O53: Circuit line length in km | P53: 0's | Q53: 0's | R53: 0's | S53: 0's | T53: 0's | U53: $0s | V53: 0's | W53: interruptions/customer | X53: interruptions/customer | Z53: Number of spans | AJ53: Distribution substation | AK53: Planned
B54: PTRM | C54: POST TAX REVENUE MODEL | E54: =LEFT(dms_MultiYear_FinalYear_Result,2)&RIGHT(dms_MultiYear_FinalYear_Result,2) -> 2020 | F54: =LEFT(dms_MultiYear_FinalYear_Result,2)&RIGHT(dms_MultiYear_FinalYear_Result,2) | N54: Line rebuild over existing route - dual circuit | O54: Number | P54: total spend $0s | Q54: total spend $0s | R54: total spend $0s | S54: total spend $0s | T54: (per cent) | Z54: Number of spans | AJ54: HV | AK54: Network business
B55: Reset | C55: REGULATORY REPORTING STATEMENT | E55: =LEFT(dms_MultiYear_FinalYear_Result,2)&RIGHT(dms_MultiYear_FinalYear_Result,2) -> 2020 | F55: =LEFT(dms_MultiYear_FinalYear_Result,2)&RIGHT(dms_MultiYear_FinalYear_Result,2) | H55: Formula errors are OK | N55: Reconductor - Single circuit | O55: Number | P55: net circuit km added | Q55: net circuit km added | R55: net circuit km added | S55: net circuit km added | Z55: Years | AJ55: Zone substation | AK55: Third party
B56: RFM | C56: ROLL FORWARD MODEL | E56: =LEFT(dms_CRCP_FinalYear_Result,2)&RIGHT(dms_CRCP_FinalYear_Result,2) -> 2017 | F56: =LEFT(dms_CRCP_FinalYear_Result,2)&RIGHT(dms_CRCP_FinalYear_Result,2) | N56: Reconductor - Dual circuit | O56: Number | P56: total spend $0s | Q56: total spend $0s | R56: total spend $0s | S56: total spend $0s | Z56: Years | AJ56: Subtransmission | AK56: Unknown
B57: WACC | C57: WEIGHTED AVERAGE COST OF CAPITAL | E57: =LEFT(dms_MultiYear_FinalYear_Result,2)&RIGHT(dms_MultiYear_FinalYear_Result,2) -> 2020 | F57: =LEFT(dms_MultiYear_FinalYear_Result,2)&RIGHT(dms_MultiYear_FinalYear_Result,2) | N57: Other | P57: net circuit km added | Q57: net circuit km added | R57: net circuit km added | S57: net circuit km added | Z57: Trees | AI57: Other | AJ57: insert description of 'other' | AK57: Vegetation
P58: total spend $0s | Q58: total spend $0s | R58: total spend $0s | S58: total spend $0s | Z58: Trees | AI58: Overloads | AJ58: - | AK58: Weather
B59: dms_DataQuality_List | P59: 0's | R59: $0s | Z59: Defects | AI59: Planned | AJ59: - | AK59: 2 - STPIS Exclusion (3.3)(a)
B60: Actual | P60: 0's | Z60: Defects | AI60: Network business | AJ60: Network error | AK60: 3 - STPIS Exclusion (3.3)(a)
B61: Estimate | P61: 0's | Z61: Spans | AJ61: Switching and protection error | AK61: 4 - STPIS Exclusion (3.3)(a)
B62: Consolidated | P62: $0s | Z62: km | AI62: Third party | AJ62: Fire | AK62: 5 - STPIS Exclusion (3.3)(a)
B63: Recast | Z63: Spans | AJ63: Other | AK63: 6 - STPIS Exclusion (3.3)(a)
B64: Public | AJ64: Dig-in | AK64: 7 - STPIS Exclusion (3.3)(a)
AJ65: Unauthorised access
B66: For all files either AER or business needs to be able to specify the type of submission | C66: For PTRM & RFM templates we must provide a choice in case they change their form of control - otherwise it is drawn from the business specific lookup table above. | O66: For PTRM files - this field set the text for the named range "DMS_Xfactor" which in all cases is simply the text "x factors" - this saves putting in each old gas PTRM file | W66: for TNSP only | AJ66: Vehicle impact
B67: dms_SourceList | C67: dms_FormControl_Choices | O67: DMS_Xfactor | W67: dms_030601_01_UOM | Y67: dms_030701_01_UOM | Z67: dms_030702_01_UOM | AI67: Unknown | AJ67: Unknown
B68: After appeal | C68: Revenue cap | O68: x factors | W68: % | Y68: Number of spans | Z68: km | AI68: Vegetation | AJ68: Blow-in/Fall-in - NSP responsibility
B69: Draft decision | C69: Revenue yield | W69: number | Y69: Years | Z69: % | AJ69: Grow-in - NSP responsibility
B70: Final decision | C70: Weighted average price cap | W70: number | Y70: Trees | Z70: km | AJ70: Blow-in/Fall-in - Other responsible party
B71: PTRM update 1 | W71: % | Y71: Defects | Z71: number | AJ71: Grow-in - Other responsible party
B72: PTRM update 2 | W72: number | Y72: Number of spans | AI72: Weather
B73: PTRM update 3 | W73: number | Y73: km | AI73: 2 - STPIS Exclusion (3.3)(a)
B74: PTRM update 4 | W74: % | Y74: km | AI74: 3 - STPIS Exclusion (3.3)(a)
B75: PTRM update 5 | W75: number | Y75: Number of spans | AI75: 4 - STPIS Exclusion (3.3)(a)
B76: PTRM update 6 | W76: number | AI76: 5 - STPIS Exclusion (3.3)(a)
B77: PTRM update 7 | W77: % | AI77: 6 - STPIS Exclusion (3.3)(a)
B78: Regulatory proposal | W78: number | AI78: 7 - STPIS Exclusion (3.3)(a)
B79: Reporting | W79: %
B80: Revised regulatory proposal | W80: number
W81: %
W82: number
B86: These are indeces and lookup values for various dates. All step from the value placed in FRCP_y1 on the business and other details worksheet | L86: These date tables are currently used in the Recast templates to provide column headings and conditional formatting
B87: dms_FRCPlength_Num_List | C87: dms_FinalYear_List | D87: dms_CRCPlength_Num_List | E87: dms_CFinalYear_List | F87: dms_FRCP_years | H87: dms_CRCP_years | J87: dms_CRCP_index | L87: CRY from input cell on business sheet | M87: CRY - financial | N87: dms_FinYears | O87: CRY calendar | P87: dms_CalYears
B88: 1 | C88: dms_FRCP_y1 | D88: 1 | E88: CRCP_y1 | F88: =FRCP_y1 -> 2015-16 | G88: dms_FRCP_y1 | H88: =IF(dms_RPT="financial",VALUE(LEFT(dms_FRCP_y1,4)-1)&"-"&TEXT(VALUE(MID(dms_FRCP_y1,3,2)),"00"),VALUE(LEFT(dms_FRCP_y1,4)-1)) -> 2014-15 | I88: dms_CRCP_yZ | J88: 1 | L88: =CRY -> 2016-17 | M88: =VALUE(LEFT(CRY,4))&"-"&TEXT(MID(CRY,3,2)+1,"00") -> 2016-17 | N88: dms_CRYf_y1 | O88: =VALUE(LEFT(CRY,4)+1) -> 2017 | P88: dms_CRYc_y1
B89: 2 | C89: dms_FRCP_y2 | D89: 2 | E89: CRCP_y2 | F89: =IF(dms_RPT="financial",VALUE(LEFT(dms_FRCP_y1,4)+1)&"-"&TEXT(VALUE(RIGHT(dms_FRCP_y1,2)+1),"00"),VALUE(LEFT(dms_FRCP_y1,4)+1)) -> 2016-17 | G89: dms_FRCP_y2 | H89: =IF(dms_RPT="financial",VALUE(LEFT(dms_CRCP_yZ,4)-1)&"-"&TEXT(VALUE(MID(dms_CRCP_yZ,3,2)),"00"),VALUE(LEFT(dms_CRCP_yZ,4)-1)) -> 2013-14 | I89: dms_CRCP_yY | J89: 2 | M89: =VALUE(LEFT(dms_CRYf_y1,4)+1)&"-"&TEXT(MID(dms_CRYf_y1,3,2)+2,"00") -> 2017-18 | N89: dms_CRYf_y2 | O89: =VALUE(LEFT(dms_CRYc_y1,4)+1) -> 2018 | P89: dms_CRYc_y2
B90: 3 | C90: dms_FRCP_y3 | D90: 3 | E90: CRCP_y3 | F90: =IF(dms_RPT="financial",VALUE(LEFT(dms_FRCP_y2,4)+1)&"-"&TEXT(VALUE(RIGHT(dms_FRCP_y2,2)+1),"00"),VALUE(LEFT(dms_FRCP_y2,4)+1)) -> 2017-18 | G90: dms_FRCP_y3 | H90: =IF(dms_RPT="financial",VALUE(LEFT(dms_CRCP_yY,4)-1)&"-"&TEXT(VALUE(MID(dms_CRCP_yY,3,2)),"00"),VALUE(LEFT(dms_CRCP_yY,4)-1)) -> 2012-13 | I90: dms_CRCP_yX | J90: 3 | M90: =VALUE(LEFT(dms_CRYf_y2,4)+1)&"-"&TEXT(MID(dms_CRYf_y2,3,2)+2,"00") -> 2018-19 | N90: dms_CRYf_y3 | O90: =VALUE(LEFT(dms_CRYc_y2,4)+1) -> 2019 | P90: dms_CRYc_y3
B91: 4 | C91: dms_FRCP_y4 | D91: 4 | E91: CRCP_y4 | F91: =IF(dms_RPT="financial",VALUE(LEFT(dms_FRCP_y3,4)+1)&"-"&TEXT(VALUE(RIGHT(dms_FRCP_y3,2)+1),"00"),VALUE(LEFT(dms_FRCP_y3,4)+1)) -> 2018-19 | G91: dms_FRCP_y4 | H91: =IF(dms_RPT="financial",VALUE(LEFT(dms_CRCP_yX,4)-1)&"-"&TEXT(VALUE(MID(dms_CRCP_yX,3,2)),"00"),VALUE(LEFT(dms_CRCP_yX,4)-1)) -> 2011-12 | I91: dms_CRCP_yW | J91: 4 | M91: =VALUE(LEFT(dms_CRYf_y3,4)+1)&"-"&TEXT(MID(dms_CRYf_y3,3,2)+2,"00") -> 2019-20 | N91: dms_CRYf_y4 | O91: =VALUE(LEFT(dms_CRYc_y3,4)+1) -> 2020 | P91: dms_CRYc_y4
B92: 5 | C92: dms_FRCP_y5 | D92: 5 | E92: CRCP_y5 | F92: =IF(dms_RPT="financial",VALUE(LEFT(dms_FRCP_y4,4)+1)&"-"&TEXT(VALUE(RIGHT(dms_FRCP_y4,2)+1),"00"),VALUE(LEFT(dms_FRCP_y4,4)+1)) -> 2019-20 | G92: dms_FRCP_y5 | H92: =IF(dms_RPT="financial",VALUE(LEFT(dms_CRCP_yW,4)-1)&"-"&TEXT(VALUE(MID(dms_CRCP_yW,3,2)),"00"),VALUE(LEFT(dms_CRCP_yW,4)-1)) -> 2010-11 | I92: dms_CRCP_yV | J92: 5 | M92: =VALUE(LEFT(dms_CRYf_y4,4)+1)&"-"&TEXT(MID(dms_CRYf_y4,3,2)+2,"00") -> 2020-21 | N92: dms_CRYf_y5 | O92: =VALUE(LEFT(dms_CRYc_y4,4)+1) -> 2021 | P92: dms_CRYc_y5
B93: 6 | C93: dms_FRCP_y6 | D93: 6 | E93: CRCP_y6 | F93: =IF(dms_RPT="financial",VALUE(LEFT(dms_FRCP_y5,4)+1)&"-"&TEXT(VALUE(RIGHT(dms_FRCP_y5,2)+1),"00"),VALUE(LEFT(dms_FRCP_y5,4)+1)) -> 2020-21 | G93: dms_FRCP_y6 | H93: =IF(dms_RPT="financial",VALUE(LEFT(dms_CRCP_yV,4)-1)&"-"&TEXT(VALUE(MID(dms_CRCP_yV,3,2)),"00"),VALUE(LEFT(dms_CRCP_yV,4)-1)) -> 2009-10 | I93: dms_CRCP_yU | J93: 6 | M93: =VALUE(LEFT(dms_CRYf_y5,4)+1)&"-"&TEXT(MID(dms_CRYf_y5,3,2)+2,"00") -> 2021-22 | N93: dms_CRYf_y6 | O93: =VALUE(LEFT(dms_CRYc_y5,4)+1) -> 2022 | P93: dms_CRYc_y6
B94: 7 | C94: dms_FRCP_y7 | D94: 7 | E94: CRCP_y7 | F94: =IF(dms_RPT="financial",VALUE(LEFT(dms_FRCP_y6,4)+1)&"-"&TEXT(VALUE(RIGHT(dms_FRCP_y6,2)+1),"00"),VALUE(LEFT(dms_FRCP_y6,4)+1)) -> 2021-22 | G94: dms_FRCP_y7 | H94: =IF(dms_RPT="financial",VALUE(LEFT(dms_CRCP_yU,4)-1)&"-"&TEXT(VALUE(MID(dms_CRCP_yU,3,2)),"00"),VALUE(LEFT(dms_CRCP_yU,4)-1)) -> 2008-09 | I94: dms_CRCP_yT | J94: 7 | M94: =VALUE(LEFT(dms_CRYf_y6,4)+1)&"-"&TEXT(MID(dms_CRYf_y6,3,2)+2,"00") -> 2022-23 | N94: dms_CRYf_y7 | O94: =VALUE(LEFT(dms_CRYc_y6,4)+1) -> 2023 | P94: dms_CRYc_y7
B95: 8 | C95: dms_FRCP_y8 | D95: 8 | E95: CRCP_y8 | F95: =IF(dms_RPT="financial",VALUE(LEFT(dms_FRCP_y7,4)+1)&"-"&TEXT(VALUE(RIGHT(dms_FRCP_y7,2)+1),"00"),VALUE(LEFT(dms_FRCP_y7,4)+1)) -> 2022-23 | G95: dms_FRCP_y8 | H95: =IF(dms_RPT="financial",VALUE(LEFT(dms_CRCP_yT,4)-1)&"-"&TEXT(VALUE(MID(dms_CRCP_yT,3,2)),"00"),VALUE(LEFT(dms_CRCP_yT,4)-1)) -> 2007-08 | I95: dms_CRCP_yS | J95: 8 | M95: =VALUE(LEFT(dms_CRYf_y7,4)+1)&"-"&TEXT(MID(dms_CRYf_y7,3,2)+2,"00") -> 2023-24 | N95: dms_CRYf_y8 | O95: =VALUE(LEFT(dms_CRYc_y7,4)+1) -> 2024 | P95: dms_CRYc_y8
B96: 9 | C96: dms_FRCP_y9 | D96: 9 | E96: CRCP_y9 | F96: =IF(dms_RPT="financial",VALUE(LEFT(dms_FRCP_y8,4)+1)&"-"&TEXT(VALUE(RIGHT(dms_FRCP_y8,2)+1),"00"),VALUE(LEFT(dms_FRCP_y8,4)+1)) -> 2023-24 | G96: dms_FRCP_y9 | H96: =IF(dms_RPT="financial",VALUE(LEFT(dms_CRCP_yS,4)-1)&"-"&TEXT(VALUE(MID(dms_CRCP_yS,3,2)),"00"),VALUE(LEFT(dms_CRCP_yS,4)-1)) -> 2006-07 | I96: dms_CRCP_yR | J96: 9 | M96: =VALUE(LEFT(dms_CRYf_y8,4)+1)&"-"&TEXT(MID(dms_CRYf_y8,3,2)+2,"00") -> 2024-25 | N96: dms_CRYf_y9 | O96: =VALUE(LEFT(dms_CRYc_y8,4)+1) -> 2025 | P96: dms_CRYc_y9
B97: 10 | C97: dms_FRCP_y10 | D97: 10 | E97: CRCP_y10 | F97: =IF(dms_RPT="financial",VALUE(LEFT(dms_FRCP_y9,4)+1)&"-"&TEXT(VALUE(RIGHT(dms_FRCP_y9,2)+1),"00"),VALUE(LEFT(dms_FRCP_y9,4)+1)) -> 2024-25 | G97: dms_FRCP_y10 | H97: =IF(dms_RPT="financial",VALUE(LEFT(dms_CRCP_yR,4)-1)&"-"&TEXT(VALUE(MID(dms_CRCP_yR,3,2)),"00"),VALUE(LEFT(dms_CRCP_yR,4)-1)) -> 2005-06 | I97: dms_CRCP_yQ | J97: 10 | M97: =VALUE(LEFT(dms_CRYf_y9,4)+1)&"-"&TEXT(MID(dms_CRYf_y9,3,2)+2,"00") -> 2025-26 | N97: dms_CRYf_y10 | O97: =VALUE(LEFT(dms_CRYc_y9,4)+1) -> 2026 | P97: dms_CRYc_y10
B98: 11 | C98: dms_FRCP_y11 | D98: 11 | E98: CRCP_y11 | F98: =IF(dms_RPT="financial",VALUE(LEFT(dms_FRCP_y10,4)+1)&"-"&TEXT(VALUE(RIGHT(dms_FRCP_y10,2)+1),"00"),VALUE(LEFT(dms_FRCP_y10,4)+1)) -> 2025-26 | G98: dms_FRCP_y11 | H98: =IF(dms_RPT="financial",VALUE(LEFT(dms_CRCP_yQ,4)-1)&"-"&TEXT(VALUE(MID(dms_CRCP_yQ,3,2)),"00"),VALUE(LEFT(dms_CRCP_yQ,4)-1)) -> 2004-05 | I98: dms_CRCP_yP | J98: 11 | M98: =VALUE(LEFT(dms_CRYf_y10,4)+1)&"-"&TEXT(MID(dms_CRYf_y10,3,2)+2,"00") -> 2026-27 | N98: dms_CRYf_y11 | O98: =VALUE(LEFT(dms_CRYc_y10,4)+1) -> 2027 | P98: dms_CRYc_y11
B99: 12 | C99: dms_FRCP_y12 | D99: 12 | E99: CRCP_y12 | F99: =IF(dms_RPT="financial",VALUE(LEFT(dms_FRCP_y11,4)+1)&"-"&TEXT(VALUE(RIGHT(dms_FRCP_y11,2)+1),"00"),VALUE(LEFT(dms_FRCP_y11,4)+1)) -> 2026-27 | G99: dms_FRCP_y12 | H99: =IF(dms_RPT="financial",VALUE(LEFT(dms_CRCP_yP,4)-1)&"-"&TEXT(VALUE(MID(dms_CRCP_yP,3,2)),"00"),VALUE(LEFT(dms_CRCP_yP,4)-1)) -> 2003-04 | I99: dms_CRCP_yO | J99: 12 | M99: =VALUE(LEFT(dms_CRYf_y11,4)+1)&"-"&TEXT(MID(dms_CRYf_y11,3,2)+2,"00") -> 2027-28 | N99: dms_CRYf_y12 | O99: =VALUE(LEFT(dms_CRYc_y11,4)+1) -> 2028 | P99: dms_CRYc_y12
B100: 13 | C100: dms_FRCP_y13 | D100: 13 | E100: CRCP_y13 | F100: =IF(dms_RPT="financial",VALUE(LEFT(dms_FRCP_y12,4)+1)&"-"&TEXT(VALUE(RIGHT(dms_FRCP_y12,2)+1),"00"),VALUE(LEFT(dms_FRCP_y12,4)+1)) -> 2027-28 | G100: dms_FRCP_y13 | H100: =IF(dms_RPT="financial",VALUE(LEFT(dms_CRCP_yO,4)-1)&"-"&TEXT(VALUE(MID(dms_CRCP_yO,3,2)),"00"),VALUE(LEFT(dms_CRCP_yO,4)-1)) -> 2002-03 | I100: dms_CRCP_yN | J100: 13 | M100: =VALUE(LEFT(dms_CRYf_y12,4)+1)&"-"&TEXT(MID(dms_CRYf_y12,3,2)+2,"00") -> 2028-29 | N100: dms_CRYf_y13 | O100: =VALUE(LEFT(dms_CRYc_y12,4)+1) -> 2029 | P100: dms_CRYc_y13
B101: 14 | C101: dms_FRCP_y14 | D101: 14 | E101: CRCP_y14 | F101: =IF(dms_RPT="financial",VALUE(LEFT(dms_FRCP_y13,4)+1)&"-"&TEXT(VALUE(RIGHT(dms_FRCP_y13,2)+1),"00"),VALUE(LEFT(dms_FRCP_y13,4)+1)) -> 2028-29 | G101: dms_FRCP_y14 | H101: =IF(dms_RPT="financial",VALUE(LEFT(dms_CRCP_yN,4)-1)&"-"&TEXT(VALUE(MID(dms_CRCP_yN,3,2)),"00"),VALUE(LEFT(dms_CRCP_yN,4)-1)) -> 2001-02 | I101: dms_CRCP_yM | J101: 14 | M101: =VALUE(LEFT(dms_CRYf_y13,4)+1)&"-"&TEXT(MID(dms_CRYf_y13,3,2)+2,"00") -> 2029-30 | N101: dms_CRYf_y14 | O101: =VALUE(LEFT(dms_CRYc_y13,4)+1) -> 2030 | P101: dms_CRYc_y14
B102: 15 | C102: dms_FRCP_y15 | D102: 15 | E102: CRCP_y15 | F102: =IF(dms_RPT="financial",VALUE(LEFT(dms_FRCP_y14,4)+1)&"-"&TEXT(VALUE(RIGHT(dms_FRCP_y14,2)+1),"00"),VALUE(LEFT(dms_FRCP_y14,4)+1)) -> 2029-30 | G102: dms_FRCP_y15 | H102: =IF(dms_RPT="financial",VALUE(LEFT(dms_CRCP_yM,4)-1)&"-"&TEXT(VALUE(MID(dms_CRCP_yM,3,2)),"00"),VALUE(LEFT(dms_CRCP_yM,4)-1)) -> 2000-01 | I102: dms_CRCP_yL | J102: 15 | M102: =VALUE(LEFT(dms_CRYf_y14,4)+1)&"-"&TEXT(MID(dms_CRYf_y14,3,2)+2,"00") -> 2030-31 | N102: dms_CRYf_y15 | O102: =VALUE(LEFT(dms_CRYc_y14,4)+1) -> 2031 | P102: dms_CRYc_y15
M103: =VALUE(LEFT(dms_CRYf_y15,4)+1)&"-"&TEXT(MID(dms_CRYf_y15,3,2)+2,"00") -> 2031-32 | N103: dms_CRYf_y16 | O103: =VALUE(LEFT(dms_CRYc_y15,4)+1) -> 2032 | P103: dms_CRYc_y16
B104: These are drop down lists for businesses to select the correct FRCP_y1 on the business and other details worksheet. This also populates the column headings in the worksheets | M104: =VALUE(LEFT(dms_CRYf_y16,4)+1)&"-"&TEXT(MID(dms_CRYf_y16,3,2)+2,"00") -> 2032-33 | N104: dms_CRYf_y17 | O104: =VALUE(LEFT(dms_CRYc_y16,4)+1) -> 2033 | P104: dms_CRYc_y17
B105: dms_RCP_fyear_list | C105: dms_CRY_ListF | D105: dms_CRY_ListC | E105: dms_RCP_cyear_list | F105: dms_FRCP_fyear_list | G105: dms_FRCP_ListF | H105: dms_FRCP_ListC | I105: dms_FRCP_cyear_list | M105: =VALUE(LEFT(dms_CRYf_y17,4)+1)&"-"&TEXT(MID(dms_CRYf_y17,3,2)+2,"00") -> 2033-34 | N105: dms_CRYf_y18 | O105: =VALUE(LEFT(dms_CRYc_y17,4)+1) -> 2034 | P105: dms_CRYc_y18
B106: dms_fy1 | C106: 2006-07 | D106: 2007 | E106: dms_cy1 | F106: dms_frcp_fy1 | G106: 2016-17 | H106: 2017 | I106: dms_crcp_cy1 | M106: =VALUE(LEFT(dms_CRYf_y18,4)+1)&"-"&TEXT(MID(dms_CRYf_y18,3,2)+2,"00") -> 2034-35 | N106: dms_CRYf_y19 | O106: =VALUE(LEFT(dms_CRYc_y18,4)+1) -> 2035 | P106: dms_CRYc_y19
B107: dms_fy2 | C107: 2007-08 | D107: 2008 | E107: dms_cy2 | F107: dms_frcp_fy2 | G107: 2017-18 | H107: 2018 | I107: dms_crcp_cy2 | M107: =VALUE(LEFT(dms_CRYf_y19,4)+1)&"-"&TEXT(MID(dms_CRYf_y19,3,2)+2,"00") -> 2035-36 | N107: dms_CRYf_y20 | O107: =VALUE(LEFT(dms_CRYc_y19,4)+1) -> 2036 | P107: dms_CRYc_y20
B108: dms_fy3 | C108: 2008-09 | D108: 2009 | E108: dms_cy3 | F108: dms_frcp_fy3 | G108: 2018-19 | H108: 2019 | I108: dms_crcp_cy3
B109: dms_fy4 | C109: 2009-10 | D109: 2010 | E109: dms_cy4 | F109: dms_frcp_fy4 | G109: 2019-20 | H109: 2020 | I109: dms_crcp_cy4
B110: dms_fy5 | C110: 2010-11 | D110: 2011 | E110: dms_cy5 | F110: dms_frcp_fy5 | G110: 2020-21 | H110: 2021 | I110: dms_crcp_cy5
B111: dms_fy6 | C111: 2011-12 | D111: 2012 | E111: dms_cy6 | F111: dms_frcp_fy6 | G111: 2021-22 | H111: 2022 | I111: dms_crcp_cy6
B112: dms_fy7 | C112: 2012-13 | D112: 2013 | E112: dms_cy7 | F112: dms_frcp_fy7 | G112: 2022-23 | H112: 2023 | I112: dms_crcp_cy7
B113: dms_fy8 | C113: 2013-14 | D113: 2014 | E113: dms_cy8 | F113: dms_frcp_fy8 | G113: 2023-24 | H113: 2024 | I113: dms_crcp_cy8
B114: dms_fy9 | C114: 2014-15 | D114: 2015 | E114: dms_cy9 | F114: dms_frcp_fy9 | G114: 2024-25 | H114: 2025 | I114: dms_crcp_cy9
B115: dms_fy10 | C115: 2015-16 | D115: 2016 | E115: dms_cy10 | F115: dms_frcp_fy10 | G115: 2025-26 | H115: 2026 | I115: dms_crcp_cy10
B116: dms_fy11 | C116: 2016-17 | D116: 2017 | E116: dms_cy11 | F116: dms_frcp_fy11 | G116: 2026-27 | H116: 2027 | I116: dms_crcp_cy11
B117: dms_fy12 | C117: 2017-18 | D117: 2018 | E117: dms_cy12 | F117: dms_frcp_fy12 | G117: 2027-28 | H117: 2028 | I117: dms_crcp_cy12
B118: dms_fy13 | C118: 2018-19 | D118: 2019 | E118: dms_cy13 | F118: dms_frcp_fy13 | G118: 2028-29 | H118: 2029 | I118: dms_crcp_cy13
B119: dms_fy14 | C119: 2019-20 | D119: 2020 | E119: dms_cy14 | F119: dms_frcp_fy14 | G119: 2029-30 | H119: 2030 | I119: dms_crcp_cy14
B120: dms_fy15 | C120: 2019-20 | D120: 2020 | E120: dms_cy15 | F120: dms_frcp_fy15 | G120: 2030-31 | H120: 2031 | I120: dms_crcp_cy15
B121: dms_fy16 | C121: 2020-21 | D121: 2021 | E121: dms_cy16
B122: dms_fy17 | C122: 2021-22 | D122: 2022 | E122: dms_cy17
B123: dms_fy18 | C123: 2022-23 | D123: 2023 | E123: dms_cy18
B124: dms_fy19 | C124: 2023-24 | D124: 2024 | E124: dms_cy19
B125: dms_fy20 | C125: 2024-25 | D125: 2025 | E125: dms_cy20

Sheet Instructions
B2: Transmission Network Service Provider
B3: Historical Reporting RIN Template
C4: This template is to be used by Powerlink to fulfil its reporting obligations to the AER.
C5: INSTRUCTIONS
C6: Complete the Business & other details worksheet before entering data or values in any other worksheets. The Business & other details worksheet is linked to other worksheets within the workbook and automatically generates certain column headings and conditional formatting.
C8: Identifying CONFIDENTIAL INFORMATION: Please use the macro at the top of each worksheet to identify confidential information.
C9: -Do this by selecting the cell or cells that contain confidential information and then run the Mark selection CONFIDENTIAL macro. This will format the cells a specific colour that is identified by the AER's database which in turn marks that information as confidential. -To reverse this, select the cell or cells and run the Return selection to NON-CONFIDENTIAL macro.
C11: UNITS OF MEASURE All amounts are to be unrounded and reported on a one for one basis: that is 1000 is to be entered as '1000'. Applicable units of measure may be identified in the table column headings or row descriptors.
C13: COLOUR CODING OF INPUT / NON-INPUT CELLS:
D14: Yellow = Input cell (mandatory)
D15: Darker yellow = input cell (mandatory)
D16: Orange = input cell (if data available)
D17: Grey = Not applicable/No inputs required
D18: . PLEASE DO NOT ENTER TEXT into cells that are to contain numeric data.
C21: WORKSHEET NAVIGATION Many tables in the worksheets have been "grouped" to allow for easy navigation. To ungroup or group data use the outline symbols in the left margin of excel (for Row groupings) or above the columns (for column groupings).
C23: RETURNING COMPLETED RESPONSES Please return four (4) files to the AER: 1. A confidential version which must contain a complete set of all responses with confidential information marked using the Mark selected cells CONFIDENTIAL macro and which has been completed using the locked template file provided by the AER. 2. An actual and an estimate version with confidential information marked using the Mark selection CONFIDENTIAL macro and which has been completed using the locked template file provided by the AER. 3. A public version with confidential information either removed completely or aggregated in some form together with writtten consent to disclose the public version of the response. Use the drop down box on the Business and other details worksheet to identify the file as either confidential ('consolidated') or public.
C25: SUBMITTING AMENDED DATA TO THE AER If an NSP wishes to correct data previously submitted to the AER it should resubmit that data using the original completed submission as the starting point. Please make any necessary changes to the data. Data that is not being amended should be left unchanged. NSPs must identify the reason for the amendments in the Amendment Reason box on the Business and other details worksheet. NSPs may provide further details regarding any amendments in the Amendments worksheet. .
C26: NSP may use Amended Data macro to highlight cells that contain amended data. NB: if data is also CONFIDENTIAL, re-apply the Confidentiality macro after applying the Amended macro
C27: Please resubmit two (2) files - a confidential version and a public version of the amended submission to the AER

Sheet Contents
B1: REGULATORY REPORTING STATEMENT
B2: =INDEX(dms_TradingNameFull_List,MATCH(dms_TradingName,dms_TradingName_List)) -> ElectraNet
B3: =CONCATENATE((LOOKUP(dms_Model,dms_Model_List,dms_Worksheet_List))&" "&CRY) -> CATEGORY ANALYSIS 2016-17
B4: CONTENTS
E7: 1. Business details | L7: 2. Expenditure
E26: 4. Network information | L26: 5. Network information

Sheet Business & other details
B1: REGULATORY REPORTING STATEMENT
B2: =INDEX(dms_TradingNameFull_List,MATCH(dms_TradingName,dms_TradingName_List)) -> ElectraNet
B3: =CONCATENATE((LOOKUP(dms_Model,dms_Model_List,dms_Worksheet_List))&" "&CRY) -> CATEGORY ANALYSIS 2016-17
B4: BUSINESS & OTHER DETAILS
B7: Instructions
B8: Complete the following business details regulatory template before entering data or values in any other regulatory template. This regulatory template is linked to other cells within the spreadsheet and automatically generates column headings.
B10: SUBMISSION PARTICULARS INPUT SHEETS
B12: ENTITY DETAILS
B14: Short name | C14: ElectraNet
B15: ACN / ABN | C15: =INDEX(dms_ABN_List,MATCH(dms_TradingName,dms_TradingName_List)) -> 41094482416
B18: Business address | C18: Address 1 | E18: =INDEX(dms_Addr1_List,MATCH(dms_TradingName,dms_TradingName_List)) -> 52-55 East Terrace
D19: Address 2 | E19: =IF(ISBLANK(INDEX(dms_Addr2_List,MATCH(dms_TradingName,dms_TradingName_List))),"",INDEX(dms_Addr2_List,MATCH(dms_TradingName,dms_TradingName_List))) -> Rymill Park
C20: Suburb | E20: =INDEX(dms_Suburb_List,MATCH(dms_TradingName,dms_TradingName_List)) -> ADELAIDE
D21: State | E21: =INDEX(dms_State_List,MATCH(dms_TradingName,dms_TradingName_List)) -> SA | F21: p/code | G21: =INDEX(dms_PostCode_List,MATCH(dms_TradingName,dms_TradingName_List)) -> 5000
B23: Postal address | C23: Address 1 | E23: =INDEX(dms_PAddr1_List,MATCH(dms_TradingName,dms_TradingName_List)) -> PO Box 7096
D24: Address 2 | E24: =IF(ISBLANK(INDEX(dms_PAddr2_List,MATCH(dms_TradingName,dms_TradingName_List))),"",INDEX(dms_PAddr2_List,MATCH(dms_TradingName,dms_TradingName_List))) -> Hutt Street Post Office
C25: Suburb | E25: =INDEX(dms_PSuburb_List,MATCH(dms_TradingName,dms_TradingName_List)) -> ADELAIDE
D26: State | E26: =INDEX(dms_PState_List,MATCH(dms_TradingName,dms_TradingName_List)) -> SA | F26: p/code | G26: =INDEX(dms_PPostCode_List,MATCH(dms_TradingName,dms_TradingName_List)) -> 5000
B29: Contact name/s | C29: =INDEX(dms_ContactName1_List,MATCH(dms_TradingName,dms_TradingName_List)) -> Bill Jackson
B30: Contact phone/s | C30: =INDEX(dms_ContactPh1_List,MATCH(dms_TradingName,dms_TradingName_List)) -> 08 8404 7969 | AA30: Tom Hallam
B31: Contact email address/s | C31: =INDEX(dms_ContactEmail_List,MATCH(dms_TradingName,dms_TradingName_List)) -> jackson.bill@electranet.com.au | AA31: Tom Hallam
B33: REGULATORY CONTROL PERIODS
B35: Forthcoming regulatory control period | C35: 2015-16 | D35: =dms_FRCP_y2 -> 2016-17 | E35: =dms_FRCP_y3 -> 2017-18 | F35: =dms_FRCP_y4 -> 2018-19 | G35: =dms_FRCP_y5 -> 2019-20 | H35: =dms_FRCP_y6 -> 2020-21 | I35: =IF(dms_RPT="financial",VALUE(LEFT(FRCP_y6,4)+1)&"-"&VALUE(MID(FRCP_y6,3,2)+2),VALUE(LEFT(FRCP_y6,4)+1)) -> 2021-22
B38: Current regulatory control period | C38: =dms_CRCP_FirstYear_Result -> 2010-11 | D38: =IF(dms_RPT="financial",VALUE(LEFT(CRCP_y1,4)+1)&"-"&TEXT(VALUE(RIGHT(CRCP_y1,2)+1),"0#"),VALUE(LEFT(CRCP_y1,4)+1)) -> 2011-12 | E38: =IF(dms_RPT="financial",VALUE(LEFT(CRCP_y2,4)+1)&"-"&TEXT(VALUE(RIGHT(CRCP_y2,2)+1),"0#"),VALUE(LEFT(CRCP_y2,4)+1)) -> 2012-13 | F38: =IF(dms_RPT="financial",VALUE(LEFT(CRCP_y3,4)+1)&"-"&TEXT(VALUE(RIGHT(CRCP_y3,2)+1),"0#"),VALUE(LEFT(CRCP_y3,4)+1)) -> 2013-14 | G38: =IF(dms_RPT="financial",VALUE(LEFT(CRCP_y4,4)+1)&"-"&TEXT(VALUE(RIGHT(CRCP_y4,2)+1),"0#"),VALUE(LEFT(CRCP_y4,4)+1)) -> 2014-15 | H38: =IF(dms_RPT="financial",VALUE(LEFT(CRCP_y5,4)+1)&"-"&TEXT(VALUE(RIGHT(CRCP_y5,2)+1),"0#"),VALUE(LEFT(CRCP_y5,4)+1)) -> 2015-16
B41: Previous regulatory control period | C41: =IF(dms_RPT="financial",VALUE(LEFT(PRCP_y2,4)-1)&"-"&TEXT(VALUE(MID(PRCP_y2,3,2)),"0#"),VALUE(LEFT(PRCP_y2,4)-1)) -> 2005-06 | D41: =IF(dms_RPT="financial",VALUE(LEFT(PRCP_y3,4)-1)&"-"&TEXT(VALUE(MID(PRCP_y3,3,2)),"0#"),VALUE(LEFT(PRCP_y3,4)-1)) -> 2006-07 | E41: =IF(dms_RPT="financial",VALUE(LEFT(PRCP_y4,4)-1)&"-"&TEXT(VALUE(MID(PRCP_y4,3,2)),"0#"),VALUE(LEFT(PRCP_y4,4)-1)) -> 2007-08 | F41: =IF(dms_RPT="financial",VALUE(LEFT(PRCP_y5,4)-1)&"-"&TEXT(VALUE(RIGHT(PRCP_y5,2)-1),"0#"),VALUE(LEFT(PRCP_y5,4)-1)) -> 2008-09 | G41: =IF(dms_RPT="financial",VALUE(LEFT(CRCP_y1,4)-1)&"-"&TEXT(VALUE(RIGHT(CRCP_y1,2)-1),"0#"),VALUE(LEFT(CRCP_y1,4)-1)) -> 2009-10
B44: Current regulatory year | C44: 2016-17 | D44: CRY
C47: DELETE NR 'CRY' IF NOT AN ANNUAL RIN (EB, CA , ARR)
C48: APPLY NR 'CRY' IF AN ANNUAL RIN (EB, CA , ARR)
B50: Source | C50: Reporting | E50: Please select the correct submission type from the dropdown list.
B51: Data quality (actual, estimate, public, consolidated) | C51: Consolidated
B52: Amended RIN submission - amendment reason
B53: Submission Date | C53: 2017-10-31 | D53: dms_SubmissionDate | E53: Please enter date this file submitted to AER (dd/mm/yyyy)
B54: EBSS - First application of scheme in forthcoming period? | C54: No
A55: HIDE THESE ROWS | B55: Sector | C55: =INDEX(dms_Sector_List,MATCH(dms_TradingName,dms_TradingName_List)) -> Electricity | D55: dms_Sector | E55: =INDEX(dms_Sector_List,MATCH(dms_TradingName,dms_TradingName_List))
B56: Segment | C56: =INDEX(dms_Segment_List,MATCH(dms_TradingName,dms_TradingName_List)) -> Transmission | D56: dms_Segment | E56: =INDEX(dms_Segment_List,MATCH(dms_TradingName,dms_TradingName_List))
B57: Regulatory Year Ending | C57: =IF(dms_MultiYear_Flag=1,LEFT(dms_Specified_FinalYear,2)&RIGHT(dms_Specified_FinalYear,2),INDEX(dms_RYE_Formula_Result,MATCH(dms_Model,dms_Model_List))) -> 2017 | D57: dms_RYE | E57: =IF(dms_MultiYear_Flag=1,LEFT(dms_Specified_FinalYear,2)&RIGHT(dms_Specified_FinalYear,2),INDEX(dms_RYE_Formula_Result,MATCH(dms_Model,dms_Model_List)))
B58: Reporting Period Type | C58: =INDEX(dms_RPT_List,MATCH(dms_TradingName,dms_TradingName_List)) -> Financial | D58: dms_RPT | E58: =INDEX(dms_RPT_List,MATCH(dms_TradingName,dms_TradingName_List))
B59: Model or RIN Type | C59: CA | D59: dms_Model | E59: Drop down selection
B60: Security Classification | C60: Public | D60: dms_Classification | E60: Always Public
B61: Template - version no. | C61: 5 | D61: dms_TemplateNumber
B62: Dollar $ real month | C62: =INDEX(dms_RPTMonth_List,MATCH(dms_TradingName,dms_TradingName_List)) -> June | D62: dms_RPTMonth | E62: =INDEX(dms_RPTMonth_List,MATCH(dms_TradingName,dms_TradingName_List))
B63: Dollar $ real (the last month before the FRCP_y1) | C63: =IF(SUM(dms_SingleYear_Model)>0,CONCATENATE(dms_RPTMonth)&" "&VALUE((LEFT(CRY,2))&RIGHT(CRY,2)),CONCATENATE(dms_RPTMonth)&" "&VALUE((LEFT(dms_CRCP_FinalYear_Result,2))&RIGHT(dms_CRCP_FinalYear_Result,2))) -> June 2017 | D63: dms_DollarReal | E63: =IF(SUM(dms_SingleYear_Model)>0,CONCATENATE(dms_RPTMonth)&" "&VALUE((LEFT(CRY,2))&RIGHT(CRY,2)),CONCATENATE(dms_RPTMonth)&" "&VALUE((LEFT(dms_CRCP_FinalYear_Result,2))&RIGHT(dms_CRCP_FinalYear_Result,2)))
B64: Form of control | C64: =INDEX(dms_FormControl_List,MATCH(dms_TradingName,dms_TradingName_List)) -> Revenue cap | D64: dms_FormControl | E64: =INDEX(dms_FormControl_List,MATCH(dms_TradingName,dms_TradingName_List))
B65: RIN response - version no. | C65: 1 | D65: dms_RINversion
B66: Jurisdiction | C66: =INDEX(dms_JurisdictionList,MATCH(dms_TradingName,dms_TradingName_List)) -> SA | D66: dms_Jurisdiction | E66: =INDEX(dms_JurisdictionList,MATCH(dms_TradingName,dms_TradingName_List))
B67: Backcast Multiyear EB, CA or ARR? | C67: 0 | D67: dms_MultiYear_Flag | E67: 1=y, 0-n
C68: 2013 | D68: dms_Specified_FinalYear | E68: The result here is returned to dms_CRCP_FinalYear_Result if dms_MultiYear_Flag is set to 1
B69: Single Year Model T/F | C69: =IF(dms_Model="EB",1,0) -> 0 | D69: dms_EB
C70: =IF(dms_Model="CA",1,0) -> 1 | D70: dms_CA | E70: =dms_SingleYear_Model
C71: =IF(dms_Model="ARR",1,0) -> 0 | D71: dms_ARR
B72: Single Year Final Year Reference | C72: CRY | D72: dms_SingleYear_FinalYear_Ref | E72: This is the reference for EB, CA & ARR RINs
B73: Single Year Final Year Result | C73: =INDIRECT(dms_SingleYear_FinalYear_Ref) -> 2016-17 | D73: dms_SingleYear_FinalYear_Result | E73: =INDIRECT(dms_SingleYear_FinalYear_Ref) | I73: Formula errors OK
B74: FRCP length in years | C74: =INDEX(dms_FRCPlength_List,MATCH(dms_TradingName,dms_TradingName_List)) -> 5 | D74: dms_FRCPlength_Num | E74: =INDEX(dms_FRCPlength_List,MATCH(dms_TradingName,dms_TradingName_List))
B75: Multi Year Final Year Reference | C75: =INDEX(dms_FinalYear_List,MATCH(dms_FRCPlength_Num,dms_FRCPlength_Num_List)) -> dms_FRCP_y5 | D75: dms_MultiYear_FinalYear_Ref | E75: =INDEX(dms_FinalYear_List,MATCH(dms_FRCPlength_Num,dms_FRCPlength_Num_List))
B76: Multi Year Final Year Result | C76: =IF(dms_MultiYear_Flag=0,INDIRECT(dms_MultiYear_FinalYear_Ref),dms_Specified_FinalYear) -> 2019-20 | D76: dms_MultiYear_FinalYear_Result | E76: =IF(dms_MultiYear_Flag=0,INDIRECT(dms_MultiYear_FinalYear_Ref),dms_Specified_FinalYear) | I76: Formula errors OK
B77: CRCP length in years | C77: =INDEX(dms_CRCPlength_List,MATCH(dms_TradingName,dms_TradingName_List)) -> 5 | D77: dms_CRCPlength_Num | E77: =INDEX(dms_CRCPlength_List,MATCH(dms_TradingName,dms_TradingName_List))
B78: CRCP Final Year Reference | C78: =INDEX(dms_CFinalYear_List,MATCH(dms_CRCPlength_Num,dms_CRCPlength_Num_List)) -> CRCP_y5 | D78: dms_CRCP_FinalYear_Ref | E78: =INDEX(dms_CFinalYear_List,MATCH(dms_CRCPlength_Num,dms_CRCPlength_Num_List))
B79: CRCP First Year Result | C79: =INDEX(dms_CRCP_years,MATCH(dms_CRCPlength_Num,dms_CRCP_index)) -> 2010-11 | D79: dms_CRCP_FirstYear_Result | E79: =INDEX(dms_CRCP_years,MATCH(dms_CRCPlength_Num,dms_CRCP_index))
B80: CRCP Final Year Result | C80: =IF(dms_MultiYear_Flag=0,(IF(SUM(dms_SingleYear_Model)>0,CRY,dms_CRCP_yZ)),dms_Specified_FinalYear) -> 2016-17 | D80: dms_CRCP_FinalYear_Result | E80: =IF(dms_MultiYear_Flag=0,(IF(SUM(dms_SingleYear_Model)>0,CRY,dms_CRCP_yZ)),dms_Specified_FinalYear)
B81: Table 6.6.3 - Public lighting repair - no. business days | C81: =INDEX(dms_663_List,MATCH(dms_TradingName,dms_TradingName_List)) -> 5 | D81: dms_663
B82: Distribution Determination Reference | C82: =INDEX(dms_DeterminationRef_List,MATCH(dms_TradingName,dms_TradingName_List)) -> transmission determination
B83: Backcast templates only - unit of measure | C83: $0s | D83: dms_Backcast_UOM | E83: If the cover sheet is for Backcast data ensure to apply dms_Backcast_UOM named range to this field. Otherwise, do not apply this named range.
B84: EB/CA Unit of Measure for Monetary Values | C84: $0s | D84: dms_dollar_nom_UOM | E84: If the cover sheet is attached to an EB files make sure this field is set
B86: discard this record? | C86: NO | D86: dms_DISCARD | E86: If record is to be discarded from DB set this flag to YES
B88: USES NAMED RANGES FLAG | C88: yes | D88: dms_Defined_Names_Used

Sheet 2.1 Expenditure summary
B1: REGULATORY REPORTING STATEMENT
B2: =INDEX(dms_TradingNameFull_List,MATCH(dms_TradingName,dms_TradingName_List)) -> ElectraNet
B3: =CONCATENATE((LOOKUP(dms_Model,dms_Model_List,dms_Worksheet_List))&" "&CRY) -> CATEGORY ANALYSIS 2016-17
B4: 2.1 EXPENDITURE SUMMARY AND RECONCILIATION
B6: There are TWO tables on this worksheet. Each has been grouped for ease of navigation. See the Instructions sheet on how to group or ungroup tables.
B8: 2.1.1 - PRESCRIBED TRANSMISSION SERVICES CAPEX (as incurred)
C9: Actual ($0's)
C10: =CRY -> 2016-17
B11: Replacement expenditure | C11: 105402995
B12: Connections | C12: 3440087.074
B13: Augmentation Expenditure | C13: 19285427.85
B14: Non-network | C14: 11950656.28
B15: Capitalised network overheads | C15: 9932533.63
B16: Capitalised corporate overheads | C16: 283295.4896
B32: balancing item | C32: -1060.736307
B33: TOTAL CAPEX | C33: =+SUM(C11:C32) -> 150293934.6
B35: 2.1.2 - PRESCRIBED TRANSMISSION SERVICE OPEX
C36: Actual ($0's)
C37: =CRY -> 2016-17
B38: Vegetation management | C38: 2186824.528
B39: Maintenance | C39: 40987887.1
B40: Non-network | C40: 8990972.065
B41: Network overheads | C41: 25012866.14
B42: Corporate overheads | C42: 26883935.62
B58: balancing item | C58: -14422852.06
B59: TOTAL OPEX | C59: =SUM(C38:C58) -> 89639633.4

Sheet 2.2 Repex
B1: REGULATORY REPORTING STATEMENT
B2: =INDEX(dms_TradingNameFull_List,MATCH(dms_TradingName,dms_TradingName_List)) -> ElectraNet
B3: =CONCATENATE((LOOKUP(dms_Model,dms_Model_List,dms_Worksheet_List))&" "&CRY) -> CATEGORY ANALYSIS 2016-17
B4: 2.2 REPEX
B6: There are TWO tables (with three sub-tables each) on this worksheet. Each table has been grouped (and sub-grouped) for ease of navigation. See the Instructions sheet on how to group or ungroup data.
B8: 2.2.1 - REPLACEMENT EXPENDITURE, VOLUMES AND ASSET FAILURES BY ASSET CATEGORY
D9: EXPENDITURE ($0's) | E9: ASSET REPLACEMENTS | F9: ASSET FAILURES
B10: ASSET GROUP | C10: ASSET CATEGORY | D10: =CRY -> 2016-17 | E10: =CRY -> 2016-17 | F10: =CRY -> 2016-17
B11: TRANSMISSION TOWERS Highest operating voltage; Circuit configuration | C11: < = 33 kV ; Single Circuit | D11: 0 | E11: 0 | F11: 0
C12: > 33 kV & < = 66 kV ; Single Circuit | D12: 0 | E12: 0 | F12: 0
C13: > 66 kV & < = 132 kV ; Single Circuit | D13: 1623848.74 | E13: 12 | F13: 0
C14: > 132 kV & < = 275 kV ; Single Circuit | D14: 0 | E14: 0 | F14: 0
C15: > 275 kV & < = 330 kV ; Single Circuit | D15: 0 | E15: 0 | F15: 0
C16: > 330 kV & < = 500 kV ; Single Circuit | D16: 0 | E16: 0 | F16: 0
C17: > 500 kV ; Single Circuit | D17: 0 | E17: 0 | F17: 0
C18: < = 33 kV ; Multiple Circuit | D18: 0 | E18: 0 | F18: 0
C19: > 33 kV & < = 66 kV ; Multiple Circuit | D19: 0 | E19: 0 | F19: 0
C20: > 66 kV & < = 132 kV ; Multiple Circuit | D20: 0 | E20: 0 | F20: 0
C21: > 132 kV & < = 275 kV ; Multiple Circuit | D21: 0 | E21: 0 | F21: 0
C22: > 275 kV & < = 330 kV ; Multiple Circuit | D22: 0 | E22: 0 | F22: 0
C23: > 330 kV & < = 500 kV ; Multiple Circuit | D23: 0 | E23: 0 | F23: 0
C24: > 500 kV ; Multiple Circuit | D24: 0 | E24: 0 | F24: 0
C25: Other | D25: 0 | E25: 0 | F25: 0
B26: TRANSMISSION TOWER SUPPORT STRUCTURES BY: Highest operating voltage; Circuit configuration | C26: < = 33 kV ; Single Circuit | D26: 0 | E26: 0 | F26: 0
C27: > 33 kV & < = 66 kV ; Single Circuit | D27: 0 | E27: 0 | F27: 0
C28: > 66 kV & < = 132 kV ; Single Circuit | D28: 4620424.27 | E28: 108 | F28: 0
C29: > 132 kV & < = 275 kV ; Single Circuit | D29: 0 | E29: 0 | F29: 0
C30: > 275 kV & < = 330 kV ; Single Circuit | D30: 0 | E30: 0 | F30: 0
C31: > 330 kV & < = 500 kV ; Single Circuit | D31: 0 | E31: 0 | F31: 0
C32: > 500 kV ; Single Circuit | D32: 0 | E32: 0 | F32: 0
C33: < = 33 kV ; Multiple Circuit | D33: 0 | E33: 0 | F33: 0
C34: > 33 kV & < = 66 kV ; Multiple Circuit | D34: 0 | E34: 0 | F34: 0
C35: > 66 kV & < = 132 kV ; Multiple Circuit | D35: 0 | E35: 0 | F35: 0
C36: > 132 kV & < = 275 kV ; Multiple Circuit | D36: 0 | E36: 0 | F36: 0
C37: > 275 kV & < = 330 kV ; Multiple Circuit | D37: 0 | E37: 0 | F37: 0
C38: > 330 kV & < = 500 kV ; Multiple Circuit | D38: 0 | E38: 0 | F38: 0
C39: > 500 kV ; Multiple Circuit | D39: 0 | E39: 0 | F39: 0
C40: Other | D40: 0 | E40: 0 | F40: 0
B41: CONDUCTORS BY: Voltage; Maximum continuous rating | C41: < = 33 kV ; < = 100 MVA | D41: 0 | E41: 0 | F41: 0
C42: < = 33 kV ; > 100 MVA & < = 400 MVA | D42: 0 | E42: 0 | F42: 0
C43: < = 33 kV ; > 400 MVA | D43: 0 | E43: 0 | F43: 0
C44: > 33 kV & < = 66 kV ; < = 100 MVA | D44: 0 | E44: 0 | F44: 0
C45: > 33 kV & < = 66 kV ; > 100 MVA & < = 400 MVA | D45: 0 | E45: 0 | F45: 0
C46: > 33 kV & < = 66 kV ; > 400 MVA | D46: 0 | E46: 0 | F46: 0
C47: > 66 kV & < = 132 kV ; < = 100 MVA | D47: 0 | E47: 0 | F47: 0
C48: > 66 kV & < = 132 kV ; > 100 MVA & < = 400 MVA | D48: 2343821.96 | E48: 3.6 | F48: 0
C49: > 66 kV & < = 132 kV ; > 400 MVA | D49: 0 | E49: 0 | F49: 0
C50: > 132 kV & < = 275 kV ; < = 200 MVA | D50: 0 | E50: 0 | F50: 0
C51: > 132 kV & < = 275 kV ; > 200 MVA & < = 600 MVA | D51: 0 | E51: 0 | F51: 0
C52: > 132 kV & < = 275 kV ; > 600 MVA | D52: 0 | E52: 0 | F52: 0
C53: > 275 kV & < = 330 kV ; < = 800 MVA | D53: 0 | E53: 0 | F53: 0
C54: > 275 kV & < = 330 kV ; > 800 MVA & < = 1200 MVA | D54: 0 | E54: 0 | F54: 0
C55: > 275 kV & < = 330 kV ; > 1200 MVA | D55: 0 | E55: 0 | F55: 0
C56: > 330 kV & < = 500 kV ; < = 1000 MVA | D56: 0 | E56: 0 | F56: 0
C57: > 330 kV & < = 500 kV ; > 1000 MVA & < = 1500 MVA | D57: 0 | E57: 0 | F57: 0
C58: > 330 kV & < = 500 kV ; > 1500 MVA | D58: 0 | E58: 0 | F58: 0
C59: > 500 kV ; < = 2000 MVA | D59: 0 | E59: 0 | F59: 0
C60: > 500 kV ; > 2000 MVA & < = 3000 MVA
C61: > 500 kV ; > 3000 MVA | D61: 0 | E61: 0 | F61: 0
C62: Other | D62: 0 | E62: 0 | F62: 0
B63: TRANSMISSION CABLES BY: Highest operating voltage; Insulation type | C63: < = 33 kV ; Oil Filled | D63: 0 | E63: 0 | F63: 0
C64: > 33 kV & < = 66 kV ; Oil Filled | D64: 0 | E64: 0 | F64: 0
C65: > 66 kV & < = 132 kV ; Oil Filled | D65: 0 | E65: 0 | F65: 0
C66: > 132 kV & < = 275 kV ; Oil Filled | D66: 0 | E66: 0 | F66: 0
C67: > 275 kV & < = 330 kV ; Oil Filled | D67: 0 | E67: 0 | F67: 0
C68: > 330 kV & < = 500 kV ; Oil Filled | D68: 0 | E68: 0 | F68: 0
C69: > 500 kV ; Oil Filled | D69: 0 | E69: 0 | F69: 0
C70: < = 33 kV ; XLPE Insulated | D70: 0 | E70: 0 | F70: 0
C71: > 33 kV & < = 66 kV ; XLPE Insulated | D71: 0 | E71: 0 | F71: 0
C72: > 66 kV & < = 132 kV ; XLPE Insulated | D72: 0 | E72: 0 | F72: 0
C73: > 132 kV & < = 275 kV ; XLPE Insulated | D73: 0 | E73: 0 | F73: 0
C74: > 275 kV & < = 330 kV ; XLPE Insulated | D74: 0 | E74: 0 | F74: 0
C75: > 330 kV & < = 500 kV ; XLPE Insulated | D75: 0 | E75: 0 | F75: 0
C76: > 500 kV ; XLPE Insulated | D76: 0 | E76: 0 | F76: 0
C77: < = 33 kV ; Other Insulated | D77: 0 | E77: 0 | F77: 0
C78: > 33 kV & < = 66 kV ; Other Insulated | D78: 0 | E78: 0 | F78: 0
C79: > 66 kV & < = 132 kV ; Other Insulated | D79: 0 | E79: 0 | F79: 0
C80: > 132 kV & < = 275 kV ; Other Insulated | D80: 0 | E80: 0 | F80: 0
C81: > 275 kV & < = 330 kV ; Other Insulated | D81: 0 | E81: 0 | F81: 0
C82: > 330 kV & < = 500 kV ; Other Insulated | D82: 0 | E82: 0 | F82: 0
C83: > 500 kV ; Other Insulated | D83: 0 | E83: 0 | F83: 0
C84: Other | D84: 0 | E84: 0 | F84: 0
B85: SUBSTATION SWITCHBAYS BY: Highest operating voltage; Switch type | C85: < = 33 kV ; Air Insulated circuit Breaker | D85: 687433.56 | E85: 4 | F85: 0
C86: > 33 kV & < = 66 kV ; Air Insulated circuit Breaker | D86: 0 | E86: 0 | F86: 0
C87: > 66 kV & < = 132 kV ; Air Insulated circuit Breaker | D87: 3455732.32 | E87: 13 | F87: 0
C88: > 132 kV & < = 275 kV ; Air Insulated circuit Breaker | D88: 0 | E88: 0 | F88: 0
C89: > 275 kV & < = 330 kV ; Air Insulated circuit Breaker | D89: 0 | E89: 0 | F89: 0
C90: > 330 kV & < = 500 kV ; Air Insulated circuit Breaker | D90: 0 | E90: 0 | F90: 0
C91: > 500 kV ; Air Insulated circuit Breaker | D91: 0 | E91: 0 | F91: 0
C92: < = 33 kV ; Air Insulated Isolators / Earth Switch | D92: 0 | E92: 0 | F92: 0
C93: > 33 kV & < = 66 kV ; Air Insulated Isolators / Earth Switch | D93: 0 | E93: 0 | F93: 0
C94: > 66 kV & < = 132 kV ; Air Insulated Isolators / Earth Switch | D94: 4635334.15 | E94: 35 | F94: 0
C95: > 132 kV & < = 275 kV ; Air Insulated Isolators / Earth Switch | D95: 35163.08 | E95: 1 | F95: 0
C96: > 275 kV & < = 330 kV ; Air Insulated Isolators / Earth Switch | D96: 0 | E96: 0 | F96: 0
C97: > 330 kV & < = 500 kV ; Air Insulated Isolators / Earth Switch | D97: 0 | E97: 0 | F97: 0
C98: > 500 kV ; Air Insulated Isolators / Earth Switch | D98: 0 | E98: 0 | F98: 0
C99: < = 33 kV ; VT | D99: 546031.36 | E99: 4.333333333 | F99: 0
C100: > 33 kV & < = 66 kV ; VT | D100: 48819.97 | E100: 3.666666667 | F100: 0
C101: > 66 kV & < = 132 kV ; VT | D101: 1827508.95 | E101: 9.333333333 | F101: 0
C102: > 132 kV & < = 275 kV ; VT | D102: 235678.52 | E102: 4.666666667 | F102: 0
C103: > 275 kV & < = 330 kV ; VT | D103: 0 | E103: 0 | F103: 0
C104: > 330 kV & < = 500 kV ; VT | D104: 0 | E104: 0 | F104: 0
C105: > 500 kV ; VT | D105: 0 | E105: 0 | F105: 0
C106: < = 33 kV ; CT | D106: 1013018.32 | E106: 7 | F106: 0
C107: > 33 kV & < = 66 kV ; CT | D107: 0 | E107: 0 | F107: 0
C108: > 66 kV & < = 132 kV ; CT | D108: 4053650.96 | E108: 15 | F108: 0
C109: > 132 kV & < = 275 kV ; CT | D109: 768961.39 | E109: 9.333333333 | F109: 0
C110: > 275 kV & < = 330 kV ; CT | D110: 0 | E110: 0 | F110: 0
C111: > 330 kV & < = 500 kV ; CT | D111: 0 | E111: 0 | F111: 0
C112: > 500 kV ; CT | D112: 0 | E112: 0 | F112: 0
C113: < = 33 kV ; GIS Module | D113: 0 | E113: 0 | F113: 0
C114: > 33 kV & < = 66 kV ; GIS Module | D114: 0 | E114: 0 | F114: 0
C115: > 66 kV & < = 132 kV ; GIS Module | D115: 0 | E115: 0 | F115: 0
C116: > 132 kV & < = 275 kV ; GIS Module | D116: 0 | E116: 0 | F116: 0
C117: > 275 kV & < = 330 kV ; GIS Module | D117: 0 | E117: 0 | F117: 0
C118: > 330 kV & < = 500 kV ; GIS Module | D118: 0 | E118: 0 | F118: 0
C119: > 500 kV ; GIS Module | D119: 0 | E119: 0 | F119: 0
C120: Other | D120: 0 | E120: 0 | F120: 0
B121: SUBSTATION POWER TRANSFORMERS BY: Highest operating voltage; Ampere rating | C121: < = 33 kV ; < = 10 MVA | D121: 0 | E121: 0 | F121: 0
C122: < = 33 kV ; > 10 MVA & < = 30 MVA | D122: 0 | E122: 0 | F122: 0
C123: < = 33 kV ; > 30 MVA | D123: 0 | E123: 0 | F123: 0
C124: > 33 kV & < = 66 kV ; < = 10 MVA | D124: 0 | E124: 0 | F124: 0
C125: > 33 kV & < = 66 kV ; > 10 MVA & < = 30 MVA | D125: 0 | E125: 0 | F125: 0
C126: > 33 kV & < = 66 kV ; > 30 MVA | D126: 0 | E126: 0 | F126: 0
C127: > 66 kV & < = 132 kV ; < = 30 MVA | D127: 2718140.4 | E127: 2 | F127: 0
C128: > 66 kV & < = 132 kV ; > 30 MVA & < = 60 MVA | D128: 0 | E128: 0 | F128: 0
C129: > 66 kV & < = 132 kV ; > 60 MVA | D129: 11086806.79 | E129: 2 | F129: 0
C130: > 132 kV & < = 220 kV ; < = 50 MVA | D130: 0 | E130: 0 | F130: 0
C131: > 132 kV & < = 220 kV ; > 50 MVA & < = 100 MVA | D131: 0 | E131: 0 | F131: 0
C132: > 132 kV & < = 220 kV ; > 100 MVA | D132: 0 | E132: 0 | F132: 0
C133: > 220 kV & < = 275 kV ; < = 50 MVA | D133: 0 | E133: 0 | F133: 0
C134: > 220 kV & < = 275 kV ; > 50 MVA & < = 100 MVA | D134: 0 | E134: 0 | F134: 0
C135: > 220 kV & < = 275 kV ; > 100 MVA | D135: 0 | E135: 0 | F135: 0
C136: > 275 kV & < = 330 kV ; < = 100 MVA | D136: 0 | E136: 0 | F136: 0
C137: > 275 kV & < = 330 kV ; > 100 MVA & < = 250 MVA | D137: 0 | E137: 0 | F137: 0
C138: > 275 kV & < = 330 kV ; > 250 MVA | D138: 0 | E138: 0 | F138: 0
C139: > 330 kV & < = 500 kV ; < = 150 MVA | D139: 0 | E139: 0 | F139: 0
C140: > 330 kV & < = 500 kV ; > 150 MVA & < = 300 MVA | D140: 0 | E140: 0 | F140: 0
C141: > 330 kV & < = 500 kV ; > 300 MVA | D141: 0 | E141: 0 | F141: 0
C142: > 500 kV ; < = 1000 MVA | D142: 0 | E142: 0 | F142: 0
C143: > 500 kV ; > 1000 MVA & < = 1500 MVA | D143: 0 | E143: 0 | F143: 0
C144: > 500 kV ; > 1500 MVA | D144: 0 | E144: 0 | F144: 0
C145: Other | D145: 0 | E145: 0 | F145: 0
B146: SUBSTATION REACTIVE PLANT BY: Highest operating voltage; Function | C146: < = 33 kV ; SVCS | D146: 0 | E146: 0 | F146: 0
C147: > 33 kV & < = 66 kV ; SVCS | D147: 0 | E147: 0 | F147: 0
C148: > 66 kV & < = 132 kV ; SVCS | D148: 0 | E148: 0 | F148: 0
C149: > 132 kV & < = 275 kV ; SVCS | D149: 0 | E149: 0 | F149: 0
C150: > 275 kV & < = 330 kV ; SVCS | D150: 0 | E150: 0 | F150: 0
C151: > 330 kV & < = 500 kV ; SVCS | D151: 0 | E151: 0 | F151: 0
C152: > 500 kV ; SVCS | D152: 0 | E152: 0 | F152: 0
C153: < = 33 kV ; Capacitors | D153: 0 | E153: 0 | F153: 0
C154: > 33 kV & < = 66 kV ; Capacitors | D154: 0 | E154: 0 | F154: 0
C155: > 66 kV & < = 132 kV ; Capacitors | D155: 2143889.59 | E155: 2 | F155: 0
C156: > 132 kV & < = 275 kV ; Capacitors | D156: 0 | E156: 0 | F156: 0
C157: > 275 kV & < = 330 kV ; Capacitors | D157: 0 | E157: 0 | F157: 0
C158: > 330 kV & < = 500 kV ; Capacitors | D158: 0 | E158: 0 | F158: 0
C159: > 500 kV ; Capacitors | D159: 0 | E159: 0 | F159: 0
C160: < = 33 kV ; Oil Filled Reactors | D160: 0 | E160: 0 | F160: 0
C161: > 33 kV & < = 66 kV ; Oil Filled Reactors | D161: 0 | E161: 0 | F161: 0
C162: > 66 kV & < = 132 kV ; Oil Filled Reactors | D162: 0 | E162: 0 | F162: 0
C163: > 132 kV & < = 275 kV ; Oil Filled Reactors | D163: 0 | E163: 0 | F163: 0
C164: > 275 kV & < = 330 kV ; Oil Filled Reactors | D164: 0 | E164: 0 | F164: 0
C165: > 330 kV & < = 500 kV ; Oil Filled Reactors | D165: 0 | E165: 0 | F165: 0
C166: > 500 kV ; Oil Filled Reactors | D166: 0 | E166: 0 | F166: 0
C167: Other | D167: 0 | E167: 0 | F167: 0
B168: SCADA, NETWORK CONTROL AND PROTECTION SYSTEMS BY: Function | C168: Communications Network Assets | D168: 0 | E168: 0 | F168: 0
C169: Master Station Assets | D169: 0 | E169: 0 | F169: 0
C170: Control equipment / systems | D170: 0 | E170: 0 | F170: 0
C171: Infrastructure: protection and control | D171: 0 | E171: 0 | F171: 0
C172: Metering systems | D172: 0 | E172: 0 | F172: 0
C173: OPGW | D173: 0 | E173: 0 | F173: 0
C174: Protection schemes / systems | D174: 0 | E174: 0 | F174: 0
C175: Site establishment | D175: 19030552.57 | E175: 3 | F175: 0
C176: Station SCADA and control systems | D176: 0 | E176: 0 | F176: 0
C177: Telecommunications Network / Systems | D177: 0 | E177: 0 | F177: 0
C178: Total secondary systems | D178: 17118686.6 | E178: 3 | F178: 0
C179: Other | D179: 4108277.152 | E179: 4 | F179: 0
B180: OTHER BY: TNSP defined | C180: TRANSMISSION TOWER SUPPORT STRUCUTRE BY: HIGHEST OPERATING VOLTAGE; CIRCUIT CONFIGURATION >132 kV & < = 275 kV; Insulator Strings | D180: 148218.4 | E180: 296 | F180: 0
C181: SCADA, NETWORK CONTROL AND PROTECTION SYSTEMS BY: FUNCTION Telecommunications | D181: 5249224.416 | E181: 2 | F181: 0
F182: 0
B211: 2.2.2 - SELECTED ASSET CHARACTERISTICS
D212: ASSET VOLUMES CURRENTLY IN COMMISSION | E212: ASSET REPLACEMENTS
B213: ASSET GROUP | C213: ASSET CATEGORY | D213: =CRY -> 2016-17 | E213: =CRY -> 2016-17
B214: CONDUCTORS BY: CONDUCTOR LENGTH MATERIAL TYPE | C214: AAAC | D214: 46.103072 | E214: 0
C215: AAC | D215: 0.4 | E215: 0
C216: ACAR | D216: 0 | E216: 0
C217: ACSR | D217: 5390.8 | E217: 0
C218: HD Cu | D218: 36.7 | E218: 0
C219: Undefined | D219: 18.3 | E219: 0
B247: SUBSTATION REACTIVE PLANT BY: REACTIVE CAPACITY | C247: Total MVAr by SVCs | D247: 320 | E247: 0
C248: Total MVAr by Capacitors | D248: 1110.6 | E248: 0
C249: Total MVAr by Oil Filled Reactors | D249: 364.8 | E249: 0

Sheet 2.3 Augex
B1: REGULATORY REPORTING STATEMENT
B2: =INDEX(dms_TradingNameFull_List,MATCH(dms_TradingName,dms_TradingName_List)) -> ElectraNet
B3: =CONCATENATE((LOOKUP(dms_Model,dms_Model_List,dms_Worksheet_List))&" "&CRY) -> CATEGORY ANALYSIS 2016-17
B4: 2.3 AUGEX PROJECTS
B6: There are THREE tables on this worksheet - each has been 'grouped' for easy navigation. Both ROWS and COLUMNS have been grouped. See the Instructions sheet on how to group or ungroup tables.
B8: 2.3.1 - AUGEX ASSET DATA - SUBSTATIONS
B9: NOTE: TNSP MUST PROVIDE EXPENDITURE INFORMATION ON A PROJECT CLOSE BASIS.
B10: SUBSTATION AND PROJECT SUMMARY | L10: PLANT AND EQUIPMENT EXPENDITURE AND VOLUME | Z10: OTHER EXPENDITURE | AB10: TOTAL DIRECT EXPENDITURE ($0's) | AC10: YEARS INCURRED | AD10: RELATED PARTY CONTRACTS | AG10: LAND AND EASEMENTS
B11: SUBSTATION ID | C11: SUBSTATION TYPE | D11: PROJECT ID | E11: PROJECT TYPE | F11: PROJECT TRIGGER | G11: VOLTAGE (KV) | H11: SUBSTATION RATING NORMAL CYCLIC (MVA) | J11: SUBSTATION RATING N-1 EMERGENCY (MVA) | L11: TRANSFORMERS | P11: SWITCHGEAR | S11: REACTIVE PLANT | W11: OTHER PLANT ITEM | X11: INSTALLATION (LABOUR) | Z11: CIVIL WORKS | AA11: OTHER DIRECT | AD11: RELATED PARTY MARGINS | AE11: TOTAL | AF11: ALL NON RELATED PARTYCONTRACTS | AG11: LAND PURCHASES | AH11: EASEMENTS | AI11: Comments
H12: PRE | I12: POST | J12: PRE | K12: POST | L12: Units Added | M12: MVA Added | N12: OLTC INCLUDED? | O12: Expenditure ($0's) | P12: Insulation | Q12: Units Added | R12: Expenditure ($0's) | S12: Plant Type | T12: Units Added | U12: Expenditure ($0's) | W12: Expenditure ($0's) | X12: Volume | Y12: Expenditure ($0's) | Z12: Expenditure ($0's) | AD12: Expenditure ($0's) | AG12: Expenditure ($0's)
B13: Ardrossan West T282 | C13: Terminal station | D13: 10615 | E13: Capacity upgrade | F13: Demand growth | G13: 132 | H13: 20 | I13: 50 | J13: 10 | K13: 25 | L13: 2 | M13: 50 | N13: Yes | O13: 1045412 | P13: Air | Q13: 3 132kV Circuit Breakers | R13: 121486.86 | S13: Capacitor | T13: 1 | U13: 175059 | Y13: 283104 | Z13: 1452607 | AA13: 18756855.97 | AI13: '2008, 2009, 2010, 2011, 2012, 2013, 2014, 2015, 2016, 2017
P14: Air | Q14: 2 33kV Circuit Breakers | R14: 47998
P15: Air | Q15: 8 132kV Disconnectors with ES | R15: 156744
W16: 384162.28
B20: Project Totals | L20: =SUM(L13:L19) -> 2 | M20: =SUM(M13:M19) -> 50 | O20: =SUM(O13:O19) -> 1045412 | Q20: =SUM(Q13:Q19) -> 0 | R20: =SUM(R13:R19) -> 326228.86 | T20: =SUM(T13:T19) -> 1 | U20: =SUM(U13:U19) -> 175059 | W20: =SUM(W13:W19) -> 384162.28 | X20: =SUM(X13:X19) -> 0 | Y20: =SUM(Y13:Y19) -> 283104 | Z20: =SUM(Z13) -> 1452607 | AA20: =SUM(AA13) -> 18756855.97 | AB20: =O20+R20+U20+W20+SUM(Y20:AA20) -> 22423429.11 | AD20: =SUM(AD13) -> 0 | AE20: =SUM(AE13) -> 0 | AF20: =SUM(AF13) -> 0 | AG20: =SUM(AG13) -> 0 | AH20: =SUM(AH13) -> 0
B21: <Enter substation ID>
B28: Project Totals | L28: =SUM(L21:L27) -> 0 | M28: =SUM(M21:M27) -> 0 | O28: =SUM(O21:O27) -> 0 | Q28: =SUM(Q21:Q27) -> 0 | R28: =SUM(R21:R27) -> 0 | T28: =SUM(T21:T27) -> 0 | U28: =SUM(U21:U27) -> 0 | W28: =SUM(W21:W27) -> 0 | X28: =SUM(X21:X27) -> 0 | Y28: =SUM(Y21:Y27) -> 0 | Z28: =SUM(Z21) -> 0 | AA28: =SUM(AA21) -> 0 | AB28: =O28+R28+U28+W28+SUM(Y28:AA28) -> 0 | AD28: =SUM(AD21) -> 0 | AE28: =SUM(AE21) -> 0 | AF28: =SUM(AF21) -> 0 | AG28: =SUM(AG21) -> 0 | AH28: =SUM(AH21) -> 0
B29: <Enter substation ID>
B36: Project Totals | L36: =SUM(L29:L35) -> 0 | M36: =SUM(M29:M35) -> 0 | O36: =SUM(O29:O35) -> 0 | Q36: =SUM(Q29:Q35) -> 0 | R36: =SUM(R29:R35) -> 0 | T36: =SUM(T29:T35) -> 0 | U36: =SUM(U29:U35) -> 0 | W36: =SUM(W29:W35) -> 0 | X36: =SUM(X29:X35) -> 0 | Y36: =SUM(Y29:Y35) -> 0 | Z36: =SUM(Z29) -> 0 | AA36: =SUM(AA29) -> 0 | AB36: =O36+R36+U36+W36+SUM(Y36:AA36) -> 0 | AD36: =SUM(AD29) -> 0 | AE36: =SUM(AE29) -> 0 | AF36: =SUM(AF29) -> 0 | AG36: =SUM(AG29) -> 0 | AH36: =SUM(AH29) -> 0
B37: <Enter substation ID>
B44: Project Totals | L44: =SUM(L37:L43) -> 0 | M44: =SUM(M37:M43) -> 0 | O44: =SUM(O37:O43) -> 0 | Q44: =SUM(Q37:Q43) -> 0 | R44: =SUM(R37:R43) -> 0 | T44: =SUM(T37:T43) -> 0 | U44: =SUM(U37:U43) -> 0 | W44: =SUM(W37:W43) -> 0 | X44: =SUM(X37:X43) -> 0 | Y44: =SUM(Y37:Y43) -> 0 | Z44: =SUM(Z37) -> 0 | AA44: =SUM(AA37) -> 0 | AB44: =O44+R44+U44+W44+SUM(Y44:AA44) -> 0 | AD44: =SUM(AD37) -> 0 | AE44: =SUM(AE37) -> 0 | AF44: =SUM(AF37) -> 0 | AG44: =SUM(AG37) -> 0 | AH44: =SUM(AH37) -> 0
B45: <Enter substation ID>
B52: Project Totals | L52: =SUM(L45:L51) -> 0 | M52: =SUM(M45:M51) -> 0 | O52: =SUM(O45:O51) -> 0 | Q52: =SUM(Q45:Q51) -> 0 | R52: =SUM(R45:R51) -> 0 | T52: =SUM(T45:T51) -> 0 | U52: =SUM(U45:U51) -> 0 | W52: =SUM(W45:W51) -> 0 | X52: =SUM(X45:X51) -> 0 | Y52: =SUM(Y45:Y51) -> 0 | Z52: =SUM(Z45) -> 0 | AA52: =SUM(AA45) -> 0 | AB52: =O52+R52+U52+W52+SUM(Y52:AA52) -> 0 | AD52: =SUM(AD45) -> 0 | AE52: =SUM(AE45) -> 0 | AF52: =SUM(AF45) -> 0 | AG52: =SUM(AG45) -> 0 | AH52: =SUM(AH45) -> 0
B53: <Enter substation ID>
B60: Project Totals | L60: =SUM(L53:L59) -> 0 | M60: =SUM(M53:M59) -> 0 | O60: =SUM(O53:O59) -> 0 | Q60: =SUM(Q53:Q59) -> 0 | R60: =SUM(R53:R59) -> 0 | T60: =SUM(T53:T59) -> 0 | U60: =SUM(U53:U59) -> 0 | W60: =SUM(W53:W59) -> 0 | X60: =SUM(X53:X59) -> 0 | Y60: =SUM(Y53:Y59) -> 0 | Z60: =SUM(Z53) -> 0 | AA60: =SUM(AA53) -> 0 | AB60: =O60+R60+U60+W60+SUM(Y60:AA60) -> 0 | AD60: =SUM(AD53) -> 0 | AE60: =SUM(AE53) -> 0 | AF60: =SUM(AF53) -> 0 | AG60: =SUM(AG53) -> 0 | AH60: =SUM(AH53) -> 0
B61: <Enter substation ID>
B68: Project Totals | L68: =SUM(L61:L67) -> 0 | M68: =SUM(M61:M67) -> 0 | O68: =SUM(O61:O67) -> 0 | Q68: =SUM(Q61:Q67) -> 0 | R68: =SUM(R61:R67) -> 0 | T68: =SUM(T61:T67) -> 0 | U68: =SUM(U61:U67) -> 0 | W68: =SUM(W61:W67) -> 0 | X68: =SUM(X61:X67) -> 0 | Y68: =SUM(Y61:Y67) -> 0 | Z68: =SUM(Z61) -> 0 | AA68: =SUM(AA61) -> 0 | AB68: =O68+R68+U68+W68+SUM(Y68:AA68) -> 0 | AD68: =SUM(AD61) -> 0 | AE68: =SUM(AE61) -> 0 | AF68: =SUM(AF61) -> 0 | AG68: =SUM(AG61) -> 0 | AH68: =SUM(AH61) -> 0
B69: <Enter substation ID>
B76: Project Totals | L76: =SUM(L69:L75) -> 0 | M76: =SUM(M69:M75) -> 0 | O76: =SUM(O69:O75) -> 0 | Q76: =SUM(Q69:Q75) -> 0 | R76: =SUM(R69:R75) -> 0 | T76: =SUM(T69:T75) -> 0 | U76: =SUM(U69:U75) -> 0 | W76: =SUM(W69:W75) -> 0 | X76: =SUM(X69:X75) -> 0 | Y76: =SUM(Y69:Y75) -> 0 | Z76: =SUM(Z69) -> 0 | AA76: =SUM(AA69) -> 0 | AB76: =O76+R76+U76+W76+SUM(Y76:AA76) -> 0 | AD76: =SUM(AD69) -> 0 | AE76: =SUM(AE69) -> 0 | AF76: =SUM(AF69) -> 0 | AG76: =SUM(AG69) -> 0 | AH76: =SUM(AH69) -> 0
B77: <Enter substation ID>
B84: Project Totals | L84: =SUM(L77:L83) -> 0 | M84: =SUM(M77:M83) -> 0 | O84: =SUM(O77:O83) -> 0 | Q84: =SUM(Q77:Q83) -> 0 | R84: =SUM(R77:R83) -> 0 | T84: =SUM(T77:T83) -> 0 | U84: =SUM(U77:U83) -> 0 | W84: =SUM(W77:W83) -> 0 | X84: =SUM(X77:X83) -> 0 | Y84: =SUM(Y77:Y83) -> 0 | Z84: =SUM(Z77) -> 0 | AA84: =SUM(AA77) -> 0 | AB84: =O84+R84+U84+W84+SUM(Y84:AA84) -> 0 | AD84: =SUM(AD77) -> 0 | AE84: =SUM(AE77) -> 0 | AF84: =SUM(AF77) -> 0 | AG84: =SUM(AG77) -> 0 | AH84: =SUM(AH77) -> 0
B85: <Enter substation ID>
B92: Project Totals | L92: =SUM(L85:L91) -> 0 | M92: =SUM(M85:M91) -> 0 | O92: =SUM(O85:O91) -> 0 | Q92: =SUM(Q85:Q91) -> 0 | R92: =SUM(R85:R91) -> 0 | T92: =SUM(T85:T91) -> 0 | U92: =SUM(U85:U91) -> 0 | W92: =SUM(W85:W91) -> 0 | X92: =SUM(X85:X91) -> 0 | Y92: =SUM(Y85:Y91) -> 0 | Z92: =SUM(Z85) -> 0 | AA92: =SUM(AA85) -> 0 | AB92: =O92+R92+U92+W92+SUM(Y92:AA92) -> 0 | AD92: =SUM(AD85) -> 0 | AE92: =SUM(AE85) -> 0 | AF92: =SUM(AF85) -> 0 | AG92: =SUM(AG85) -> 0 | AH92: =SUM(AH85) -> 0
B93: <Enter substation ID>
B100: Project Totals | L100: =SUM(L93:L99) -> 0 | M100: =SUM(M93:M99) -> 0 | O100: =SUM(O93:O99) -> 0 | Q100: =SUM(Q93:Q99) -> 0 | R100: =SUM(R93:R99) -> 0 | T100: =SUM(T93:T99) -> 0 | U100: =SUM(U93:U99) -> 0 | W100: =SUM(W93:W99) -> 0 | X100: =SUM(X93:X99) -> 0 | Y100: =SUM(Y93:Y99) -> 0 | Z100: =SUM(Z93) -> 0 | AA100: =SUM(AA93) -> 0 | AB100: =O100+R100+U100+W100+SUM(Y100:AA100) -> 0 | AD100: =SUM(AD93) -> 0 | AE100: =SUM(AE93) -> 0 | AF100: =SUM(AF93) -> 0 | AG100: =SUM(AG93) -> 0 | AH100: =SUM(AH93) -> 0
B101: <Enter substation ID>
B108: Project Totals | L108: =SUM(L101:L107) -> 0 | M108: =SUM(M101:M107) -> 0 | O108: =SUM(O101:O107) -> 0 | Q108: =SUM(Q101:Q107) -> 0 | R108: =SUM(R101:R107) -> 0 | T108: =SUM(T101:T107) -> 0 | U108: =SUM(U101:U107) -> 0 | W108: =SUM(W101:W107) -> 0 | X108: =SUM(X101:X107) -> 0 | Y108: =SUM(Y101:Y107) -> 0 | Z108: =SUM(Z101) -> 0 | AA108: =SUM(AA101) -> 0 | AB108: =O108+R108+U108+W108+SUM(Y108:AA108) -> 0 | AD108: =SUM(AD101) -> 0 | AE108: =SUM(AE101) -> 0 | AF108: =SUM(AF101) -> 0 | AG108: =SUM(AG101) -> 0 | AH108: =SUM(AH101) -> 0
B109: <Enter substation ID>
B116: Project Totals | L116: =SUM(L109:L115) -> 0 | M116: =SUM(M109:M115) -> 0 | O116: =SUM(O109:O115) -> 0 | Q116: =SUM(Q109:Q115) -> 0 | R116: =SUM(R109:R115) -> 0 | T116: =SUM(T109:T115) -> 0 | U116: =SUM(U109:U115) -> 0 | W116: =SUM(W109:W115) -> 0 | X116: =SUM(X109:X115) -> 0 | Y116: =SUM(Y109:Y115) -> 0 | Z116: =SUM(Z109) -> 0 | AA116: =SUM(AA109) -> 0 | AB116: =O116+R116+U116+W116+SUM(Y116:AA116) -> 0 | AD116: =SUM(AD109) -> 0 | AE116: =SUM(AE109) -> 0 | AF116: =SUM(AF109) -> 0 | AG116: =SUM(AG109) -> 0 | AH116: =SUM(AH109) -> 0
B117: <Enter substation ID>
B124: Project Totals | L124: =SUM(L117:L123) -> 0 | M124: =SUM(M117:M123) -> 0 | O124: =SUM(O117:O123) -> 0 | Q124: =SUM(Q117:Q123) -> 0 | R124: =SUM(R117:R123) -> 0 | T124: =SUM(T117:T123) -> 0 | U124: =SUM(U117:U123) -> 0 | W124: =SUM(W117:W123) -> 0 | X124: =SUM(X117:X123) -> 0 | Y124: =SUM(Y117:Y123) -> 0 | Z124: =SUM(Z117) -> 0 | AA124: =SUM(AA117) -> 0 | AB124: =O124+R124+U124+W124+SUM(Y124:AA124) -> 0 | AD124: =SUM(AD117) -> 0 | AE124: =SUM(AE117) -> 0 | AF124: =SUM(AF117) -> 0 | AG124: =SUM(AG117) -> 0 | AH124: =SUM(AH117) -> 0
B125: <Enter substation ID>
B132: Project Totals | L132: =SUM(L125:L131) -> 0 | M132: =SUM(M125:M131) -> 0 | O132: =SUM(O125:O131) -> 0 | Q132: =SUM(Q125:Q131) -> 0 | R132: =SUM(R125:R131) -> 0 | T132: =SUM(T125:T131) -> 0 | U132: =SUM(U125:U131) -> 0 | W132: =SUM(W125:W131) -> 0 | X132: =SUM(X125:X131) -> 0 | Y132: =SUM(Y125:Y131) -> 0 | Z132: =SUM(Z125) -> 0 | AA132: =SUM(AA125) -> 0 | AB132: =O132+R132+U132+W132+SUM(Y132:AA132) -> 0 | AD132: =SUM(AD125) -> 0 | AE132: =SUM(AE125) -> 0 | AF132: =SUM(AF125) -> 0 | AG132: =SUM(AG125) -> 0 | AH132: =SUM(AH125) -> 0
D133: Non material projects | AB133: 37317 | AC133: 2016
D134: Non material projects | AB134: 49674 | AC134: 2017
B137: 2.3.2 - AUGEX ASSET DATA - LINES
B138: NOTE: TNSP MUST PROVIDE EXPENDITURE INFORMATION ON A PROJECT CLOSE BASIS.
B139: LINE AND PROJECT SUMMARY | L139: PLANT AND EQUIPMENT EXPENDITURE AND VOLUME | Z139: OTHER EXPENDITURE | AB139: TOTAL DIRECT EXPENDITURE ($0's) | AC139: YEARS INCURRED | AD139: ALL RELATED PARTY CONTRACTS | AG139: LAND AND EASEMENTS
B140: LINE ID | D140: PROJECT ID | E140: PROJECT TYPE | F140: PROJECT TRIGGER | G140: VOLTAGE (KV) | H140: ROUTE LINE LENGTH ADDED | L140: TOWERS/POLES (INCLUDING STRUCTURES, AND CIVIL WORKS) | P140: LINES AND CABLES | W140: OTHER PLANT ITEM | X140: INSTALLATION (LABOUR) | Z140: CIVIL WORKS | AA140: OTHER DIRECT | AD140: RELATED PARTY MARGINS | AE140: TOTAL | AF140: ALL NON RELATED PARTYCONTRACTS | AG140: LAND PURCHASES | AH140: EASEMENTS
P141: Type | Q141: Rating (MVA) | S141: N-1 Emergency Rating (MVA) | U141: Circuit KM Added | V141: Expenditure ($0's)
H142: KM ADDED | L142: Configuration | M142: Towers/Poles Added | N142: Towers/Poles Upgraded | O142: Expenditure ($0's) | Q142: PRE | R142: POST | S142: PRE | T142: POST | W142: Expenditure ($0's) | X142: Volume | Y142: Expenditure ($0's) | Z142: Expenditure ($0's) | AD142: Expenditure ($0's) | AG142: Expenditure ($0's)
B143: <Enter line ID>
B150: Project Totals | M150: =SUM(M143:M149) -> 0 | N150: =SUM(N143:N149) -> 0 | O150: =SUM(O143:O149) -> 0 | U150: =SUM(U143:U149) -> 0 | V150: 0 | W150: 0 | X150: 0 | Y150: 0 | Z150: 0 | AA150: 0 | AB150: =O150+R150+U150+W150+SUM(Y150:AA150) -> 0 | AD150: =SUM(AD143:AD149) -> 0 | AE150: =SUM(AE143:AE149) -> 0 | AF150: =SUM(AF143:AF149) -> 0 | AG150: =SUM(AG143:AG149) -> 0 | AH150: =SUM(AH143:AH149) -> 0
B151: <Enter line ID>
B158: Project Totals | M158: =SUM(M151:M157) -> 0 | N158: =SUM(N151:N157) -> 0 | O158: =SUM(O151:O157) -> 0 | U158: =SUM(U151:U157) -> 0 | V158: =SUM(V151:V157) -> 0 | W158: =SUM(W151:W157) -> 0 | X158: 0 | Y158: 0 | Z158: 0 | AA158: 0 | AB158: =O158+R158+U158+W158+SUM(Y158:AA158) -> 0 | AD158: =SUM(AD151:AD157) -> 0 | AE158: =SUM(AE151:AE157) -> 0 | AF158: =SUM(AF151:AF157) -> 0 | AG158: =SUM(AG151:AG157) -> 0 | AH158: =SUM(AH151:AH157) -> 0
B159: <Enter line ID>
B166: Project Totals | M166: =SUM(M159:M165) -> 0 | N166: =SUM(N159:N165) -> 0 | O166: =SUM(O159:O165) -> 0 | U166: =SUM(U159:U165) -> 0 | V166: =SUM(V159:V165) -> 0 | W166: =SUM(W159:W165) -> 0 | X166: 0 | Y166: 0 | Z166: 0 | AA166: 0 | AB166: =O166+R166+U166+W166+SUM(Y166:AA166) -> 0 | AD166: =SUM(AD159:AD165) -> 0 | AE166: =SUM(AE159:AE165) -> 0 | AF166: =SUM(AF159:AF165) -> 0 | AG166: =SUM(AG159:AG165) -> 0 | AH166: =SUM(AH159:AH165) -> 0
B167: <Enter line ID>
B174: Project Totals | M174: =SUM(M167:M173) -> 0 | N174: =SUM(N167:N173) -> 0 | O174: =SUM(O167:O173) -> 0 | U174: =SUM(U167:U173) -> 0 | V174: =SUM(V167:V173) -> 0 | W174: =SUM(W167:W173) -> 0 | X174: 0 | Y174: 0 | Z174: 0 | AA174: 0 | AB174: =O174+R174+U174+W174+SUM(Y174:AA174) -> 0 | AD174: =SUM(AD167:AD173) -> 0 | AE174: =SUM(AE167:AE173) -> 0 | AF174: =SUM(AF167:AF173) -> 0 | AG174: =SUM(AG167:AG173) -> 0 | AH174: =SUM(AH167:AH173) -> 0
B175: <Enter line ID>
B182: Project Totals | M182: =SUM(M175:M181) -> 0 | N182: =SUM(N175:N181) -> 0 | O182: =SUM(O175:O181) -> 0 | U182: =SUM(U175:U181) -> 0 | V182: =SUM(V175:V181) -> 0 | W182: =SUM(W175:W181) -> 0 | X182: 0 | Y182: 0 | Z182: 0 | AA182: 0 | AB182: =O182+R182+U182+W182+SUM(Y182:AA182) -> 0 | AD182: =SUM(AD175:AD181) -> 0 | AE182: =SUM(AE175:AE181) -> 0 | AF182: =SUM(AF175:AF181) -> 0 | AG182: =SUM(AG175:AG181) -> 0 | AH182: =SUM(AH175:AH181) -> 0
B183: <Enter line ID>
B190: Project Totals | M190: =SUM(M183:M189) -> 0 | N190: =SUM(N183:N189) -> 0 | O190: =SUM(O183:O189) -> 0 | U190: =SUM(U183:U189) -> 0 | V190: =SUM(V183:V189) -> 0 | W190: =SUM(W183:W189) -> 0 | X190: 0 | Y190: 0 | Z190: 0 | AA190: 0 | AB190: =O190+R190+U190+W190+SUM(Y190:AA190) -> 0 | AD190: =SUM(AD183:AD189) -> 0 | AE190: =SUM(AE183:AE189) -> 0 | AF190: =SUM(AF183:AF189) -> 0 | AG190: =SUM(AG183:AG189) -> 0 | AH190: =SUM(AH183:AH189) -> 0
B191: <Enter line ID>
B198: Project Totals | M198: =SUM(M191:M197) -> 0 | N198: =SUM(N191:N197) -> 0 | O198: =SUM(O191:O197) -> 0 | U198: =SUM(U191:U197) -> 0 | V198: =SUM(V191:V197) -> 0 | W198: =SUM(W191:W197) -> 0 | X198: 0 | Y198: 0 | Z198: 0 | AA198: 0 | AB198: =O198+R198+U198+W198+SUM(Y198:AA198) -> 0 | AD198: =SUM(AD191:AD197) -> 0 | AE198: =SUM(AE191:AE197) -> 0 | AF198: =SUM(AF191:AF197) -> 0 | AG198: =SUM(AG191:AG197) -> 0 | AH198: =SUM(AH191:AH197) -> 0
D199: Non material projects | AB199: 340602 | AC199: 2015
D200: Non material projects | AB200: 2584091 | AC200: 2016
D201: Non material projects | AB201: 1335504 | AC201: 2017
B205: 2.3.4 - AUGEX - TOTAL EXPENDITURE
C207: EXPENDITURE ($0's)
B208: AUGMENTATION CAPEX (as incurred) | C208: =CRY -> 2016-17
B209: Substations | C209: 6247910.433
B210: Lines | C210: 4365088.865
B211: Other assets | C211: 8676325.546
B212: Total augmentation capex | C212: =SUM(C209:C211) -> 19289324.84

Sheet 2.5 Connections
B1: REGULATORY REPORTING STATEMENT
B2: =INDEX(dms_TradingNameFull_List,MATCH(dms_TradingName,dms_TradingName_List)) -> ElectraNet
B3: =CONCATENATE((LOOKUP(dms_Model,dms_Model_List,dms_Worksheet_List))&" "&CRY) -> CATEGORY ANALYSIS 2016-17
B4: 2.5 CONNECTIONS EXPENDITURE
B6: There are TWO tables on this worksheet. Each has been grouped (or sub-grouped). See the Instructions sheet on how to group or ungroup data.
B8: 2.5.1 - EXPENDITURE ON CONNECTION PROJECTS
C9: EXPENDITURE ($0's)
B10: CONNECTION PROJECT | C10: =CRY -> 2016-17
B11: DIRECT MATERIALS EXPENDITURE
B12: EC.11209 Munno Para New 275_66 kV Connection Point | C12: 4678499.03
B37: DIRECT LABOUR EXPENDITURE
B38: =IF(ISBLANK(B12),"",B12) -> EC.11209 Munno Para New 275_66 kV Connection Point | C38: 3695915.777
B39: =IF(ISBLANK(B13),"",B13) -> 
B66: 2.5.2 - DESCRIPTION OF CONNECTION PROJECTS
C67: CONNECTION RATING (MVA) | D67: CONNECTION VOLTAGE (KV) | E67: UNDERGROUND / OVERHEAD | F67: YEAR CONNECTION PROJECT COMPLETED
B68: =IF(ISBLANK(B12),"",B12) -> EC.11209 Munno Para New 275_66 kV Connection Point | C68: 225 | D68: 275 | E68: Overhead | F68: 2017

Sheet 2.6 Non-network
B1: REGULATORY REPORTING STATEMENT
B2: =INDEX(dms_TradingNameFull_List,MATCH(dms_TradingName,dms_TradingName_List)) -> ElectraNet
B3: =CONCATENATE((LOOKUP(dms_Model,dms_Model_List,dms_Worksheet_List))&" "&CRY) -> CATEGORY ANALYSIS 2016-17
B4: 2.6 NON NETWORK EXPENDITURE
B6: There are THREE tables on this worksheet - each has been 'grouped' (and sub-grouped) for easy navigation. See the Instructions sheet on how to group or ungroup tables.
B8: 2.6.1 - NON-NETWORK EXPENDITURE
E9: EXPENDITURE ($0's)
B10: SERVICE SUBCATEGORY | C10: ASSET CATEGORY | E10: =CRY -> 2016-17
B11: OPEX
B12: IT & COMMUNICATIONS | C12: Client device expenditure | E12: 253625.37
C13: Recurrent expenditure | E13: 6414745.9
C14: Non-recurrent expenditure
B15: MOTOR VEHICLES | C15: Car | E15: 107017.32
C16: Light commercial vehicle
C17: Elevated work platform (LCV)
C18: Elevated work platform (HCV)
C19: Heavy commercial vehicle
B20: BUILDINGS AND PROPERTY | C20: Total buildings and property expenditure | E20: 2215583.475
B21: OTHER | C21: Other expenditure
B22: OTHER - DNSP nominated
B33: CAPEX
B34: IT & COMMUNICATIONS | C34: Client device expenditure | E34: 3733222.191
C35: Recurrent expenditure | E35: 3273867.223
C36: Non-recurrent expenditure | E36: 1269603.76
B37: MOTOR VEHICLES | C37: Car | E37: 212128.2
C38: Light commercial vehicle
C39: Elevated work platform (LCV)
C40: Elevated work platform (HCV)
C41: Heavy commercial vehicle
B42: BUILDINGS AND PROPERTY | C42: Total buildings and property expenditure | E42: 393757.653
B43: OTHER | C43: Other expenditure
B44: OTHER - DNSP nominated | C44: Plant and equipment | E44: 39388.184
B58: 2.6.2 - ANNUAL DESCRIPTOR METRICS - IT & COMMUNICATIONS EXPENDITURE
E59: VOLUMES (0's)
B60: NON-NETWORK CATEGORY | C60: DESCRIPTOR METRIC | E60: =CRY -> 2016-17
B61: IT & COMMUNICATIONS | C61: Employee numbers | E61: 260.5
C62: User numbers | E62: 313.686
C63: Number of devices | E63: 588.6263398
B66: 2.6.3 - ANNUAL DESCRIPTOR METRICS - MOTOR VEHICLES
E67: VOLUMES / %
B68: ASSET CATEGORY | C68: DESCRIPTOR METRIC | D68: UNITS | E68: =CRY -> 2016-17
B69: CAR | C69: Average kilometres travelled | D69: 0's | E69: 24.55660837
C70: Number purchased | D70: 0's | E70: 15.58333333
C71: Number leased | D71: 0's | E71: 6.333333333
C72: Number in fleet | D72: 0's | E72: 21.91666667
C73: Proportion of total fleet expenditure allocated as regulatory expenditure | D73: (per cent) | E73: 0.942
B74: LIGHT COMMERCIAL VEHICLE | C74: Average kilometres travelled | D74: 0's | E74: 0
C75: Number purchased | D75: 0's | E75: 0
C76: Number leased | D76: 0's | E76: 0
C77: Number in fleet | D77: 0's | E77: 0
C78: Proportion of total fleet expenditure allocated as regulatory expenditure | D78: (per cent) | E78: 0
B79: ELEVATED WORK PLATFORM (LCV) | C79: Average kilometres travelled | D79: 0's | E79: 0
C80: Number purchased | D80: 0's | E80: 0
C81: Number leased | D81: 0's | E81: 0
C82: Number in fleet | D82: 0's | E82: 0
C83: Proportion of total fleet expenditure allocated as regulatory expenditure | D83: (per cent) | E83: 0
B84: ELEVATED WORK PLATFORM (HCV) | C84: Average kilometres travelled | D84: 0's | E84: 0
C85: Number purchased | D85: 0's | E85: 0
C86: Number leased | D86: 0's | E86: 0
C87: Number in fleet | D87: 0's | E87: 0
C88: Proportion of total fleet expenditure allocated as regulatory expenditure | D88: (per cent) | E88: 0
B89: HEAVY COMMERCIAL VEHICLE | C89: Average kilometres travelled | D89: 0's | E89: 0
C90: Number purchased | D90: 0's | E90: 0
C91: Number leased | D91: 0's | E91: 0
C92: Number in fleet | D92: 0's | E92: 0
C93: Proportion of total fleet expenditure allocated as regulatory expenditure | D93: (per cent) | E93: 0

Sheet 2.7 Vegetation management
B1: REGULATORY REPORTING STATEMENT
B2: =INDEX(dms_TradingNameFull_List,MATCH(dms_TradingName,dms_TradingName_List)) -> ElectraNet
B3: =CONCATENATE((LOOKUP(dms_Model,dms_Model_List,dms_Worksheet_List))&" "&CRY) -> CATEGORY ANALYSIS 2016-17
B4: 2.7 VEGETATION MANAGEMENT
B6: There are THREE tables on this worksheet. Each has been 'grouped' for easy navigation. See the Instructions sheet on how to group or ungroup data.
B8: 2.7.1 - DESCRIPTOR METRICS BY ZONE
E9: VOLUMES
B10: ZONES | C10: ASSET / ENVIRONMENTAL FACTOR | D10: UNITS | E10: =CRY -> 2016-17
B11: HBFRA (High Bushfire Risk Area) | C11: Route line length within zone | D11: km | E11: 1015
C12: Number of maintenance spans | D12: 0's | E12: 353
C13: Total length of maintenance spans | D13: km | E13: 122.3851
C14: Average number of trees per maintenance span | D14: 0's | E14: 20.1
C15: Length of vegetation corridors | D15: km | E15: 1015
C16: Average width of vegetation corridors | D16: metres | E16: 93.14849878
C17: Average frequency of cutting cycle | D17: years | E17: 1
B18: BFRA (Bushfire Risk Area) | C18: Route line length within zone | D18: km | E18: 2629
C19: Number of maintenance spans | D19: 0's | E19: 328
C20: Total length of maintenance spans | D20: km | E20: 110.6672
C21: Average number of trees per maintenance span | D21: 0's | E21: 13.9
C22: Length of vegetation corridors | D22: km | E22: 2629
C23: Average width of vegetation corridors | D23: metres | E23: 91.21363128
C24: Average frequency of cutting cycle | D24: years | E24: 1
B25: NBFRA (Non Bushfire Risk Area) | C25: Route line length within zone | D25: km | E25: 891.7
C26: Number of maintenance spans | D26: 0's | E26: 539
C27: Total length of maintenance spans | D27: km | E27: 183.0444
C28: Average number of trees per maintenance span | D28: 0's | E28: 11.3
C29: Length of vegetation corridors | D29: km | E29: 891.7
C30: Average width of vegetation corridors | D30: metres | E30: 30.31509067
C31: Average frequency of cutting cycle | D31: years | E31: 3
B32: ZONE 4 | C32: Route line length within zone | D32: km
C33: Number of maintenance spans | D33: 0's
C34: Total length of maintenance spans | D34: km
C35: Average number of trees per maintenance span | D35: 0's
C36: Length of vegetation corridors | D36: km
C37: Average width of vegetation corridors | D37: metres
C38: Average frequency of cutting cycle | D38: years
B39: ZONE 5 | C39: Route line length within zone | D39: km
C40: Number of maintenance spans | D40: 0's
C41: Total length of maintenance spans | D41: km
C42: Average number of trees per maintenance span | D42: 0's
C43: Length of vegetation corridors | D43: km
C44: Average width of vegetation corridors | D44: metres
C45: Average frequency of cutting cycle | D45: years
B46: ZONE 6 | C46: Route line length within zone | D46: km
C47: Number of maintenance spans | D47: 0's
C48: Total length of maintenance spans | D48: km
C49: Average number of trees per maintenance span | D49: 0's
C50: Length of vegetation corridors | D50: km
C51: Average width of vegetation corridors | D51: metres
C52: Average frequency of cutting cycle | D52: years
B53: ZONE 7 | C53: Route line length within zone | D53: km
C54: Number of maintenance spans | D54: 0's
C55: Total length of maintenance spans | D55: km
C56: Average number of trees per maintenance span | D56: 0's
C57: Length of vegetation corridors | D57: km
C58: Average width of vegetation corridors | D58: metres
C59: Average frequency of cutting cycle | D59: years
B60: ZONE 8 | C60: Route line length within zone | D60: km
C61: Number of maintenance spans | D61: 0's
C62: Total length of maintenance spans | D62: km
C63: Average number of trees per maintenance span | D63: 0's
C64: Length of vegetation corridors | D64: km
C65: Average width of vegetation corridors | D65: metres
C66: Average frequency of cutting cycle | D66: years
B67: ZONE 9 | C67: Route line length within zone | D67: km
C68: Number of maintenance spans | D68: 0's
C69: Total length of maintenance spans | D69: km
C70: Average number of trees per maintenance span | D70: 0's
C71: Length of vegetation corridors | D71: km
C72: Average width of vegetation corridors | D72: metres
C73: Average frequency of cutting cycle | D73: years
B74: ZONE 10 | C74: Route line length within zone | D74: km
C75: Number of maintenance spans | D75: 0's
C76: Total length of maintenance spans | D76: km
C77: Average number of trees per maintenance span | D77: 0's
C78: Length of vegetation corridors | D78: km
C79: Average width of vegetation corridors | D79: metres
C80: Average frequency of cutting cycle | D80: years
B83: 2.7.2 - EXPENDITURE METRICS BY ZONE
E84: EXPENDITURE ($0's)
B85: ZONES | C85: SERVICE SUBCATEGORY | E85: =CRY -> 2016-17
B86: =B11 -> HBFRA (High Bushfire Risk Area) | C86: Tree trimming
C87: Vegetation corridor clearance
C88: Inspection
C89: Audit
C90: Contractor liaison expenditure
C91: Other vegetation management expenditure
B92: =B18 -> BFRA (Bushfire Risk Area) | C92: Tree trimming
C93: Vegetation corridor clearance
C94: Inspection
C95: Audit
C96: Contractor liaison expenditure
C97: Other vegetation management expenditure
B98: =B25 -> NBFRA (Non Bushfire Risk Area) | C98: Tree trimming
C99: Vegetation corridor clearance
C100: Inspection
C101: Audit
C102: Contractor liaison expenditure
C103: Other vegetation management expenditure
B104: =B32 -> ZONE 4 | C104: Tree trimming
C105: Vegetation corridor clearance
C106: Inspection
C107: Audit
C108: Contractor liaison expenditure
C109: Other vegetation management expenditure
B110: =B39 -> ZONE 5 | C110: Tree trimming
C111: Vegetation corridor clearance
C112: Inspection
C113: Audit
C114: Contractor liaison expenditure
C115: Other vegetation management expenditure
B116: =B46 -> ZONE 6 | C116: Tree trimming
C117: Vegetation corridor clearance
C118: Inspection
C119: Audit
C120: Contractor liaison expenditure
C121: Other vegetation management expenditure
B122: =B53 -> ZONE 7 | C122: Tree trimming
C123: Vegetation corridor clearance
C124: Inspection
C125: Audit
C126: Contractor liaison expenditure
C127: Other vegetation management expenditure
B128: =B60 -> ZONE 8 | C128: Tree trimming
C129: Vegetation corridor clearance
C130: Inspection
C131: Audit
C132: Contractor liaison expenditure
C133: Other vegetation management expenditure
B134: =B67 -> ZONE 9 | C134: Tree trimming
C135: Vegetation corridor clearance
C136: Inspection
C137: Audit
C138: Contractor liaison expenditure
C139: Other vegetation management expenditure
B140: =B74 -> ZONE 10 | C140: Tree trimming
C141: Vegetation corridor clearance
C142: Inspection
C143: Audit
C144: Contractor liaison expenditure
C145: Other vegetation management expenditure
B148: 2.7.3 - DESCRIPTOR METRICS ACROSS ALL ZONES - UNPLANNED VEGETATION EVENTS
E149: VOLUMES (0's)
B150: DESCRIPTOR METRIC | E150: =CRY -> 2016-17
B151: Number of fire starts caused by vegetation grow-ins (NSP responsibility) | E151: 0
B152: Number of fire starts caused by vegetation blow-ins and fall-ins (NSP responsibility) | E152: 0
B153: Number of outages caused by vegetation grow-ins (NSP responsibility) | E153: 0
B154: Number of outages caused by vegetation blow-ins and fall-ins (NSP responsibility) | E154: 0
B155: Number of fire starts caused by vegetation grow-ins (other party responsibility) | E155: 0
B156: Number of fire starts caused by vegetation blow-ins and fall-ins (other party responsibility) | E156: 0
B157: Number of outages caused by vegetation grow-ins (other party responsibility) | E157: 0
B158: Number of outages caused by vegetation blow-ins and fall-ins (other party responsibility) | E158: 0

Sheet 2.8 Maintenance
B1: REGULATORY REPORTING STATEMENT
B2: =INDEX(dms_TradingNameFull_List,MATCH(dms_TradingName,dms_TradingName_List)) -> ElectraNet
B3: =CONCATENATE((LOOKUP(dms_Model,dms_Model_List,dms_Worksheet_List))&" "&CRY) -> CATEGORY ANALYSIS 2016-17
B4: 2.8 MAINTENANCE
B6: There are TWO tables on this worksheet. Each has been 'grouped' for easy navigation. See the Instructions sheet on how to group or ungroup data.
B8: 2.8.1 - DESCRIPTOR METRICS FOR ROUTINE AND NON-ROUTINE MAINTENANCE
F9: ASSET QUANTITY | H9: AVERAGE AGE OF ASSET GROUP | I9: INSPECTION CYCLE (YEARS) | J9: MAINTENANCE CYCLE (YEARS)
B10: MAINTENANCE ACTIVITY | C10: MAINTENANCE ASSET CATEGORY | D10: MEASURE / ASSET QUANTITY | E10: UNITS | F10: AT YEAR END | G10: INSPECTED/ MAINTAINED
F11: =CRY -> 2016-17 | G11: =CRY -> 2016-17 | H11: =CRY -> 2016-17
B12: Transmission lines maintenance | C12: Transmission towers | D12: Number of towers | E12: 0's | F12: 13.257 | G12: 13.257 | H12: 45.2 | I12: 0.5 | J12: Nil. Cond mon.&corr mtce
C13: Transmission tower support structures | D13: Number of towers | E13: 0's | F13: 58.956 | G13: 58.956 | H13: 43.34204473 | I13: 0.5 | J13: Nil. Cond mon.&corr mtce
C14: Conductors | D14: Route length | E14: km | F14: 5.49237 | G14: 5.49237 | H14: 43.7 | I14: 0.5 | J14: Nil. Cond mon.&corr mtce
C15: Transmission cables | D15: Route length | E15: km | F15: 0.027 | G15: 0.027 | H15: 13.4 | I15: 0.02 | J15: Nil. Cond mon.&corr mtce
B16: Substations equipment & property maintenance | C16: Substation switchbays (incl. Reactive plant) | D16: Number of switchbays | E16: 0's | F16: 1.467 | G16: 1.467 | H16: 24.9 | I16: 0.25 | J16: 6
C17: Substation power transformers | D17: Number of transformers | E17: 0's | F17: 0.139 | G17: 0.139 | H17: 28.2 | I17: 0.25 | J17: 6
C18: Substation property | D18: Number of substation properties maintained | E18: 0's | F18: 0.078 | G18: 0.078 | H18: 38.4 | I18: 0.25 | J18: 0.5
B19: SCADA & network control maintenance | C19: SCADA & network control maintenance | D19: Number of Comms Sites | E19: 0's | F19: 121 | G19: 121 | H19: 28.9 | I19: 0.5 | J19: Nil. Cond mon.&corr mtce
B20: Protection systems maintenance | C20: Protection systems maintenance | D20: Number of Protection Systems | E20: 0's | F20: 1391 | G20: 1391 | H20: 13 | I20: 0.25 | J20: 4
B21: Other maintenance activity | C21: Right of way (Row Maintenance) | D21: Length (Route KM) | E21: km | F21: 4536 | G21: 4536 | H21: 43.7 | I21: 0.5 | J21: 3
B46: 2.8.2 - COST METRICS FOR ROUTINE AND NON-ROUTINE MAINTENANCE
F47: DIRECT EXPENDITURE ($0's)
B48: ASSET CATEGORIES | C48: ASSET SUBCATEGORIES | F48: ROUTINE MAINTENANCE | G48: NON-ROUTINE MAINTENANCE
F49: =CRY -> 2016-17 | G49: =CRY -> 2016-17
B50: Transmission lines maintenance | C50: Transmission towers | F50: 1562206.794 | G50: 9570469.939
C51: Transmission tower support structures | F51: 1454450.091 | G51: 3463140.639
C52: Conductors | F52: 453582.3828 | G52: 1816430.639
C53: Transmission cables | F53: 461082.6331 | G53: 17138.98369
B54: Substations equipment & property maintenance | C54: Substation switchbays (incl. Reactive plant) | F54: 1695642.852 | G54: 3019848.534
C55: Substation power transformers | F55: 786941.5309 | G55: 1660064.303
C56: Substation property | F56: 3418355.207 | G56: 3360762.483
B57: SCADA & network control maintenance | C57: SCADA & network control maintenance | F57: 2099512.68 | G57: 488261.72
B58: Protection systems maintenance | C58: Protection systems maintenance | F58: 2384134.49 | G58: 1236963.26
B59: Other maintenance activity | C59: =IF(ISBLANK(C21),"",C21) -> Right of way (Row Maintenance) | D59: =IF(ISBLANK(D21),"",D21) -> Length (Route KM) | E59: km | F59: 1945579 | G59: 93318.94
C60: =IF(ISBLANK(C22),"",C22) -> 

Sheet 2.10 Overheads
B1: REGULATORY REPORTING STATEMENT
B2: =INDEX(dms_TradingNameFull_List,MATCH(dms_TradingName,dms_TradingName_List)) -> ElectraNet
B3: =CONCATENATE((LOOKUP(dms_Model,dms_Model_List,dms_Worksheet_List))&" "&CRY) -> CATEGORY ANALYSIS 2016-17
B4: 2.10 OVERHEADS
B7: There are TWO tables on this worksheet. Each has been 'grouped' (and sub-grouped) for easy navigation. See the Instructions sheet on how to group or ungroup data.
B9: Instructions
B10: Enter each expenditure category currently reported under annual Information Guidelines.
B12: 2.10.1 - NETWORK OVERHEADS EXPENDITURE
D13: EXPENDITURE ($0's)
D14: =CRY -> 2016-17
B15: MAINTENANCE SUPPORT
B16: Prescribed Services | C16: Total | D16: 6989004.964
B41: Negotiated Services | C41: Total | D41: 55316.771
B42: Unregulated Services | C42: Total | D42: 164430.5843
B43: NETWORK MONITORING AND CONTROL
B44: Prescribed Services | C44: Total | D44: 6754319.946
B65: Negotiated Services | C65: Total | D65: -235.79
B66: Unregulated Services | C66: Total | D66: 21200.99
B67: ASEET MANAGEMENT SUPPORT
B68: Prescribed Services | C68: Total | D68: 11269541.23
B94: Negotiated Services | C94: Total | D94: -404.93
B95: Unregulated Services | C95: Total | D95: 1308001.81
B99: 2.10.2 - CORPORATE OVERHEADS EXPENDITURE
D100: EXPENDITURE ($0's)
D101: =CRY -> 2016-17
B102: CORPORATE OVERHEADS
B103: Prescribed Services | C103: Total | D103: 26883935.62
B128: Negotiated Services | C128: Total | D128: 0.04
B129: Unregulated Services | C129: Total | D129: 19483.34

Sheet 2.11 Labour
B1: REGULATORY REPORTING STATEMENT
B2: =INDEX(dms_TradingNameFull_List,MATCH(dms_TradingName,dms_TradingName_List)) -> ElectraNet
B3: =CONCATENATE((LOOKUP(dms_Model,dms_Model_List,dms_Worksheet_List))&" "&CRY) -> CATEGORY ANALYSIS 2016-17
B4: 2.11 LABOUR
B6: There are TWO tables on this worksheet. Each table has been 'grouped' (and sub-grouped) for easy navigation. See the Instructions sheet on how to group or ungroup data.
B8: 2.11.1 - COST METRICS PER ANNUM
D9: ASL (0's) | E9: TOTAL LABOUR EXPENDITURE ($0's) | F9: AVERAGE PRODUCTIVE WORK HOURS PER ASL (0's) | G9: STAND-DOWN OCCURENCES PER ASL (0's)
D11: =CRY -> 2016-17 | E11: =CRY -> 2016-17 | F11: =CRY -> 2016-17 | G11: =CRY -> 2016-17
B12: CORPORATE OVERHEADS | C12: Executive manager | D12: 6.616400383 | E12: 2547102.8 | F12: 1947.791738 | G12: 0
C13: Senior manager | D13: 4.12125 | E13: 1228669.119 | F13: 2139.520776 | G13: 0
C14: Manager | D14: 17.86040294 | E14: 3609531.832 | F14: 1701.81403 | G14: 0
C15: Professional | D15: 45.71313186 | E15: 7459192.644 | F15: 1682.60795 | G15: 0
C16: Semi professional | D16: 11.83897797 | E16: 1493823.114 | F16: 1815.204171 | G16: 0
C17: Support staff | D17: 15.3970993 | E17: 1702919.083 | F17: 1682.551986 | G17: 0
C18: Intern, junior staff, apprentice | D18: 0 | E18: 0 | F18: 0 | G18: 0
B19: NETWORK OVERHEADS | C19: Executive manager | G19: 0
C20: Senior manager | D20: 0 | E20: 0 | F20: 0 | G20: 0
C21: Manager | D21: 19.44158333 | E21: 4032448.796 | F21: 1711.023905 | G21: 0
C22: Professional | D22: 153.8346003 | E22: 29102152.92 | F22: 1616.457933 | G22: 0
C23: Semi professional | D23: 5.131562261 | E23: 718420.7742 | F23: 1569.74613 | G23: 0
C24: Support staff | D24: 5.2585 | E24: 577572.4094 | F24: 1490.890938 | G24: 0
C25: Intern, junior staff, apprentice | D25: 0 | E25: 0 | F25: 0 | G25: 0
B26: TOTAL DIRECT NETWORK LABOUR | C26: Skilled electrical worker
C27: Skilled non electical worker
C28: Apprentice
C29: Unskilled worker
B32: 2.11.2 - DESCRIPTOR METRICS
B33: AVERAGE PRODUCTIVE WORK HOURS PER ASL
D34: ORDINARY TIME (0's) | F34: OVERTIME (0's)
D35: PER ASL | E35: HOURLY RATE PER ASL | F35: PER ASL | G35: HOURLY RATE PER ASL
D36: =CRY -> 2016-17 | E36: =CRY -> 2016-17 | F36: =CRY -> 2016-17 | G36: =CRY -> 2016-17
B37: CORPORATE OVERHEADS | C37: Executive manager | D37: 1947.791738 | E37: 197.6433361 | F37: 0 | G37: 0
C38: Senior manager | D38: 2139.520776 | E38: 139.3443855 | F38: 0 | G38: 0
C39: Manager | D39: 1700.218321 | E39: 118.7729902 | F39: 1.59570868 | G39: 98.30923351
C40: Professional | D40: 1681.743866 | E40: 96.99105841 | F40: 0.8640843099 | G40: 69.25268827
C41: Semi professional | D41: 1795.016618 | E41: 69.06340165 | F41: 20.1875534 | G41: 109.3956633
C42: Support staff | D42: 1675.407783 | E42: 65.84547699 | F42: 7.144202806 | G42: 39.46821066
C43: Intern, junior staff, apprentice | D43: 0 | E43: 0 | F43: 0 | G43: 0
B44: NETWORK OVERHEADS | C44: Executive manager | D44: 0 | E44: 0 | F44: 0 | G44: 0
C45: Senior manager | D45: 0 | E45: 0 | F45: 0 | G45: 0
C46: Manager | D46: 1711.023905 | E46: 121.2219185 | F46: 0 | G46: 0
C47: Professional | D47: 1603.081879 | E47: 116.8458907 | F47: 13.37605452 | G47: 139.4036638
C48: Semi professional | D48: 1529.846 | E48: 88.44787419 | F48: 39.90012975 | G48: 117.512761
C49: Support staff | D49: 1490.890938 | E49: 73.67135971 | F49: 0 | G49: 0
C50: Intern, junior staff, apprentice | D50: 0 | E50: 0 | F50: 0 | G50: 0
B51: TOTAL DIRECT NETWORK LABOUR | C51: Skilled electrical worker
C52: Skilled non electical worker
C53: Apprentice
C54: Unskilled worker

Sheet 2.12 Input tables
B1: REGULATORY REPORTING STATEMENT
B2: =INDEX(dms_TradingNameFull_List,MATCH(dms_TradingName,dms_TradingName_List)) -> ElectraNet
B3: =CONCATENATE((LOOKUP(dms_Model,dms_Model_List,dms_Worksheet_List))&" "&CRY) -> CATEGORY ANALYSIS 2016-17
B4: 2.12 INPUT TABLES
B7: 2.12 INPUT TABLES
D8: DIRECT MATERIAL EXPENDITURE ($0's) | E8: DIRECT LABOUR EXPENDITURE ($0's) | F8: CONTRACT EXPENDITURE ($0's) | G8: OTHER EXPENDITURE ($0's) | H8: RELATED PARTY CONTRACT EXPENDITURE ($0's) | I8: RELATED PARTY CONTRACT MARGIN
D9: =CRY -> 2016-17 | E9: 2016-17 | F9: 2016-17 | G9: 2016-17 | H9: 2016-17 | I9: 2016-17
B10: VEGETATION MANAGEMENT | C10: ='2.7 Vegetation management'!B11 -> HBFRA (High Bushfire Risk Area) | E10: 33103 | F10: 456265.0548
C11: ='2.7 Vegetation management'!B18 -> BFRA (Bushfire Risk Area) | E11: 85742 | F11: 1181793.92
C12: ='2.7 Vegetation management'!B25 -> NBFRA (Non Bushfire Risk Area) | E12: 29082 | F12: 400838.9649
C13: ='2.7 Vegetation management'!B32 -> ZONE 4
C14: ='2.7 Vegetation management'!B39 -> ZONE 5
C15: ='2.7 Vegetation management'!B46 -> ZONE 6
C16: ='2.7 Vegetation management'!B53 -> ZONE 7
C17: ='2.7 Vegetation management'!B60 -> ZONE 8
C18: ='2.7 Vegetation management'!B67 -> ZONE 9
C19: ='2.7 Vegetation management'!B74 -> ZONE 10
B30: ROUTINE MAINTENANCE | C30: Transmission Lines Maintenance | E30: 20914.52728 | F30: 3910407.373
C31: Substations Equipment & Propoerty Maintenance | E31: 31392.84068 | F31: 5869546.749
C32: SCADA & Network Control Maintenance | E32: 11169.35126 | F32: 2088343.329
C33: Protection Systems Maintenance | E33: 12683.53167 | F33: 2371450.958
B48: NON-ROUTINE MAINTENANCE | C48: Transmission Lines Maintenance | E48: 79092.99861 | F48: 14788086.8
C49: Substations Equipment & Propoerty Maintenance | E49: 42776.17749 | F49: 7997899.143
C50: Scada & Network Control Maintenance | E50: 2597.539282 | F50: 485664.1807
C51: Protection Systems Maintenance | E51: 6580.611435 | F51: 1230382.649
B64: OVERHEADS | C64: Network Overheads | E64: 17812469.66 | G64: 7200396.48
C65: Corporate Overheads | E65: 11386717.45 | G65: 15497218.17 | H65: 920000
B66: AUGMENTATION | C66: Subtransmission Substations, Switching Stations , Zone Substations | D66: 923446.2191 | E66: 751645.8345 | F66: 4347341.751 | G66: 149548.539
C67: Subtransmission Lines | D67: 1541827.607 | E67: 744812.0832 | F67: 1884824.111 | G67: 178583.959
C68: HV Feeders | D68: 0 | E68: 0
C69: Other Assets | D69: 1351340.577 | E69: 852190.8538 | F69: 6341711.463 | G69: 218154.849
B70: CONNECTIONS | C70: All New Customer Connections | D70: 766812.335 | E70: 439604.689 | F70: 2179129.65 | G70: 54540.4
B71: REPLACEMENT | C71: Transmission Towers | D71: 1249791.578 | E71: 116837.8588 | F71: 1086267.446
C72: Transmission Tower Support Structures | D72: 11358079.59 | E72: 1063948.403 | F72: 9871975.723
C73: Conductors | D73: 1803917.367 | E73: 168640.7929 | F73: 1567890.796
C74: Transmission Cables | D74: 226941.7289 | E74: 21572.97716 | F74: 197248.4186
C75: Substation Switchbays | D75: 10700627.73 | E75: 2902368.668 | F75: 9300545.597
C76: Substation Power Transformers | D76: 3055212.25 | E76: 925605.7423 | F76: 2655464.853
C77: Substation Reactive Plant | D77: 782918.1067 | E77: 207359.5355 | F77: 680480.2236
C78: SCADA network control and protection systems | D78: 8591052.742 | E78: 3355898.382 | F78: 7466989.767
C79: Other | D79: 12179451.76 | E79: 3280028.327 | F79: 10585878.63
B80: NON-NETWORK EXPENDITURE | C80: IT and communications | E80: 5178700.741 | G80: 12121833.75
C81: Motor Vehicles | E81: 18198.12269 | G81: 347801.9046
C82: Buildings And Property | E82: 314067.0172 | G82: 2961026.816
C83: Other | E83: 0 | G83: 0

Sheet 5.2 Asset Age Profile
B1: REGULATORY REPORTING STATEMENT
B2: =INDEX(dms_TradingNameFull_List,MATCH(dms_TradingName,dms_TradingName_List)) -> ElectraNet
B3: =CONCATENATE((LOOKUP(dms_Model,dms_Model_List,dms_Worksheet_List))&" "&CRY) -> CATEGORY ANALYSIS 2016-17
B4: 5.2 ASSET AGE PROFILE
B5: .
B6: There is ONE table on this worksheet. Both ROWS and COLUMNS have been 'grouped' for easy navigation. See the Instructions sheet on how to group or ungroup data.
B8: TABLE 5.2.1 - ASSET AGE PROFILE
D9: ECONOMIC LIFE (YEARS) | F9: INSTALLED ASSETS -˃ QUANTITY CURRENTLY IN COMMISSION BY YEAR
B10: ASSET GROUP | C10: ASSET CATEGORY | D10: MEAN | E10: STANDARD DEVIATION | F10: =CRY -> 2016-17 | G10: =IF(dms_RPT="financial",(VALUE(LEFT(F10,4)-1)&"-"&MID(F10,3,2)),VALUE(LEFT(F10,4)-1)) -> 2015-16 | H10: =IF(dms_RPT="financial",(VALUE(LEFT(G10,4)-1)&"-"&MID(G10,3,2)),VALUE(LEFT(G10,4)-1)) -> 2014-15 | I10: 2013-14 | J10: 2012-13 | K10: 2011-12 | L10: 2010-11 | M10: 2009-10 | N10: 2008-09 | O10: 2007-08 | P10: 2006-07 | Q10: 2005-06 | R10: 2004-05 | S10: 2003-04 | T10: 2002-03 | U10: 2001-02 | V10: 2000-01 | W10: 1999-00 | X10: 1998-99 | Y10: 1997-98 | Z10: 1996-97 | AA10: 1995-96 | AB10: 1994-95 | AC10: 1993-94 | AD10: 1992-93 | AE10: 1991-92 | AF10: 1990-91 | AG10: 1989-90 | AH10: 1988-89 | AI10: 1987-88 | AJ10: 1986-87 | AK10: 1985-86 | AL10: 1984-85 | AM10: =IF(dms_RPT="financial",(VALUE(LEFT(AL10,4)-1)&"-"&MID(AL10,3,2)),VALUE(LEFT(AL10,4)-1)) -> 1983-84 | AN10: 1982-83 | AO10: 1981-82 | AP10: 1980-81 | AQ10: 1979-80 | AR10: 1978-79 | AS10: 1977-78 | AT10: 1976-77 | AU10: 1975-76 | AV10: 1974-75 | AW10: 1973-74 | AX10: 1972-73 | AY10: 1971-72 | AZ10: 1970-71 | BA10: 1969-70 | BB10: 1968-69 | BC10: 1967-68 | BD10: 1966-67 | BE10: 1965-66 | BF10: 1964-65 | BG10: 1963-64 | BH10: 1962-63 | BI10: 1961-62 | BJ10: 1960-61 | BK10: 1959-60 | BL10: 1958-59 | BM10: 1957-58 | BN10: 1956-57 | BO10: 1955-56 | BP10: 1954-55 | BQ10: 1953-54 | BR10: 1952-53 | BS10: =IF(dms_RPT="financial",(VALUE(LEFT(BR10,4)-1)&"-"&MID(BR10,3,2)),VALUE(LEFT(BR10,4)-1)) -> 1951-52 | BT10: 1950-51 | BU10: 1949-50 | BV10: 1948-49 | BW10: 1947-48 | BX10: 1946-47 | BY10: 1945-46 | BZ10: 1944-45 | CA10: 1943-44 | CB10: 1942-43 | CC10: 1941-42 | CD10: 1940-41 | CE10: 1939-40 | CF10: 1938-39 | CG10: 1937-38 | CH10: 1936-37 | CI10: 1935-36 | CJ10: 1934-35 | CK10: 1933-34 | CL10: 1932-33 | CM10: 1931-32 | CN10: 1930-31 | CO10: 1929-30 | CP10: 1928-29 | CQ10: 1927-28 | CR10: 1926-27 | CS10: 1925-26 | CT10: 1924-25 | CU10: 1923-24 | CV10: 1922-23 | CW10: 1921-22 | CX10: 1920-21 | CY10: =IF(dms_RPT="financial",(VALUE(LEFT(CX10,4)-1)&"-"&MID(CX10,3,2)),VALUE(LEFT(CX10,4)-1)) -> 1919-20 | CZ10: 1918-19 | DA10: 1917-18 | DB10: =IF(dms_RPT="financial",(VALUE(LEFT(DA10,4)-1)&"-"&MID(DA10,3,2)),VALUE(LEFT(DA10,4)-1)) -> 1916-17 | DC10: =IF(dms_RPT="financial",(VALUE(LEFT(DB10,4)-1)&"-"&MID(DB10,3,2)),VALUE(LEFT(DB10,4)-1)) -> 1915-16 | DD10: =IF(dms_RPT="financial",(VALUE(LEFT(DC10,4)-1)&"-"&MID(DC10,3,2)),VALUE(LEFT(DC10,4)-1)) -> 1914-15 | DE10: =IF(dms_RPT="financial",(VALUE(LEFT(DD10,4)-1)&"-"&MID(DD10,3,2)),VALUE(LEFT(DD10,4)-1)) -> 1913-14 | DF10: =IF(dms_RPT="financial",(VALUE(LEFT(DE10,4)-1)&"-"&MID(DE10,3,2)),VALUE(LEFT(DE10,4)-1)) -> 1912-13 | DG10: =IF(dms_RPT="financial",(VALUE(LEFT(DF10,4)-1)&"-"&MID(DF10,3,2)),VALUE(LEFT(DF10,4)-1)) -> 1911-12 | DH10: =IF(dms_RPT="financial",(VALUE(LEFT(DG10,4)-1)&"-"&MID(DG10,3,2)),VALUE(LEFT(DG10,4)-1)) -> 1910-11
B11: TRANSMISSION TOWERS Highest operating voltage; Circuit configuration | C11: < = 33 kV; Single Circuit
C12: > 33 kV & < = 66 kV ; Single Circuit | D12: 55 | E12: 7.416198487 | F12: 0 | G12: 0 | H12: 0 | I12: 0 | J12: 0 | K12: 1 | L12: 0 | M12: 0 | N12: 0 | O12: 2 | P12: 0 | Q12: 1 | R12: 0 | S12: 0 | T12: 0 | U12: 0 | V12: 14 | W12: 0 | X12: 2 | Y12: 0 | Z12: 5 | AA12: 0 | AB12: 0 | AC12: 0 | AD12: 0 | AE12: 0 | AF12: 0 | AG12: 0 | AH12: 0 | AI12: 0 | AJ12: 1 | AK12: 0 | AL12: 0 | AM12: 0 | AN12: 0 | AO12: 0 | AP12: 0 | AQ12: 0 | AR12: 0 | AS12: 0 | AT12: 0 | AU12: 0 | AV12: 0 | AW12: 0 | AX12: 0 | AY12: 0 | AZ12: 0 | BA12: 0 | BB12: 0 | BC12: 0 | BD12: 0 | BE12: 0 | BF12: 0 | BG12: 0 | BH12: 0 | BI12: 0 | BJ12: 0 | BK12: 0 | BL12: 0 | BM12: 0 | BN12: 0 | BO12: 0 | BP12: 0 | BQ12: 0 | BR12: 0 | BS12: 0 | BT12: 0 | BU12: 0 | BV12: 0 | BW12: 0 | BX12: 0 | BY12: 0 | BZ12: 0 | CA12: 0 | CB12: 0 | CC12: 0 | CD12: 0 | CE12: 0 | CF12: 0 | CG12: 0 | CH12: 0 | CI12: 0 | CJ12: 0 | CK12: 0 | CL12: 0 | CM12: 0 | CN12: 0 | CO12: 0 | CP12: 0 | CQ12: 0 | CR12: 0 | CS12: 0 | CT12: 0 | CU12: 0 | CV12: 0 | CW12: 0 | CX12: 0 | CY12: 0 | CZ12: 0 | DA12: 0 | DB12: 0 | DC12: 0 | DD12: 0 | DE12: 0 | DF12: 0 | DG12: 0 | DH12: 0
C13: > 66 kV & < = 132 kV ; Single Circuit | D13: 55 | E13: 7.416198487 | F13: 5 | G13: 0 | H13: 4 | I13: 7 | J13: 11 | K13: 9 | L13: 7 | M13: 2 | N13: 57 | O13: 257 | P13: 1 | Q13: 69 | R13: 7 | S13: 0 | T13: 13 | U13: 0 | V13: 61 | W13: 12 | X13: 0 | Y13: 0 | Z13: 296 | AA13: 29 | AB13: 0 | AC13: 0 | AD13: 289 | AE13: 1 | AF13: 0 | AG13: 0 | AH13: 77 | AI13: 0 | AJ13: 175 | AK13: 0 | AL13: 2 | AM13: 0 | AN13: 783 | AO13: 102 | AP13: 7 | AQ13: 0 | AR13: 16 | AS13: 3 | AT13: 17 | AU13: 0 | AV13: 0 | AW13: 0 | AX13: 146 | AY13: 0 | AZ13: 19 | BA13: 832 | BB13: 102 | BC13: 220 | BD13: 791 | BE13: 0 | BF13: 0 | BG13: 0 | BH13: 288 | BI13: 979 | BJ13: 1082 | BK13: 0 | BL13: 0 | BM13: 0 | BN13: 0 | BO13: 0 | BP13: 3 | BQ13: 226 | BR13: 718 | BS13: 626 | BT13: 479 | BU13: 0 | BV13: 0 | BW13: 0 | BX13: 0 | BY13: 0 | BZ13: 0 | CA13: 0 | CB13: 0 | CC13: 0 | CD13: 0 | CE13: 0 | CF13: 0 | CG13: 0 | CH13: 0 | CI13: 0 | CJ13: 0 | CK13: 0 | CL13: 0 | CM13: 0 | CN13: 0 | CO13: 0 | CP13: 0 | CQ13: 0 | CR13: 0 | CS13: 0 | CT13: 0 | CU13: 0 | CV13: 0 | CW13: 0 | CX13: 0 | CY13: 0 | CZ13: 0 | DA13: 0 | DB13: 0 | DC13: 0 | DD13: 0 | DE13: 0 | DF13: 0 | DG13: 0 | DH13: 0
C14: > 132 kV & < = 275 kV ; Single Circuit | D14: 55 | E14: 7.416198487 | F14: 21 | G14: 15 | H14: 0 | I14: 0 | J14: 13 | K14: 0 | L14: 2 | M14: 4 | N14: 0 | O14: 2 | P14: 5 | Q14: 0 | R14: 0 | S14: 0 | T14: 0 | U14: 0 | V14: 0 | W14: 0 | X14: 6 | Y14: 0 | Z14: 0 | AA14: 2 | AB14: 0 | AC14: 0 | AD14: 1 | AE14: 0 | AF14: 0 | AG14: 0 | AH14: 160 | AI14: 0 | AJ14: 4 | AK14: 0 | AL14: 13 | AM14: 6 | AN14: 0 | AO14: 0 | AP14: 5 | AQ14: 0 | AR14: 38 | AS14: 0 | AT14: 0 | AU14: 163 | AV14: 9 | AW14: 0 | AX14: 7 | AY14: 0 | AZ14: 0 | BA14: 0 | BB14: 30 | BC14: 134 | BD14: 4 | BE14: 0 | BF14: 6 | BG14: 0 | BH14: 1 | BI14: 0 | BJ14: 34 | BK14: 1373 | BL14: 52 | BM14: 0 | BN14: 0 | BO14: 0 | BP14: 0 | BQ14: 0 | BR14: 0 | BS14: 0 | BT14: 0 | BU14: 0 | BV14: 0 | BW14: 0 | BX14: 0 | BY14: 0 | BZ14: 0 | CA14: 0 | CB14: 0 | CC14: 0 | CD14: 0 | CE14: 0 | CF14: 0 | CG14: 0 | CH14: 0 | CI14: 0 | CJ14: 0 | CK14: 0 | CL14: 0 | CM14: 0 | CN14: 0 | CO14: 0 | CP14: 0 | CQ14: 0 | CR14: 0 | CS14: 0 | CT14: 0 | CU14: 0 | CV14: 0 | CW14: 0 | CX14: 0 | CY14: 0 | CZ14: 0 | DA14: 0 | DB14: 0 | DC14: 0 | DD14: 0 | DE14: 0 | DF14: 0 | DG14: 0 | DH14: 0
C15: > 275 kV & < = 330 kV ; Single Circuit
C16: > 330 kV & < = 500 kV ; Single Circuit
C17: > 500 kV ; Single Circuit
C18: < = 33 kV; Multiple Circuit
C19: > 33 kV & < = 66 kV ; Multiple Circuit | D19: 55 | E19: 7.416198487 | F19: 0 | G19: 0 | H19: 0 | I19: 0 | J19: 0 | K19: 1 | L19: 0 | M19: 0 | N19: 0 | O19: 12 | P19: 0 | Q19: 0 | R19: 0 | S19: 0 | T19: 0 | U19: 0 | V19: 13 | W19: 0 | X19: 5 | Y19: 0 | Z19: 2 | AA19: 5 | AB19: 0 | AC19: 0 | AD19: 0 | AE19: 0 | AF19: 0 | AG19: 0 | AH19: 0 | AI19: 0 | AJ19: 14 | AK19: 0 | AL19: 0 | AM19: 0 | AN19: 0 | AO19: 0 | AP19: 0 | AQ19: 0 | AR19: 0 | AS19: 0 | AT19: 0 | AU19: 0 | AV19: 0 | AW19: 0 | AX19: 0 | AY19: 0 | AZ19: 0 | BA19: 0 | BB19: 0 | BC19: 0 | BD19: 0 | BE19: 0 | BF19: 0 | BG19: 0 | BH19: 0 | BI19: 0 | BJ19: 0 | BK19: 0 | BL19: 0 | BM19: 0 | BN19: 0 | BO19: 0 | BP19: 0 | BQ19: 0 | BR19: 0 | BS19: 0 | BT19: 0 | BU19: 0 | BV19: 0 | BW19: 0 | BX19: 0 | BY19: 0 | BZ19: 0 | CA19: 0 | CB19: 0 | CC19: 0 | CD19: 0 | CE19: 0 | CF19: 0 | CG19: 0 | CH19: 0 | CI19: 0 | CJ19: 0 | CK19: 0 | CL19: 0 | CM19: 0 | CN19: 0 | CO19: 0 | CP19: 0 | CQ19: 0 | CR19: 0 | CS19: 0 | CT19: 0 | CU19: 0 | CV19: 0 | CW19: 0 | CX19: 0 | CY19: 0 | CZ19: 0 | DA19: 0 | DB19: 0 | DC19: 0 | DD19: 0 | DE19: 0 | DF19: 0 | DG19: 0 | DH19: 0
C20: > 66 kV & < = 132 kV ; Multiple Circuit | D20: 55 | E20: 7.416198487 | F20: 0 | G20: 1 | H20: 0 | I20: 0 | J20: 0 | K20: 0 | L20: 8 | M20: 4 | N20: 0 | O20: 0 | P20: 0 | Q20: 28 | R20: 0 | S20: 0 | T20: 0 | U20: 0 | V20: 20 | W20: 23 | X20: 0 | Y20: 0 | Z20: 0 | AA20: 0 | AB20: 0 | AC20: 0 | AD20: 0 | AE20: 0 | AF20: 0 | AG20: 0 | AH20: 0 | AI20: 0 | AJ20: 0 | AK20: 0 | AL20: 0 | AM20: 10 | AN20: 0 | AO20: 0 | AP20: 0 | AQ20: 16 | AR20: 0 | AS20: 0 | AT20: 0 | AU20: 0 | AV20: 0 | AW20: 0 | AX20: 7 | AY20: 0 | AZ20: 0 | BA20: 0 | BB20: 0 | BC20: 1 | BD20: 0 | BE20: 0 | BF20: 0 | BG20: 0 | BH20: 0 | BI20: 0 | BJ20: 0 | BK20: 0 | BL20: 0 | BM20: 0 | BN20: 0 | BO20: 0 | BP20: 0 | BQ20: 0 | BR20: 2 | BS20: 0 | BT20: 0 | BU20: 0 | BV20: 0 | BW20: 0 | BX20: 0 | BY20: 0 | BZ20: 0 | CA20: 0 | CB20: 0 | CC20: 0 | CD20: 0 | CE20: 0 | CF20: 0 | CG20: 0 | CH20: 0 | CI20: 0 | CJ20: 0 | CK20: 0 | CL20: 0 | CM20: 0 | CN20: 0 | CO20: 0 | CP20: 0 | CQ20: 0 | CR20: 0 | CS20: 0 | CT20: 0 | CU20: 0 | CV20: 0 | CW20: 0 | CX20: 0 | CY20: 0 | CZ20: 0 | DA20: 0 | DB20: 0 | DC20: 0 | DD20: 0 | DE20: 0 | DF20: 0 | DG20: 0 | DH20: 0
C21: > 132 kV & < = 275 kV ; Multiple Circuit | D21: 55 | E21: 7.416198487 | F21: 7 | G21: 0 | H21: 0 | I21: 0 | J21: 1 | K21: 0 | L21: 1 | M21: 1 | N21: 0 | O21: 2 | P21: 1 | Q21: 17 | R21: 0 | S21: 0 | T21: 0 | U21: 0 | V21: 0 | W21: 15 | X21: 0 | Y21: 0 | Z21: 0 | AA21: 0 | AB21: 0 | AC21: 0 | AD21: 142 | AE21: 0 | AF21: 0 | AG21: 0 | AH21: 1049 | AI21: 0 | AJ21: 50 | AK21: 0 | AL21: 534 | AM21: 8 | AN21: 0 | AO21: 0 | AP21: 34 | AQ21: 0 | AR21: 0 | AS21: 0 | AT21: 0 | AU21: 90 | AV21: 0 | AW21: 0 | AX21: 6 | AY21: 0 | AZ21: 0 | BA21: 0 | BB21: 0 | BC21: 58 | BD21: 129 | BE21: 0 | BF21: 0 | BG21: 0 | BH21: 0 | BI21: 0 | BJ21: 0 | BK21: 0 | BL21: 0 | BM21: 0 | BN21: 0 | BO21: 0 | BP21: 0 | BQ21: 0 | BR21: 0 | BS21: 1 | BT21: 0 | BU21: 0 | BV21: 0 | BW21: 0 | BX21: 0 | BY21: 0 | BZ21: 0 | CA21: 0 | CB21: 0 | CC21: 0 | CD21: 0 | CE21: 0 | CF21: 0 | CG21: 0 | CH21: 0 | CI21: 0 | CJ21: 0 | CK21: 0 | CL21: 0 | CM21: 0 | CN21: 0 | CO21: 0 | CP21: 0 | CQ21: 0 | CR21: 0 | CS21: 0 | CT21: 0 | CU21: 0 | CV21: 0 | CW21: 0 | CX21: 0 | CY21: 0 | CZ21: 0 | DA21: 0 | DB21: 0 | DC21: 0 | DD21: 0 | DE21: 0 | DF21: 0 | DG21: 0 | DH21: 0
C22: > 275 kV & < = 330 kV ; Multiple Circuit
C23: > 330 kV & < = 500 kV ; Multiple Circuit
C24: > 500 kV ; Multiple Circuit
C25: Other
B26: TRANSMISSION TOWER SUPPORT STRUCTURES BY: Highest operating voltage; Circuit configuration | C26: < = 33 kV; Single Circuit
C27: > 33 kV & < = 66 kV ; Single Circuit
C28: > 66 kV & < = 132 kV ; Single Circuit
C29: > 132 kV & < = 275 kV ; Single Circuit
C30: > 275 kV & < = 330 kV ; Single Circuit
C31: > 330 kV & < = 500 kV ; Single Circuit
C32: > 500 kV ; Single Circuit
C33: < = 33 kV; Multiple Circuit
C34: > 33 kV & < = 66 kV ; Multiple Circuit
C35: > 66 kV & < = 132 kV ; Multiple Circuit
C36: > 132 kV & < = 275 kV ; Multiple Circuit
C37: > 275 kV & < = 330 kV ; Multiple Circuit
C38: > 330 kV & < = 500 kV ; Multiple Circuit
C39: > 500 kV ; Multiple Circuit
C40: Other
B41: CONDUCTORS BY: Voltage; Maximum continuous rating | C41: < = 33 kV ; < = 100 MVA
C42: < = 33 kV ; > 100 MVA & < = 400 MVA
C43: < = 33 kV ; > 400 MVA
C44: > 33 kV & < = 66 kV ; < = 100 MVA | D44: 55 | E44: 7.416198487 | F44: 0 | G44: 0 | H44: 0 | I44: 0 | J44: 0 | K44: 0 | L44: 0 | M44: 0 | N44: 0 | O44: 0 | P44: 0 | Q44: 0 | R44: 0 | S44: 0 | T44: 0 | U44: 0 | V44: 0 | W44: 0 | X44: 0 | Y44: 0 | Z44: 0 | AA44: 0 | AB44: 0 | AC44: 0 | AD44: 0 | AE44: 0 | AF44: 0 | AG44: 0 | AH44: 0 | AI44: 0 | AJ44: 0 | AK44: 0 | AL44: 0 | AM44: 0 | AN44: 0 | AO44: 0 | AP44: 0 | AQ44: 0 | AR44: 0 | AS44: 0 | AT44: 0 | AU44: 0 | AV44: 0 | AW44: 0 | AX44: 0 | AY44: 0 | AZ44: 0 | BA44: 0 | BB44: 0 | BC44: 0 | BD44: 0 | BE44: 0 | BF44: 0 | BG44: 0 | BH44: 0 | BI44: 0 | BJ44: 0 | BK44: 0 | BL44: 0 | BM44: 0 | BN44: 0 | BO44: 0 | BP44: 0 | BQ44: 0 | BR44: 0 | BS44: 0 | BT44: 0 | BU44: 0 | BV44: 0 | BW44: 0 | BX44: 0 | BY44: 0 | BZ44: 0 | CA44: 0 | CB44: 0 | CC44: 0 | CD44: 0 | CE44: 0 | CF44: 0 | CG44: 0 | CH44: 0 | CI44: 0 | CJ44: 0 | CK44: 0 | CL44: 0 | CM44: 0 | CN44: 0 | CO44: 0 | CP44: 0 | CQ44: 0 | CR44: 0 | CS44: 0 | CT44: 0 | CU44: 0 | CV44: 0 | CW44: 0 | CX44: 0 | CY44: 0 | CZ44: 0 | DA44: 0 | DB44: 0 | DC44: 0 | DD44: 0 | DE44: 0 | DF44: 0 | DG44: 0 | DH44: 0
C45: > 33 kV & < = 66 kV ; > 100 MVA & < = 400 MVA | D45: 55 | E45: 7.416198487 | F45: 0 | G45: 0 | H45: 0 | I45: 0 | J45: 0 | K45: 0 | L45: 0 | M45: 0 | N45: 0 | O45: 0 | P45: 1.126 | Q45: 0 | R45: 0 | S45: 0 | T45: 0 | U45: 0 | V45: 2.641 | W45: 0 | X45: 0 | Y45: 0 | Z45: 2.349 | AA45: 0 | AB45: 0 | AC45: 0 | AD45: 0 | AE45: 0 | AF45: 0 | AG45: 0 | AH45: 0 | AI45: 0 | AJ45: 4.1566 | AK45: 0 | AL45: 0 | AM45: 0 | AN45: 0 | AO45: 0 | AP45: 0 | AQ45: 0 | AR45: 0 | AS45: 0 | AT45: 0 | AU45: 0 | AV45: 0 | AW45: 0 | AX45: 0 | AY45: 0 | AZ45: 0 | BA45: 0 | BB45: 0 | BC45: 0 | BD45: 0 | BE45: 3.096 | BF45: 0 | BG45: 0 | BH45: 0 | BI45: 0 | BJ45: 0 | BK45: 0 | BL45: 0 | BM45: 0 | BN45: 0 | BO45: 0 | BP45: 0 | BQ45: 0 | BR45: 0 | BS45: 0 | BT45: 0 | BU45: 0 | BV45: 0 | BW45: 0 | BX45: 0 | BY45: 0 | BZ45: 0 | CA45: 0 | CB45: 0 | CC45: 0 | CD45: 0 | CE45: 0 | CF45: 0 | CG45: 0 | CH45: 0 | CI45: 0 | CJ45: 0 | CK45: 0 | CL45: 0 | CM45: 0 | CN45: 0 | CO45: 0 | CP45: 0 | CQ45: 0 | CR45: 0 | CS45: 0 | CT45: 0 | CU45: 0 | CV45: 0 | CW45: 0 | CX45: 0 | CY45: 0 | CZ45: 0 | DA45: 0 | DB45: 0 | DC45: 0 | DD45: 0 | DE45: 0 | DF45: 0 | DG45: 0 | DH45: 0
C46: > 33 kV & < = 66 kV ; > 400 MVA
C47: > 66 kV & < = 132 kV ; < = 100 MVA | D47: 55 | E47: 7.416198487 | F47: 0 | G47: 0 | H47: 0 | I47: 0 | J47: 0 | K47: 0 | L47: 0 | M47: 0 | N47: 0 | O47: 0 | P47: 0 | Q47: 0 | R47: 0 | S47: 0 | T47: 0 | U47: 0 | V47: 0 | W47: 0 | X47: 0 | Y47: 0 | Z47: 0 | AA47: 0 | AB47: 0 | AC47: 0 | AD47: 0 | AE47: 0 | AF47: 0 | AG47: 0 | AH47: 0 | AI47: 0 | AJ47: 0 | AK47: 0 | AL47: 0.7271 | AM47: 5.246 | AN47: 0 | AO47: 0 | AP47: 0 | AQ47: 6.8 | AR47: 0 | AS47: 0 | AT47: 4.5962 | AU47: 0 | AV47: 0 | AW47: 0 | AX47: 0 | AY47: 0 | AZ47: 0 | BA47: 0 | BB47: 0 | BC47: 0 | BD47: 70.777 | BE47: 0 | BF47: 0 | BG47: 0 | BH47: 0 | BI47: 301.2775 | BJ47: 232.564 | BK47: 0 | BL47: 0 | BM47: 0 | BN47: 0 | BO47: 0 | BP47: 0 | BQ47: 4.1557 | BR47: 16.7881 | BS47: 0 | BT47: 23.641 | BU47: 26.154 | BV47: 0 | BW47: 0 | BX47: 0 | BY47: 0 | BZ47: 0 | CA47: 0 | CB47: 0 | CC47: 0 | CD47: 0 | CE47: 0 | CF47: 0 | CG47: 0 | CH47: 0 | CI47: 0 | CJ47: 0 | CK47: 0 | CL47: 0 | CM47: 0 | CN47: 0 | CO47: 0 | CP47: 0 | CQ47: 0 | CR47: 0 | CS47: 0 | CT47: 0 | CU47: 0 | CV47: 0 | CW47: 0 | CX47: 0 | CY47: 0 | CZ47: 0 | DA47: 0 | DB47: 0 | DC47: 0 | DD47: 0 | DE47: 0 | DF47: 0 | DG47: 0 | DH47: 0
C48: > 66 kV & < = 132 kV ; > 100 MVA & < = 400 MVA | D48: 55 | E48: 7.416198487 | F48: 0 | G48: 0 | H48: 0 | I48: 0 | J48: 0 | K48: 0 | L48: 0.1949 | M48: 0 | N48: 0 | O48: 42.158112 | P48: 24.146139 | Q48: 0 | R48: 0.519 | S48: 0 | T48: 0 | U48: 0 | V48: 10.8776 | W48: 0 | X48: 7.441 | Y48: 0 | Z48: 0 | AA48: 2.6461 | AB48: 80.5854 | AC48: 0 | AD48: 90.5663 | AE48: 9.948 | AF48: 0 | AG48: 0 | AH48: 20.7196 | AI48: 0 | AJ48: 37.275 | AK48: 0 | AL48: 0 | AM48: 1.534 | AN48: 213.2149 | AO48: 0 | AP48: 0 | AQ48: 13.136 | AR48: 0 | AS48: 0.854 | AT48: 0 | AU48: 0 | AV48: 0 | AW48: 0 | AX48: 47.3775 | AY48: 0 | AZ48: 10.123 | BA48: 351.3847 | BB48: 26.54392 | BC48: 87.1334 | BD48: 0 | BE48: 262.955555 | BF48: 0 | BG48: 0 | BH48: 118.4284 | BI48: 47.3051 | BJ48: 0 | BK48: 180.4235 | BL48: 5.5716 | BM48: 0 | BN48: 0 | BO48: 0 | BP48: 0.336 | BQ48: 0 | BR48: 93.27024 | BS48: 143.4008 | BT48: 245.1426 | BU48: 6.879 | BV48: 0 | BW48: 0 | BX48: 0 | BY48: 0 | BZ48: 0 | CA48: 0 | CB48: 0 | CC48: 0 | CD48: 0 | CE48: 0 | CF48: 0 | CG48: 0 | CH48: 0 | CI48: 0 | CJ48: 0 | CK48: 0 | CL48: 0 | CM48: 0 | CN48: 0 | CO48: 0 | CP48: 0 | CQ48: 0 | CR48: 0 | CS48: 0 | CT48: 0 | CU48: 0 | CV48: 0 | CW48: 0 | CX48: 0 | CY48: 0 | CZ48: 0 | DA48: 0 | DB48: 0 | DC48: 0 | DD48: 0 | DE48: 0 | DF48: 0 | DG48: 0 | DH48: 0
C49: > 66 kV & < = 132 kV ; > 400 MVA
C50: > 132 kV & < = 275 kV ; < = 200 MVA
C51: > 132 kV & < = 275 kV ; > 200 MVA & < = 600 MVA | D51: 55 | E51: 7.416198487 | F51: 0 | G51: 0 | H51: 0 | I51: 0 | J51: 0 | K51: 1.745665 | L51: 0 | M51: 0 | N51: 0 | O51: 0 | P51: 0 | Q51: 14.15256 | R51: 0 | S51: 0 | T51: 0 | U51: 0 | V51: 0 | W51: 8.003 | X51: 0 | Y51: 0 | Z51: 0 | AA51: 0 | AB51: 0 | AC51: 0 | AD51: 0 | AE51: 0 | AF51: 0 | AG51: 0 | AH51: 0 | AI51: 0 | AJ51: 0 | AK51: 0 | AL51: 5.2315 | AM51: 5.533 | AN51: 0 | AO51: 0 | AP51: 0 | AQ51: 0 | AR51: 9.876 | AS51: 0 | AT51: 0 | AU51: 0.84284 | AV51: 0 | AW51: 0 | AX51: 0 | AY51: 0 | AZ51: 0 | BA51: 0 | BB51: 153.7945 | BC51: 12.2776 | BD51: 0 | BE51: 0 | BF51: 0 | BG51: 0 | BH51: 0 | BI51: 0 | BJ51: 0 | BK51: 376.951528 | BL51: 0 | BM51: 0 | BN51: 0 | BO51: 0 | BP51: 0 | BQ51: 0 | BR51: 0 | BS51: 0 | BT51: 0 | BU51: 0 | BV51: 0 | BW51: 0 | BX51: 0 | BY51: 0 | BZ51: 0 | CA51: 0 | CB51: 0 | CC51: 0 | CD51: 0 | CE51: 0 | CF51: 0 | CG51: 0 | CH51: 0 | CI51: 0 | CJ51: 0 | CK51: 0 | CL51: 0 | CM51: 0 | CN51: 0 | CO51: 0 | CP51: 0 | CQ51: 0 | CR51: 0 | CS51: 0 | CT51: 0 | CU51: 0 | CV51: 0 | CW51: 0 | CX51: 0 | CY51: 0 | CZ51: 0 | DA51: 0 | DB51: 0 | DC51: 0 | DD51: 0 | DE51: 0 | DF51: 0 | DG51: 0 | DH51: 0
C52: > 132 kV & < = 275 kV ; > 600 MVA | D52: 55 | E52: 7.416198487 | F52: 0 | G52: 0 | H52: 0 | I52: 0 | J52: 0 | K52: 0 | L52: 0 | M52: 0 | N52: 0 | O52: 0 | P52: 0 | Q52: 0 | R52: 0 | S52: 0 | T52: 0 | U52: 0 | V52: 0 | W52: 0 | X52: 10.993 | Y52: 0 | Z52: 0 | AA52: 0 | AB52: 0 | AC52: 0 | AD52: 122.1468 | AE52: 0 | AF52: 0 | AG52: 640.5986 | AH52: 200.47782 | AI52: 0 | AJ52: 32.094 | AK52: 0 | AL52: 640.9313 | AM52: 0 | AN52: 0 | AO52: 0 | AP52: 23.54507 | AQ52: 0 | AR52: 0 | AS52: 0 | AT52: 0 | AU52: 63.1 | AV52: 0 | AW52: 0 | AX52: 21.798 | AY52: 0 | AZ52: 0 | BA52: 0 | BB52: 5.807645 | BC52: 129.14586 | BD52: 113.1116 | BE52: 0 | BF52: 0 | BG52: 0 | BH52: 0 | BI52: 0 | BJ52: 0 | BK52: 0 | BL52: 19.463 | BM52: 0 | BN52: 0 | BO52: 0 | BP52: 0 | BQ52: 0 | BR52: 0 | BS52: 0 | BT52: 0 | BU52: 0 | BV52: 0 | BW52: 0 | BX52: 0 | BY52: 0 | BZ52: 0 | CA52: 0 | CB52: 0 | CC52: 0 | CD52: 0 | CE52: 0 | CF52: 0 | CG52: 0 | CH52: 0 | CI52: 0 | CJ52: 0 | CK52: 0 | CL52: 0 | CM52: 0 | CN52: 0 | CO52: 0 | CP52: 0 | CQ52: 0 | CR52: 0 | CS52: 0 | CT52: 0 | CU52: 0 | CV52: 0 | CW52: 0 | CX52: 0 | CY52: 0 | CZ52: 0 | DA52: 0 | DB52: 0 | DC52: 0 | DD52: 0 | DE52: 0 | DF52: 0 | DG52: 0 | DH52: 0
C53: > 275 kV & < = 330 kV ; < = 800 MVA
C54: > 275 kV & < = 330 kV ; > 800 MVA & < = 1200 MVA
C55: > 275 kV & < = 330 kV ; > 1200 MVA
C56: > 330 kV & < = 500 kV ; < = 1000 MVA
C57: > 330 kV & < = 500 kV ; > 1000 MVA & < = 1500 MVA
C58: > 330 kV & < = 500 kV ; > 1500 MVA
C59: > 500 kV ; < = 2000 MVA
C60: > 500 kV ; > 2000 MVA & < = 3000 MVA
C61: > 500 kV ; > 3000 MVA
C62: Other
B63: TRANSMISSION CABLES BY: Highest operating voltage; Insulation type | C63: < = 33 kV; Oil Filled
C64: > 33 kV & < = 66 kV ; Oil Filled
C65: > 66 kV & < = 132 kV ; Oil Filled
C66: > 132 kV & < = 275 kV ; Oil Filled | D66: 40 | E66: 6.32455532 | F66: 0 | G66: 0 | H66: 0 | I66: 0 | J66: 0 | K66: 0 | L66: 0 | M66: 0 | N66: 0 | O66: 0 | P66: 0 | Q66: 0 | R66: 0 | S66: 0 | T66: 0 | U66: 0 | V66: 0 | W66: 0 | X66: 0 | Y66: 0 | Z66: 0 | AA66: 0 | AB66: 0 | AC66: 0 | AD66: 0 | AE66: 0 | AF66: 0 | AG66: 0 | AH66: 0 | AI66: 0 | AJ66: 0 | AK66: 0 | AL66: 0 | AM66: 7.9 | AN66: 0 | AO66: 0 | AP66: 0 | AQ66: 0 | AR66: 0 | AS66: 0 | AT66: 0 | AU66: 0 | AV66: 0 | AW66: 0 | AX66: 0 | AY66: 0 | AZ66: 0 | BA66: 0 | BB66: 0 | BC66: 0 | BD66: 0 | BE66: 0 | BF66: 0 | BG66: 0 | BH66: 0 | BI66: 0 | BJ66: 0 | BK66: 0 | BL66: 0 | BM66: 0 | BN66: 0 | BO66: 0 | BP66: 0 | BQ66: 0 | BR66: 0 | BS66: 0 | BT66: 0 | BU66: 0 | BV66: 0 | BW66: 0 | BX66: 0 | BY66: 0 | BZ66: 0 | CA66: 0 | CB66: 0 | CC66: 0 | CD66: 0 | CE66: 0 | CF66: 0 | CG66: 0 | CH66: 0 | CI66: 0 | CJ66: 0 | CK66: 0 | CL66: 0 | CM66: 0 | CN66: 0 | CO66: 0 | CP66: 0 | CQ66: 0 | CR66: 0 | CS66: 0 | CT66: 0 | CU66: 0 | CV66: 0 | CW66: 0 | CX66: 0 | CY66: 0 | CZ66: 0 | DA66: 0 | DB66: 0 | DC66: 0 | DD66: 0 | DE66: 0 | DF66: 0 | DG66: 0 | DH66: 0
C67: > 275 kV & < = 330 kV ; Oil Filled
C68: > 330 kV & < = 500 kV ; Oil Filled
C69: > 500 kV ; Oil Filled
C70: < = 33 kV; XLPE Insulated
C71: > 33 kV & < = 66 kV ; XLPE Insulated | D71: 40 | E71: 6.32455532 | F71: 0 | G71: 0 | H71: 0 | I71: 0 | J71: 0.3 | K71: 0 | L71: 0 | M71: 0 | N71: 0 | O71: 0 | P71: 0.6 | Q71: 0 | R71: 0 | S71: 0 | T71: 0 | U71: 0 | V71: 0 | W71: 0 | X71: 0 | Y71: 0 | Z71: 0 | AA71: 0 | AB71: 0 | AC71: 0 | AD71: 0 | AE71: 0 | AF71: 0 | AG71: 0 | AH71: 0 | AI71: 0 | AJ71: 0 | AK71: 0 | AL71: 0 | AM71: 0 | AN71: 0 | AO71: 0 | AP71: 0 | AQ71: 0 | AR71: 0 | AS71: 0 | AT71: 0 | AU71: 0 | AV71: 0 | AW71: 0 | AX71: 0 | AY71: 0 | AZ71: 0 | BA71: 0 | BB71: 0 | BC71: 0 | BD71: 0 | BE71: 0 | BF71: 0 | BG71: 0 | BH71: 0 | BI71: 0 | BJ71: 0 | BK71: 0 | BL71: 0 | BM71: 0 | BN71: 0 | BO71: 0 | BP71: 0 | BQ71: 0 | BR71: 0 | BS71: 0 | BT71: 0 | BU71: 0 | BV71: 0 | BW71: 0 | BX71: 0 | BY71: 0 | BZ71: 0 | CA71: 0 | CB71: 0 | CC71: 0 | CD71: 0 | CE71: 0 | CF71: 0 | CG71: 0 | CH71: 0 | CI71: 0 | CJ71: 0 | CK71: 0 | CL71: 0 | CM71: 0 | CN71: 0 | CO71: 0 | CP71: 0 | CQ71: 0 | CR71: 0 | CS71: 0 | CT71: 0 | CU71: 0 | CV71: 0 | CW71: 0 | CX71: 0 | CY71: 0 | CZ71: 0 | DA71: 0 | DB71: 0 | DC71: 0 | DD71: 0 | DE71: 0 | DF71: 0 | DG71: 0 | DH71: 0
C72: > 66 kV & < = 132 kV ; XLPE Insulated
C73: > 132 kV & < = 275 kV ; XLPE Insulated | D73: 40 | E73: 6.32455532 | F73: 0 | G73: 0 | H73: 0 | I73: 0 | J73: 0 | K73: 18.4 | L73: 0 | M73: 0 | N73: 0 | O73: 0 | P73: 0 | Q73: 0 | R73: 0 | S73: 0 | T73: 0 | U73: 0 | V73: 0 | W73: 0 | X73: 0 | Y73: 0 | Z73: 0 | AA73: 0 | AB73: 0 | AC73: 0 | AD73: 0 | AE73: 0 | AF73: 0 | AG73: 0 | AH73: 0 | AI73: 0 | AJ73: 0 | AK73: 0 | AL73: 0 | AM73: 0 | AN73: 0 | AO73: 0 | AP73: 0 | AQ73: 0 | AR73: 0 | AS73: 0 | AT73: 0 | AU73: 0 | AV73: 0 | AW73: 0 | AX73: 0 | AY73: 0 | AZ73: 0 | BA73: 0 | BB73: 0 | BC73: 0 | BD73: 0 | BE73: 0 | BF73: 0 | BG73: 0 | BH73: 0 | BI73: 0 | BJ73: 0 | BK73: 0 | BL73: 0 | BM73: 0 | BN73: 0 | BO73: 0 | BP73: 0 | BQ73: 0 | BR73: 0 | BS73: 0 | BT73: 0 | BU73: 0 | BV73: 0 | BW73: 0 | BX73: 0 | BY73: 0 | BZ73: 0 | CA73: 0 | CB73: 0 | CC73: 0 | CD73: 0 | CE73: 0 | CF73: 0 | CG73: 0 | CH73: 0 | CI73: 0 | CJ73: 0 | CK73: 0 | CL73: 0 | CM73: 0 | CN73: 0 | CO73: 0 | CP73: 0 | CQ73: 0 | CR73: 0 | CS73: 0 | CT73: 0 | CU73: 0 | CV73: 0 | CW73: 0 | CX73: 0 | CY73: 0 | CZ73: 0 | DA73: 0 | DB73: 0 | DC73: 0 | DD73: 0 | DE73: 0 | DF73: 0 | DG73: 0 | DH73: 0
C74: > 275 kV & < = 330 kV ; XLPE Insulated
C75: > 330 kV & < = 500 kV ; XLPE Insulated
C76: > 500 kV ; XLPE Insulated
C77: < = 33 kV; Other Insulated
C78: > 33 kV & < = 66 kV ; Other Insulated
C79: > 66 kV & < = 132 kV ; Other Insulated
C80: > 132 kV & < = 275 kV ; Other Insulated
C81: > 275 kV & < = 330 kV ; Other Insulated
C82: > 330 kV & < = 500 kV ; Other Insulated
C83: > 500 kV ; Other Insulated
C84: Other
B85: SUBSTATION SWITCHBAYS BY: Highest operating voltage; Switch type | C85: < = 33 kV; Air Insulated circuit Breaker | D85: 42 | E85: 6.480740698 | F85: 4 | G85: 0 | H85: 0 | I85: 3 | J85: 7 | K85: 1 | L85: 6 | M85: 6 | N85: 2 | O85: 0 | P85: 0 | Q85: 6 | R85: 6 | S85: 4 | T85: 7 | U85: 2 | V85: 4 | W85: 0 | X85: 2 | Y85: 0 | Z85: 0 | AA85: 0 | AB85: 0 | AC85: 0 | AD85: 0 | AE85: 1 | AF85: 2 | AG85: 0 | AH85: 0 | AI85: 2 | AJ85: 0 | AK85: 0 | AL85: 0 | AM85: 0 | AN85: 0 | AO85: 2 | AP85: 0 | AQ85: 0 | AR85: 0 | AS85: 0 | AT85: 0 | AU85: 0 | AV85: 0 | AW85: 2 | AX85: 0 | AY85: 0 | AZ85: 0 | BA85: 0 | BB85: 0 | BC85: 0 | BD85: 0 | BE85: 0 | BF85: 1 | BG85: 0 | BH85: 0 | BI85: 0 | BJ85: 0 | BK85: 0 | BL85: 0 | BM85: 4 | BN85: 0 | BO85: 0 | BP85: 0 | BQ85: 0 | BR85: 0 | BS85: 0 | BT85: 0 | BU85: 0 | BV85: 0 | BW85: 0 | BX85: 0 | BY85: 0 | BZ85: 0 | CA85: 0 | CB85: 0 | CC85: 0 | CD85: 0 | CE85: 0 | CF85: 0 | CG85: 0 | CH85: 0 | CI85: 0 | CJ85: 0 | CK85: 0 | CL85: 0 | CM85: 0 | CN85: 0 | CO85: 0 | CP85: 0 | CQ85: 0 | CR85: 0 | CS85: 0 | CT85: 0 | CU85: 0 | CV85: 0 | CW85: 0 | CX85: 0 | CY85: 0 | CZ85: 0 | DA85: 0 | DB85: 0 | DC85: 0 | DD85: 0 | DE85: 0 | DF85: 0 | DG85: 0 | DH85: 0
C86: > 33 kV & < = 66 kV ; Air Insulated circuit Breaker | D86: 42 | E86: 6.480740698 | F86: 0 | G86: 2 | H86: 0 | I86: 0 | J86: 1 | K86: 8 | L86: 2 | M86: 0 | N86: 0 | O86: 1 | P86: 0 | Q86: 2 | R86: 2 | S86: 0 | T86: 2 | U86: 3 | V86: 8 | W86: 2 | X86: 0 | Y86: 23 | Z86: 0 | AA86: 0 | AB86: 0 | AC86: 0 | AD86: 1 | AE86: 0 | AF86: 0 | AG86: 0 | AH86: 2 | AI86: 0 | AJ86: 0 | AK86: 0 | AL86: 2 | AM86: 1 | AN86: 0 | AO86: 0 | AP86: 0 | AQ86: 0 | AR86: 0 | AS86: 0 | AT86: 1 | AU86: 0 | AV86: 0 | AW86: 0 | AX86: 0 | AY86: 0 | AZ86: 0 | BA86: 1 | BB86: 1 | BC86: 1 | BD86: 0 | BE86: 0 | BF86: 1 | BG86: 0 | BH86: 0 | BI86: 0 | BJ86: 0 | BK86: 0 | BL86: 0 | BM86: 0 | BN86: 0 | BO86: 0 | BP86: 0 | BQ86: 0 | BR86: 0 | BS86: 0 | BT86: 0 | BU86: 0 | BV86: 0 | BW86: 0 | BX86: 0 | BY86: 0 | BZ86: 0 | CA86: 0 | CB86: 0 | CC86: 0 | CD86: 0 | CE86: 0 | CF86: 0 | CG86: 0 | CH86: 0 | CI86: 0 | CJ86: 0 | CK86: 0 | CL86: 0 | CM86: 0 | CN86: 0 | CO86: 0 | CP86: 0 | CQ86: 0 | CR86: 0 | CS86: 0 | CT86: 0 | CU86: 0 | CV86: 0 | CW86: 0 | CX86: 0 | CY86: 0 | CZ86: 0 | DA86: 0 | DB86: 0 | DC86: 0 | DD86: 0 | DE86: 0 | DF86: 0 | DG86: 0 | DH86: 0
C87: > 66 kV & < = 132 kV ; Air Insulated circuit Breaker | D87: 42 | E87: 6.480740698 | F87: 9 | G87: 9 | H87: 1 | I87: 19 | J87: 13 | K87: 14 | L87: 8 | M87: 12 | N87: 2 | O87: 3 | P87: 8 | Q87: 11 | R87: 14 | S87: 2 | T87: 9 | U87: 8 | V87: 11 | W87: 8 | X87: 5 | Y87: 0 | Z87: 0 | AA87: 0 | AB87: 0 | AC87: 0 | AD87: 1 | AE87: 1 | AF87: 4 | AG87: 3 | AH87: 0 | AI87: 3 | AJ87: 1 | AK87: 1 | AL87: 2 | AM87: 0 | AN87: 3 | AO87: 9 | AP87: 0 | AQ87: 0 | AR87: 0 | AS87: 2 | AT87: 0 | AU87: 0 | AV87: 0 | AW87: 0 | AX87: 0 | AY87: 1 | AZ87: 0 | BA87: 0 | BB87: 0 | BC87: 1 | BD87: 1 | BE87: 0 | BF87: 0 | BG87: 0 | BH87: 0 | BI87: 0 | BJ87: 0 | BK87: 0 | BL87: 0 | BM87: 0 | BN87: 0 | BO87: 0 | BP87: 0 | BQ87: 0 | BR87: 0 | BS87: 0 | BT87: 0 | BU87: 0 | BV87: 0 | BW87: 0 | BX87: 0 | BY87: 0 | BZ87: 0 | CA87: 0 | CB87: 0 | CC87: 0 | CD87: 0 | CE87: 0 | CF87: 0 | CG87: 0 | CH87: 0 | CI87: 0 | CJ87: 0 | CK87: 0 | CL87: 0 | CM87: 0 | CN87: 0 | CO87: 0 | CP87: 0 | CQ87: 0 | CR87: 0 | CS87: 0 | CT87: 0 | CU87: 0 | CV87: 0 | CW87: 0 | CX87: 0 | CY87: 0 | CZ87: 0 | DA87: 0 | DB87: 0 | DC87: 0 | DD87: 0 | DE87: 0 | DF87: 0 | DG87: 0 | DH87: 0
C88: > 132 kV & < = 275 kV ; Air Insulated circuit Breaker | D88: 42 | E88: 6.480740698 | F88: 3 | G88: 7 | H88: 0 | I88: 5 | J88: 4 | K88: 9 | L88: 4 | M88: 3 | N88: 1 | O88: 19 | P88: 13 | Q88: 10 | R88: 11 | S88: 6 | T88: 3 | U88: 4 | V88: 3 | W88: 9 | X88: 1 | Y88: 0 | Z88: 0 | AA88: 0 | AB88: 3 | AC88: 0 | AD88: 3 | AE88: 1 | AF88: 0 | AG88: 0 | AH88: 0 | AI88: 18 | AJ88: 7 | AK88: 2 | AL88: 0 | AM88: 4 | AN88: 5 | AO88: 4 | AP88: 6 | AQ88: 0 | AR88: 3 | AS88: 7 | AT88: 0 | AU88: 0 | AV88: 0 | AW88: 0 | AX88: 0 | AY88: 0 | AZ88: 0 | BA88: 0 | BB88: 0 | BC88: 0 | BD88: 0 | BE88: 0 | BF88: 0 | BG88: 0 | BH88: 0 | BI88: 0 | BJ88: 0 | BK88: 0 | BL88: 0 | BM88: 0 | BN88: 0 | BO88: 0 | BP88: 0 | BQ88: 0 | BR88: 0 | BS88: 0 | BT88: 0 | BU88: 0 | BV88: 0 | BW88: 0 | BX88: 0 | BY88: 0 | BZ88: 0 | CA88: 0 | CB88: 0 | CC88: 0 | CD88: 0 | CE88: 0 | CF88: 0 | CG88: 0 | CH88: 0 | CI88: 0 | CJ88: 0 | CK88: 0 | CL88: 0 | CM88: 0 | CN88: 0 | CO88: 0 | CP88: 0 | CQ88: 0 | CR88: 0 | CS88: 0 | CT88: 0 | CU88: 0 | CV88: 0 | CW88: 0 | CX88: 0 | CY88: 0 | CZ88: 0 | DA88: 0 | DB88: 0 | DC88: 0 | DD88: 0 | DE88: 0 | DF88: 0 | DG88: 0 | DH88: 0
C89: > 275 kV & < = 330 kV ; Air Insulated circuit Breaker
C90: > 330 kV & < = 500 kV ; Air Insulated circuit Breaker
C91: > 500 kV ; Air Insulated circuit Breaker
C92: < = 33 kV; Air Insulated Isolators / Earth Switch | D92: 44.8 | E92: 6.693280212 | F92: 5 | G92: 10 | H92: 0 | I92: 0 | J92: 0 | K92: 0 | L92: 2 | M92: 1 | N92: 0 | O92: 0 | P92: 0 | Q92: 0 | R92: 0 | S92: 0 | T92: 0 | U92: 0 | V92: 0 | W92: 0 | X92: 0 | Y92: 0 | Z92: 0 | AA92: 0 | AB92: 0 | AC92: 0 | AD92: 0 | AE92: 0 | AF92: 0 | AG92: 0 | AH92: 1 | AI92: 1 | AJ92: 0 | AK92: 0 | AL92: 0 | AM92: 0 | AN92: 0 | AO92: 4 | AP92: 0 | AQ92: 0 | AR92: 0 | AS92: 0 | AT92: 0 | AU92: 0 | AV92: 0 | AW92: 3 | AX92: 0 | AY92: 9 | AZ92: 4 | BA92: 3 | BB92: 1 | BC92: 2 | BD92: 2 | BE92: 0 | BF92: 3 | BG92: 2 | BH92: 0 | BI92: 0 | BJ92: 0 | BK92: 0 | BL92: 0 | BM92: 0 | BN92: 0 | BO92: 0 | BP92: 0 | BQ92: 0 | BR92: 0 | BS92: 0 | BT92: 0 | BU92: 0 | BV92: 0 | BW92: 0 | BX92: 0 | BY92: 0 | BZ92: 0 | CA92: 0 | CB92: 0 | CC92: 0 | CD92: 0 | CE92: 0 | CF92: 0 | CG92: 0 | CH92: 0 | CI92: 0 | CJ92: 0 | CK92: 0 | CL92: 0 | CM92: 0 | CN92: 0 | CO92: 0 | CP92: 0 | CQ92: 0 | CR92: 0 | CS92: 0 | CT92: 0 | CU92: 0 | CV92: 0 | CW92: 0 | CX92: 0 | CY92: 0 | CZ92: 0 | DA92: 0 | DB92: 0 | DC92: 0 | DD92: 0 | DE92: 0 | DF92: 0 | DG92: 0 | DH92: 0
C93: > 33 kV & < = 66 kV ; Air Insulated Isolators / Earth Switch | D93: 44.8 | E93: 6.693280212 | F93: 0 | G93: 0 | H93: 0 | I93: 0 | J93: 0 | K93: 2 | L93: 0 | M93: 0 | N93: 0 | O93: 1 | P93: 0 | Q93: 5 | R93: 1 | S93: 2 | T93: 0 | U93: 5 | V93: 0 | W93: 8 | X93: 0 | Y93: 22 | Z93: 0 | AA93: 0 | AB93: 0 | AC93: 0 | AD93: 0 | AE93: 0 | AF93: 0 | AG93: 0 | AH93: 0 | AI93: 0 | AJ93: 0 | AK93: 8 | AL93: 0 | AM93: 0 | AN93: 1 | AO93: 0 | AP93: 0 | AQ93: 0 | AR93: 0 | AS93: 0 | AT93: 0 | AU93: 0 | AV93: 0 | AW93: 0 | AX93: 0 | AY93: 3 | AZ93: 17 | BA93: 0 | BB93: 12 | BC93: 3 | BD93: 0 | BE93: 13 | BF93: 0 | BG93: 0 | BH93: 0 | BI93: 0 | BJ93: 0 | BK93: 0 | BL93: 0 | BM93: 0 | BN93: 0 | BO93: 0 | BP93: 0 | BQ93: 0 | BR93: 0 | BS93: 0 | BT93: 0 | BU93: 0 | BV93: 0 | BW93: 0 | BX93: 0 | BY93: 0 | BZ93: 0 | CA93: 0 | CB93: 0 | CC93: 0 | CD93: 0 | CE93: 0 | CF93: 0 | CG93: 0 | CH93: 0 | CI93: 0 | CJ93: 0 | CK93: 0 | CL93: 0 | CM93: 0 | CN93: 0 | CO93: 0 | CP93: 0 | CQ93: 0 | CR93: 0 | CS93: 0 | CT93: 0 | CU93: 0 | CV93: 0 | CW93: 0 | CX93: 0 | CY93: 0 | CZ93: 0 | DA93: 0 | DB93: 0 | DC93: 0 | DD93: 0 | DE93: 0 | DF93: 0 | DG93: 0 | DH93: 0
C94: > 66 kV & < = 132 kV ; Air Insulated Isolators / Earth Switch | D94: 44.8 | E94: 6.693280212 | F94: 7 | G94: 10 | H94: 0 | I94: 33 | J94: 37 | K94: 14 | L94: 10 | M94: 29 | N94: 6 | O94: 7 | P94: 1 | Q94: 26 | R94: 48 | S94: 10 | T94: 9 | U94: 19 | V94: 0 | W94: 4 | X94: 12 | Y94: 0 | Z94: 0 | AA94: 0 | AB94: 0 | AC94: 3 | AD94: 0 | AE94: 0 | AF94: 17 | AG94: 0 | AH94: 1 | AI94: 7 | AJ94: 8 | AK94: 17 | AL94: 3 | AM94: 1 | AN94: 14 | AO94: 11 | AP94: 8 | AQ94: 0 | AR94: 3 | AS94: 0 | AT94: 10 | AU94: 0 | AV94: 0 | AW94: 13 | AX94: 21 | AY94: 18 | AZ94: 32 | BA94: 30 | BB94: 13 | BC94: 3 | BD94: 3 | BE94: 9 | BF94: 14 | BG94: 1 | BH94: 10 | BI94: 0 | BJ94: 0 | BK94: 0 | BL94: 0 | BM94: 0 | BN94: 0 | BO94: 0 | BP94: 0 | BQ94: 1 | BR94: 0 | BS94: 0 | BT94: 0 | BU94: 0 | BV94: 0 | BW94: 0 | BX94: 0 | BY94: 0 | BZ94: 0 | CA94: 0 | CB94: 0 | CC94: 0 | CD94: 0 | CE94: 0 | CF94: 0 | CG94: 0 | CH94: 0 | CI94: 0 | CJ94: 0 | CK94: 0 | CL94: 0 | CM94: 0 | CN94: 0 | CO94: 0 | CP94: 0 | CQ94: 0 | CR94: 0 | CS94: 0 | CT94: 0 | CU94: 0 | CV94: 0 | CW94: 0 | CX94: 0 | CY94: 0 | CZ94: 0 | DA94: 0 | DB94: 0 | DC94: 0 | DD94: 0 | DE94: 0 | DF94: 0 | DG94: 0 | DH94: 0
C95: > 132 kV & < = 275 kV ; Air Insulated Isolators / Earth Switch | D95: 44.8 | E95: 6.693280212 | F95: 16 | G95: 9 | H95: 0 | I95: 20 | J95: 5 | K95: 13 | L95: 11 | M95: 3 | N95: 1 | O95: 42 | P95: 0 | Q95: 26 | R95: 9 | S95: 1 | T95: 0 | U95: 0 | V95: 2 | W95: 26 | X95: 0 | Y95: 0 | Z95: 0 | AA95: 0 | AB95: 1 | AC95: 0 | AD95: 3 | AE95: 0 | AF95: 3 | AG95: 0 | AH95: 4 | AI95: 24 | AJ95: 18 | AK95: 0 | AL95: 0 | AM95: 11 | AN95: 17 | AO95: 0 | AP95: 28 | AQ95: 0 | AR95: 5 | AS95: 9 | AT95: 0 | AU95: 0 | AV95: 3 | AW95: 8 | AX95: 0 | AY95: 11 | AZ95: 0 | BA95: 0 | BB95: 2 | BC95: 27 | BD95: 16 | BE95: 53 | BF95: 0 | BG95: 0 | BH95: 0 | BI95: 0 | BJ95: 0 | BK95: 0 | BL95: 0 | BM95: 0 | BN95: 0 | BO95: 0 | BP95: 0 | BQ95: 0 | BR95: 14 | BS95: 0 | BT95: 0 | BU95: 0 | BV95: 0 | BW95: 0 | BX95: 0 | BY95: 0 | BZ95: 0 | CA95: 0 | CB95: 0 | CC95: 0 | CD95: 0 | CE95: 0 | CF95: 0 | CG95: 0 | CH95: 0 | CI95: 0 | CJ95: 0 | CK95: 0 | CL95: 0 | CM95: 0 | CN95: 0 | CO95: 0 | CP95: 0 | CQ95: 0 | CR95: 0 | CS95: 0 | CT95: 0 | CU95: 0 | CV95: 0 | CW95: 0 | CX95: 0 | CY95: 0 | CZ95: 0 | DA95: 0 | DB95: 0 | DC95: 0 | DD95: 0 | DE95: 0 | DF95: 0 | DG95: 0 | DH95: 0
C96: > 275 kV & < = 330 kV ; Air Insulated Isolators / Earth Switch
C97: > 330 kV & < = 500 kV ; Air Insulated Isolators / Earth Switch
C98: > 500 kV ; Air Insulated Isolators / Earth Switch
C99: < = 33 kV; VT | D99: 39 | E99: 6.244997998 | F99: 4.333333333 | G99: 3 | H99: 1.333333333 | I99: 1.666666667 | J99: 7 | K99: 2 | L99: 4 | M99: 2 | N99: 2 | O99: 0 | P99: 0 | Q99: 2.666666667 | R99: 1 | S99: 0.6666666667 | T99: 1.333333333 | U99: 0 | V99: 0 | W99: 0.3333333333 | X99: 0 | Y99: 0 | Z99: 2 | AA99: 2.666666667 | AB99: 0 | AC99: 0 | AD99: 0 | AE99: 0 | AF99: 0 | AG99: 0 | AH99: 0.3333333333 | AI99: 0 | AJ99: 0.3333333333 | AK99: 0 | AL99: 0 | AM99: 0 | AN99: 0 | AO99: 0 | AP99: 0 | AQ99: 0 | AR99: 0.3333333333 | AS99: 0.3333333333 | AT99: 2.333333333 | AU99: 0.6666666667 | AV99: 0 | AW99: 0 | AX99: 0 | AY99: 0.6666666667 | AZ99: 0.3333333333 | BA99: 0 | BB99: 0.6666666667 | BC99: 0 | BD99: 2 | BE99: 0.3333333333 | BF99: 1 | BG99: 1 | BH99: 0 | BI99: 0 | BJ99: 0 | BK99: 0 | BL99: 0 | BM99: 0 | BN99: 0 | BO99: 0 | BP99: 0 | BQ99: 0 | BR99: 0 | BS99: 0 | BT99: 0 | BU99: 0 | BV99: 0 | BW99: 0 | BX99: 0 | BY99: 0 | BZ99: 0 | CA99: 0 | CB99: 0 | CC99: 0 | CD99: 0 | CE99: 0 | CF99: 0 | CG99: 0 | CH99: 0 | CI99: 0 | CJ99: 0 | CK99: 0 | CL99: 0 | CM99: 0 | CN99: 0 | CO99: 0 | CP99: 0 | CQ99: 0 | CR99: 0 | CS99: 0 | CT99: 0 | CU99: 0 | CV99: 0 | CW99: 0 | CX99: 0 | CY99: 0 | CZ99: 0 | DA99: 0 | DB99: 0 | DC99: 0 | DD99: 0 | DE99: 0 | DF99: 0 | DG99: 0 | DH99: 0
C100: > 33 kV & < = 66 kV ; VT | D100: 39 | E100: 6.244997998 | F100: 1 | G100: 1 | H100: 6 | I100: 3 | J100: 0 | K100: 4 | L100: 1.333333333 | M100: 0 | N100: 1 | O100: 4 | P100: 0 | Q100: 3 | R100: 1 | S100: 0.3333333333 | T100: 0 | U100: 3 | V100: 2 | W100: 1 | X100: 1 | Y100: 3 | Z100: 0 | AA100: 0.3333333333 | AB100: 0 | AC100: 0 | AD100: 0 | AE100: 0 | AF100: 0 | AG100: 0 | AH100: 0 | AI100: 0 | AJ100: 2 | AK100: 0 | AL100: 0 | AM100: 1 | AN100: 0 | AO100: 0 | AP100: 0 | AQ100: 0 | AR100: 2.333333333 | AS100: 0 | AT100: 0 | AU100: 0 | AV100: 0.6666666667 | AW100: 0 | AX100: 2.666666667 | AY100: 0 | AZ100: 1.333333333 | BA100: 0 | BB100: 4.666666667 | BC100: 0 | BD100: 0 | BE100: 0 | BF100: 2 | BG100: 0 | BH100: 0 | BI100: 0 | BJ100: 0 | BK100: 0 | BL100: 2 | BM100: 0 | BN100: 0 | BO100: 0 | BP100: 0 | BQ100: 0 | BR100: 0 | BS100: 0 | BT100: 0 | BU100: 0 | BV100: 0 | BW100: 0 | BX100: 0 | BY100: 0 | BZ100: 0 | CA100: 0 | CB100: 0 | CC100: 0 | CD100: 0 | CE100: 0 | CF100: 0 | CG100: 0 | CH100: 0 | CI100: 0 | CJ100: 0 | CK100: 0 | CL100: 0 | CM100: 0 | CN100: 0 | CO100: 0 | CP100: 0 | CQ100: 0 | CR100: 0 | CS100: 0 | CT100: 0 | CU100: 0 | CV100: 0 | CW100: 0 | CX100: 0 | CY100: 0 | CZ100: 0 | DA100: 0 | DB100: 0 | DC100: 0 | DD100: 0 | DE100: 0 | DF100: 0 | DG100: 0 | DH100: 0
C101: > 66 kV & < = 132 kV ; VT | D101: 39 | E101: 6.244997998 | F101: 0 | G101: 3.333333333 | H101: 0.6666666667 | I101: 14.33333333 | J101: 8 | K101: 3.333333333 | L101: 8.666666667 | M101: 8 | N101: 2.333333333 | O101: 8.333333333 | P101: 1.666666667 | Q101: 8 | R101: 6 | S101: 3.666666667 | T101: 0 | U101: 4.666666667 | V101: 0 | W101: 2.666666667 | X101: 2 | Y101: 1 | Z101: 2.333333333 | AA101: 0.3333333333 | AB101: 0 | AC101: 0 | AD101: 0 | AE101: 4 | AF101: 1 | AG101: 0 | AH101: 0 | AI101: 2 | AJ101: 1.333333333 | AK101: 1 | AL101: 1 | AM101: 1 | AN101: 7.666666667 | AO101: 0.6666666667 | AP101: 1.666666667 | AQ101: 0.6666666667 | AR101: 0 | AS101: 0 | AT101: 0 | AU101: 0 | AV101: 0 | AW101: 0 | AX101: 2 | AY101: 4 | AZ101: 0 | BA101: 0 | BB101: 0 | BC101: 2 | BD101: 0 | BE101: 0 | BF101: 0 | BG101: 0 | BH101: 0 | BI101: 0 | BJ101: 0 | BK101: 0 | BL101: 0 | BM101: 0 | BN101: 0 | BO101: 0 | BP101: 0 | BQ101: 0 | BR101: 0 | BS101: 0 | BT101: 0 | BU101: 0 | BV101: 0 | BW101: 0 | BX101: 0 | BY101: 0 | BZ101: 0 | CA101: 0 | CB101: 0 | CC101: 0 | CD101: 0 | CE101: 0 | CF101: 0 | CG101: 0 | CH101: 0 | CI101: 0 | CJ101: 0 | CK101: 0 | CL101: 0 | CM101: 0 | CN101: 0 | CO101: 0 | CP101: 0 | CQ101: 0 | CR101: 0 | CS101: 0 | CT101: 0 | CU101: 0 | CV101: 0 | CW101: 0 | CX101: 0 | CY101: 0 | CZ101: 0 | DA101: 0 | DB101: 0 | DC101: 0 | DD101: 0 | DE101: 0 | DF101: 0 | DG101: 0 | DH101: 0
C102: > 132 kV & < = 275 kV ; VT | D102: 39 | E102: 6.244997998 | F102: 6.333333333 | G102: 6 | H102: 6 | I102: 6.333333333 | J102: 2 | K102: 12.66666667 | L102: 3 | M102: 3.666666667 | N102: 4.333333333 | O102: 12.33333333 | P102: 2 | Q102: 11 | R102: 0 | S102: 0 | T102: 0 | U102: 0 | V102: 0 | W102: 2 | X102: 0 | Y102: 0.6666666667 | Z102: 1.333333333 | AA102: 0 | AB102: 0 | AC102: 0 | AD102: 0 | AE102: 2 | AF102: 0 | AG102: 2 | AH102: 0 | AI102: 10.33333333 | AJ102: 0 | AK102: 0 | AL102: 0 | AM102: 0 | AN102: 0.6666666667 | AO102: 5.333333333 | AP102: 0 | AQ102: 0 | AR102: 0 | AS102: 0.3333333333 | AT102: 0 | AU102: 0 | AV102: 0 | AW102: 0 | AX102: 2 | AY102: 0 | AZ102: 0 | BA102: 0 | BB102: 0 | BC102: 0 | BD102: 0 | BE102: 0 | BF102: 0 | BG102: 0 | BH102: 0 | BI102: 0 | BJ102: 0.3333333333 | BK102: 3 | BL102: 0 | BM102: 1 | BN102: 0 | BO102: 0 | BP102: 0 | BQ102: 0 | BR102: 0 | BS102: 0 | BT102: 0 | BU102: 0 | BV102: 0 | BW102: 0 | BX102: 0 | BY102: 0 | BZ102: 0 | CA102: 0 | CB102: 0 | CC102: 0 | CD102: 0 | CE102: 0 | CF102: 0 | CG102: 0 | CH102: 0 | CI102: 0 | CJ102: 0 | CK102: 0 | CL102: 0 | CM102: 0 | CN102: 0 | CO102: 0 | CP102: 0 | CQ102: 0 | CR102: 0 | CS102: 0 | CT102: 0 | CU102: 0 | CV102: 0 | CW102: 0 | CX102: 0 | CY102: 0 | CZ102: 0 | DA102: 0 | DB102: 0 | DC102: 0 | DD102: 0 | DE102: 0 | DF102: 0 | DG102: 0 | DH102: 0
C103: > 275 kV & < = 330 kV ; VT
C104: > 330 kV & < = 500 kV ; VT
C105: > 500 kV ; VT
C106: < = 33 kV; CT | D106: 39 | E106: 6.244997998 | F106: 10 | G106: 9.666666667 | H106: 1 | I106: 4 | J106: 7 | K106: 0 | L106: 4 | M106: 2 | N106: 2 | O106: 0 | P106: 1 | Q106: 7 | R106: 6 | S106: 5.666666667 | T106: 5.333333333 | U106: 2.666666667 | V106: 0 | W106: 2 | X106: 1 | Y106: 0 | Z106: 3 | AA106: 0 | AB106: 0 | AC106: 0 | AD106: 0 | AE106: 0 | AF106: 0 | AG106: 0 | AH106: 0.6666666667 | AI106: 0 | AJ106: 0 | AK106: 0 | AL106: 2 | AM106: 0 | AN106: 0 | AO106: 0 | AP106: 1 | AQ106: 1 | AR106: 0 | AS106: 0.3333333333 | AT106: 0 | AU106: 0.6666666667 | AV106: 0 | AW106: 0 | AX106: 0 | AY106: 0 | AZ106: 0 | BA106: 0 | BB106: 0.6666666667 | BC106: 0 | BD106: 0.6666666667 | BE106: 0 | BF106: 3 | BG106: 1 | BH106: 0 | BI106: 0 | BJ106: 0 | BK106: 0 | BL106: 0 | BM106: 0 | BN106: 0 | BO106: 0 | BP106: 0 | BQ106: 0 | BR106: 0 | BS106: 0 | BT106: 0 | BU106: 0 | BV106: 0 | BW106: 0 | BX106: 0 | BY106: 0 | BZ106: 0 | CA106: 0 | CB106: 0 | CC106: 0 | CD106: 0 | CE106: 0 | CF106: 0 | CG106: 0 | CH106: 0 | CI106: 0 | CJ106: 0 | CK106: 0 | CL106: 0 | CM106: 0 | CN106: 0 | CO106: 0 | CP106: 0 | CQ106: 0 | CR106: 0 | CS106: 0 | CT106: 0 | CU106: 0 | CV106: 0 | CW106: 0 | CX106: 0 | CY106: 0 | CZ106: 0 | DA106: 0 | DB106: 0 | DC106: 0 | DD106: 0 | DE106: 0 | DF106: 0 | DG106: 0 | DH106: 0
C107: > 33 kV & < = 66 kV ; CT | D107: 39 | E107: 6.244997998 | F107: 3 | G107: 1 | H107: 1 | I107: 5 | J107: 1 | K107: 16 | L107: 3.333333333 | M107: 1 | N107: 0 | O107: 1 | P107: 0 | Q107: 10 | R107: 3 | S107: 0.6666666667 | T107: 2 | U107: 3.333333333 | V107: 0 | W107: 3 | X107: 2 | Y107: 25 | Z107: 0 | AA107: 2 | AB107: 0 | AC107: 0 | AD107: 0 | AE107: 0 | AF107: 0 | AG107: 17.66666667 | AH107: 0 | AI107: 0 | AJ107: 0 | AK107: 0 | AL107: 0 | AM107: 3 | AN107: 0.6666666667 | AO107: 2 | AP107: 0 | AQ107: 0 | AR107: 1 | AS107: 3 | AT107: 0 | AU107: 0 | AV107: 0 | AW107: 0 | AX107: 0 | AY107: 3 | AZ107: 0 | BA107: 0 | BB107: 0 | BC107: 0 | BD107: 0 | BE107: 0 | BF107: 0 | BG107: 0 | BH107: 0 | BI107: 0 | BJ107: 0 | BK107: 0 | BL107: 0 | BM107: 0 | BN107: 0 | BO107: 0 | BP107: 0 | BQ107: 0 | BR107: 0 | BS107: 0 | BT107: 0 | BU107: 0 | BV107: 0 | BW107: 0 | BX107: 0 | BY107: 0 | BZ107: 0 | CA107: 0 | CB107: 0 | CC107: 0 | CD107: 0 | CE107: 0 | CF107: 0 | CG107: 0 | CH107: 0 | CI107: 0 | CJ107: 0 | CK107: 0 | CL107: 0 | CM107: 0 | CN107: 0 | CO107: 0 | CP107: 0 | CQ107: 0 | CR107: 0 | CS107: 0 | CT107: 0 | CU107: 0 | CV107: 0 | CW107: 0 | CX107: 0 | CY107: 0 | CZ107: 0 | DA107: 0 | DB107: 0 | DC107: 0 | DD107: 0 | DE107: 0 | DF107: 0 | DG107: 0 | DH107: 0
C108: > 66 kV & < = 132 kV ; CT | D108: 39 | E108: 6.244997998 | F108: 1.666666667 | G108: 3.666666667 | H108: 2.333333333 | I108: 20.66666667 | J108: 12.33333333 | K108: 12.66666667 | L108: 9.666666667 | M108: 13.33333333 | N108: 3 | O108: 4 | P108: 9 | Q108: 16.66666667 | R108: 15.66666667 | S108: 3 | T108: 13.66666667 | U108: 12.66666667 | V108: 7.333333333 | W108: 5 | X108: 5 | Y108: 0 | Z108: 2 | AA108: 0 | AB108: 0 | AC108: 0 | AD108: 0 | AE108: 3 | AF108: 1 | AG108: 4 | AH108: 0 | AI108: 0 | AJ108: 0 | AK108: 4 | AL108: 1 | AM108: 2 | AN108: 4.666666667 | AO108: 4.666666667 | AP108: 0 | AQ108: 0 | AR108: 2 | AS108: 0 | AT108: 0 | AU108: 0 | AV108: 0 | AW108: 0 | AX108: 0 | AY108: 2 | AZ108: 0 | BA108: 0 | BB108: 0 | BC108: 0 | BD108: 0 | BE108: 0 | BF108: 0 | BG108: 0 | BH108: 0 | BI108: 0 | BJ108: 0 | BK108: 0 | BL108: 0 | BM108: 0 | BN108: 0 | BO108: 0 | BP108: 0 | BQ108: 0 | BR108: 0 | BS108: 0 | BT108: 0 | BU108: 0 | BV108: 0 | BW108: 0 | BX108: 0 | BY108: 0 | BZ108: 0 | CA108: 0 | CB108: 0 | CC108: 0 | CD108: 0 | CE108: 0 | CF108: 0 | CG108: 0 | CH108: 0 | CI108: 0 | CJ108: 0 | CK108: 0 | CL108: 0 | CM108: 0 | CN108: 0 | CO108: 0 | CP108: 0 | CQ108: 0 | CR108: 0 | CS108: 0 | CT108: 0 | CU108: 0 | CV108: 0 | CW108: 0 | CX108: 0 | CY108: 0 | CZ108: 0 | DA108: 0 | DB108: 0 | DC108: 0 | DD108: 0 | DE108: 0 | DF108: 0 | DG108: 0 | DH108: 0
C109: > 132 kV & < = 275 kV ; CT | D109: 39 | E109: 6.244997998 | F109: 3 | G109: 12 | H109: 12 | I109: 5 | J109: 2 | K109: 17 | L109: 3 | M109: 2 | N109: 0 | O109: 28.33333333 | P109: 26 | Q109: 17 | R109: 12 | S109: 1 | T109: 1 | U109: 0 | V109: 1.666666667 | W109: 13.66666667 | X109: 0 | Y109: 1 | Z109: 0 | AA109: 0.3333333333 | AB109: 1 | AC109: 0 | AD109: 0.3333333333 | AE109: 0 | AF109: 1 | AG109: 6.666666667 | AH109: 1 | AI109: 10.33333333 | AJ109: 13.66666667 | AK109: 18 | AL109: 1.666666667 | AM109: 0 | AN109: 0 | AO109: 3 | AP109: 0 | AQ109: 2 | AR109: 0 | AS109: 0 | AT109: 0 | AU109: 0 | AV109: 0 | AW109: 4 | AX109: 2 | AY109: 1 | AZ109: 0 | BA109: 0 | BB109: 0 | BC109: 0.3333333333 | BD109: 0 | BE109: 2 | BF109: 0 | BG109: 0 | BH109: 0 | BI109: 0 | BJ109: 0 | BK109: 8 | BL109: 0 | BM109: 0 | BN109: 0 | BO109: 0 | BP109: 0 | BQ109: 0 | BR109: 0 | BS109: 0 | BT109: 0 | BU109: 0 | BV109: 0 | BW109: 0 | BX109: 0 | BY109: 0 | BZ109: 0 | CA109: 0 | CB109: 0 | CC109: 0 | CD109: 0 | CE109: 0 | CF109: 0 | CG109: 0 | CH109: 0 | CI109: 0 | CJ109: 0 | CK109: 0 | CL109: 0 | CM109: 0 | CN109: 0 | CO109: 0 | CP109: 0 | CQ109: 0 | CR109: 0 | CS109: 0 | CT109: 0 | CU109: 0 | CV109: 0 | CW109: 0 | CX109: 0 | CY109: 0 | CZ109: 0 | DA109: 0 | DB109: 0 | DC109: 0 | DD109: 0 | DE109: 0 | DF109: 0 | DG109: 0 | DH109: 0
C110: > 275 kV & < = 330 kV ; CT
C111: > 330 kV & < = 500 kV ; CT
C112: > 500 kV ; CT
C113: < = 33 kV; GIS Module
C114: > 33 kV & < = 66 kV ; GIS Module
C115: > 66 kV & < = 132 kV ; GIS Module | D115: 44.8 | E115: 6.693280212 | F115: 0 | G115: 0 | H115: 0 | I115: 0 | J115: 3 | K115: 0 | L115: 17 | M115: 0 | N115: 0 | O115: 0 | P115: 0 | Q115: 0 | R115: 0 | S115: 0 | T115: 0 | U115: 0 | V115: 0 | W115: 0 | X115: 0 | Y115: 0 | Z115: 0 | AA115: 0 | AB115: 0 | AC115: 0 | AD115: 0 | AE115: 0 | AF115: 0 | AG115: 0 | AH115: 0 | AI115: 0 | AJ115: 0 | AK115: 0 | AL115: 0 | AM115: 0 | AN115: 0 | AO115: 0 | AP115: 0 | AQ115: 0 | AR115: 0 | AS115: 0 | AT115: 0 | AU115: 0 | AV115: 0 | AW115: 0 | AX115: 0 | AY115: 0 | AZ115: 0 | BA115: 0 | BB115: 0 | BC115: 0 | BD115: 0 | BE115: 0 | BF115: 0 | BG115: 0 | BH115: 0 | BI115: 0 | BJ115: 0 | BK115: 0 | BL115: 0 | BM115: 0 | BN115: 0 | BO115: 0 | BP115: 0 | BQ115: 0 | BR115: 0 | BS115: 0 | BT115: 0 | BU115: 0 | BV115: 0 | BW115: 0 | BX115: 0 | BY115: 0 | BZ115: 0 | CA115: 0 | CB115: 0 | CC115: 0 | CD115: 0 | CE115: 0 | CF115: 0 | CG115: 0 | CH115: 0 | CI115: 0 | CJ115: 0 | CK115: 0 | CL115: 0 | CM115: 0 | CN115: 0 | CO115: 0 | CP115: 0 | CQ115: 0 | CR115: 0 | CS115: 0 | CT115: 0 | CU115: 0 | CV115: 0 | CW115: 0 | CX115: 0 | CY115: 0 | CZ115: 0 | DA115: 0 | DB115: 0 | DC115: 0 | DD115: 0 | DE115: 0 | DF115: 0 | DG115: 0 | DH115: 0
C116: > 132 kV & < = 275 kV ; GIS Module | D116: 44.8 | E116: 6.693280212 | F116: 0 | G116: 0 | H116: 0 | I116: 0 | J116: 0 | K116: 17 | L116: 0 | M116: 0 | N116: 0 | O116: 0 | P116: 0 | Q116: 0 | R116: 0 | S116: 0 | T116: 0 | U116: 0 | V116: 0 | W116: 0 | X116: 0 | Y116: 0 | Z116: 0 | AA116: 0 | AB116: 0 | AC116: 0 | AD116: 0 | AE116: 0 | AF116: 0 | AG116: 7 | AH116: 0 | AI116: 1 | AJ116: 10 | AK116: 0 | AL116: 0 | AM116: 0 | AN116: 3 | AO116: 0 | AP116: 0 | AQ116: 0 | AR116: 0 | AS116: 0 | AT116: 0 | AU116: 0 | AV116: 0 | AW116: 0 | AX116: 0 | AY116: 0 | AZ116: 0 | BA116: 0 | BB116: 0 | BC116: 0 | BD116: 0 | BE116: 0 | BF116: 0 | BG116: 0 | BH116: 0 | BI116: 0 | BJ116: 0 | BK116: 0 | BL116: 0 | BM116: 0 | BN116: 0 | BO116: 0 | BP116: 0 | BQ116: 0 | BR116: 0 | BS116: 0 | BT116: 0 | BU116: 0 | BV116: 0 | BW116: 0 | BX116: 0 | BY116: 0 | BZ116: 0 | CA116: 0 | CB116: 0 | CC116: 0 | CD116: 0 | CE116: 0 | CF116: 0 | CG116: 0 | CH116: 0 | CI116: 0 | CJ116: 0 | CK116: 0 | CL116: 0 | CM116: 0 | CN116: 0 | CO116: 0 | CP116: 0 | CQ116: 0 | CR116: 0 | CS116: 0 | CT116: 0 | CU116: 0 | CV116: 0 | CW116: 0 | CX116: 0 | CY116: 0 | CZ116: 0 | DA116: 0 | DB116: 0 | DC116: 0 | DD116: 0 | DE116: 0 | DF116: 0 | DG116: 0 | DH116: 0
C117: > 275 kV & < = 330 kV ; GIS Module
C118: > 330 kV & < = 500 kV ; GIS Module
C119: > 500 kV ; GIS Module
C120: Other
B121: SUBSTATION POWER TRANSFORMERS BY: Highest operating voltage; Ampere rating | C121: < = 33 kV ; < = 10 MVA
C122: < = 33 kV ; > 10 MVA & < = 30 MVA
C123: < = 33 kV ; > 30 MVA
C124: > 33 kV & < = 66 kV ; < = 10 MVA
C125: > 33 kV & < = 66 kV ; > 10 MVA & < = 30 MVA
C126: > 33 kV & < = 66 kV ; > 30 MVA
C127: > 66 kV & < = 132 kV ; < = 30 MVA | D127: 44.8 | E127: 6.693280212 | F127: 3 | G127: 4 | H127: 2 | I127: 0 | J127: 1 | K127: 1 | L127: 0 | M127: 3 | N127: 3 | O127: 1 | P127: 0 | Q127: 0 | R127: 2 | S127: 1 | T127: 0 | U127: 2 | V127: 0 | W127: 0 | X127: 2 | Y127: 0 | Z127: 0 | AA127: 0 | AB127: 0 | AC127: 0 | AD127: 0 | AE127: 2 | AF127: 0 | AG127: 0 | AH127: 1 | AI127: 0 | AJ127: 0 | AK127: 1 | AL127: 0 | AM127: 0 | AN127: 3 | AO127: 0 | AP127: 0 | AQ127: 0 | AR127: 0 | AS127: 3 | AT127: 0 | AU127: 0 | AV127: 0 | AW127: 0 | AX127: 2 | AY127: 0 | AZ127: 1 | BA127: 6 | BB127: 0 | BC127: 0 | BD127: 1 | BE127: 16 | BF127: 0 | BG127: 0 | BH127: 3 | BI127: 3 | BJ127: 3 | BK127: 0 | BL127: 0 | BM127: 0 | BN127: 0 | BO127: 0 | BP127: 0 | BQ127: 1 | BR127: 1 | BS127: 0 | BT127: 0 | BU127: 0 | BV127: 0 | BW127: 0 | BX127: 0 | BY127: 0 | BZ127: 0 | CA127: 0 | CB127: 0 | CC127: 0 | CD127: 0 | CE127: 0 | CF127: 0 | CG127: 0 | CH127: 0 | CI127: 0 | CJ127: 0 | CK127: 0 | CL127: 0 | CM127: 0 | CN127: 0 | CO127: 0 | CP127: 0 | CQ127: 0 | CR127: 0 | CS127: 0 | CT127: 0 | CU127: 0 | CV127: 0 | CW127: 0 | CX127: 0 | CY127: 0 | CZ127: 0 | DA127: 0 | DB127: 0 | DC127: 0 | DD127: 0 | DE127: 0 | DF127: 0 | DG127: 0 | DH127: 0
C128: > 66 kV & < = 132 kV ; > 30 MVA & < = 60 MVA | D128: 44.8 | E128: 6.693280212 | F128: 0 | G128: 0 | H128: 0 | I128: 0 | J128: 0 | K128: 0 | L128: 4 | M128: 2 | N128: 0 | O128: 0 | P128: 0 | Q128: 2 | R128: 3 | S128: 2 | T128: 2 | U128: 1 | V128: 2 | W128: 1 | X128: 1 | Y128: 0 | Z128: 0 | AA128: 0 | AB128: 0 | AC128: 0 | AD128: 0 | AE128: 0 | AF128: 0 | AG128: 0 | AH128: 0 | AI128: 0 | AJ128: 0 | AK128: 0 | AL128: 0 | AM128: 0 | AN128: 0 | AO128: 0 | AP128: 1 | AQ128: 0 | AR128: 0 | AS128: 0 | AT128: 0 | AU128: 0 | AV128: 0 | AW128: 0 | AX128: 0 | AY128: 2 | AZ128: 0 | BA128: 0 | BB128: 0 | BC128: 0 | BD128: 0 | BE128: 0 | BF128: 0 | BG128: 0 | BH128: 0 | BI128: 0 | BJ128: 0 | BK128: 0 | BL128: 0 | BM128: 0 | BN128: 0 | BO128: 0 | BP128: 0 | BQ128: 0 | BR128: 0 | BS128: 0 | BT128: 0 | BU128: 0 | BV128: 0 | BW128: 0 | BX128: 0 | BY128: 0 | BZ128: 0 | CA128: 0 | CB128: 0 | CC128: 0 | CD128: 0 | CE128: 0 | CF128: 0 | CG128: 0 | CH128: 0 | CI128: 0 | CJ128: 0 | CK128: 0 | CL128: 0 | CM128: 0 | CN128: 0 | CO128: 0 | CP128: 0 | CQ128: 0 | CR128: 0 | CS128: 0 | CT128: 0 | CU128: 0 | CV128: 0 | CW128: 0 | CX128: 0 | CY128: 0 | CZ128: 0 | DA128: 0 | DB128: 0 | DC128: 0 | DD128: 0 | DE128: 0 | DF128: 0 | DG128: 0 | DH128: 0
C129: > 66 kV & < = 132 kV ; > 60 MVA | D129: 44.8 | E129: 6.693280212 | F129: 0 | G129: 0 | H129: 0 | I129: 0 | J129: 2 | K129: 0 | L129: 0 | M129: 0 | N129: 0 | O129: 0 | P129: 0 | Q129: 0 | R129: 0 | S129: 0 | T129: 0 | U129: 0 | V129: 0 | W129: 0 | X129: 0 | Y129: 0 | Z129: 0 | AA129: 0 | AB129: 0 | AC129: 0 | AD129: 0 | AE129: 0 | AF129: 0 | AG129: 0 | AH129: 0 | AI129: 0 | AJ129: 0 | AK129: 0 | AL129: 0 | AM129: 0 | AN129: 0 | AO129: 0 | AP129: 0 | AQ129: 0 | AR129: 0 | AS129: 0 | AT129: 0 | AU129: 0 | AV129: 0 | AW129: 0 | AX129: 0 | AY129: 0 | AZ129: 1 | BA129: 1 | BB129: 0 | BC129: 0 | BD129: 0 | BE129: 0 | BF129: 0 | BG129: 0 | BH129: 0 | BI129: 0 | BJ129: 0 | BK129: 0 | BL129: 0 | BM129: 0 | BN129: 0 | BO129: 0 | BP129: 0 | BQ129: 0 | BR129: 0 | BS129: 0 | BT129: 0 | BU129: 0 | BV129: 0 | BW129: 0 | BX129: 0 | BY129: 0 | BZ129: 0 | CA129: 0 | CB129: 0 | CC129: 0 | CD129: 0 | CE129: 0 | CF129: 0 | CG129: 0 | CH129: 0 | CI129: 0 | CJ129: 0 | CK129: 0 | CL129: 0 | CM129: 0 | CN129: 0 | CO129: 0 | CP129: 0 | CQ129: 0 | CR129: 0 | CS129: 0 | CT129: 0 | CU129: 0 | CV129: 0 | CW129: 0 | CX129: 0 | CY129: 0 | CZ129: 0 | DA129: 0 | DB129: 0 | DC129: 0 | DD129: 0 | DE129: 0 | DF129: 0 | DG129: 0 | DH129: 0
C130: > 132 kV & < = 220 kV ; < = 50 MVA
C131: > 132 kV & < = 220 kV ; > 50 MVA & < = 100 MVA
C132: > 132 kV & < = 220 kV ; > 100 MVA
C133: > 220 kV & < = 275 kV ; < = 50 MVA | D133: 44.8 | E133: 6.693280212 | F133: 0 | G133: 0 | H133: 0 | I133: 0
C134: > 220 kV & < = 275 kV ; > 50 MVA & < = 100 MVA | D134: 44.8 | E134: 6.693280212 | F134: 0 | G134: 0 | H134: 0 | I134: 0 | J134: 0 | K134: 0 | L134: 0 | M134: 0 | N134: 0 | O134: 0 | P134: 0 | Q134: 0 | R134: 0 | S134: 0 | T134: 0 | U134: 0 | V134: 0 | W134: 0 | X134: 0 | Y134: 0 | Z134: 0 | AA134: 0 | AB134: 0 | AC134: 0 | AD134: 0 | AE134: 0 | AF134: 0 | AG134: 0 | AH134: 2 | AI134: 2 | AJ134: 0 | AK134: 0 | AL134: 0 | AM134: 0 | AN134: 0 | AO134: 0 | AP134: 0 | AQ134: 0 | AR134: 0 | AS134: 0 | AT134: 0 | AU134: 0 | AV134: 0 | AW134: 0 | AX134: 0 | AY134: 0 | AZ134: 0 | BA134: 0 | BB134: 0 | BC134: 0 | BD134: 0 | BE134: 0 | BF134: 0 | BG134: 0 | BH134: 0 | BI134: 0 | BJ134: 0 | BK134: 0 | BL134: 0 | BM134: 0 | BN134: 0 | BO134: 0 | BP134: 0 | BQ134: 0 | BR134: 0 | BS134: 0 | BT134: 0 | BU134: 0 | BV134: 0 | BW134: 0 | BX134: 0 | BY134: 0 | BZ134: 0 | CA134: 0 | CB134: 0 | CC134: 0 | CD134: 0 | CE134: 0 | CF134: 0 | CG134: 0 | CH134: 0 | CI134: 0 | CJ134: 0 | CK134: 0 | CL134: 0 | CM134: 0 | CN134: 0 | CO134: 0 | CP134: 0 | CQ134: 0 | CR134: 0 | CS134: 0 | CT134: 0 | CU134: 0 | CV134: 0 | CW134: 0 | CX134: 0 | CY134: 0 | CZ134: 0 | DA134: 0 | DB134: 0 | DC134: 0 | DD134: 0 | DE134: 0 | DF134: 0 | DG134: 0 | DH134: 0
C135: > 220 kV & < = 275 kV ; > 100 MVA | D135: 44.8 | E135: 6.693280212 | F135: 0 | G135: 1 | H135: 0 | I135: 2 | J135: 0 | K135: 2 | L135: 1 | M135: 1 | N135: 0 | O135: 2 | P135: 0 | Q135: 0 | R135: 3 | S135: 2 | T135: 0 | U135: 1 | V135: 1 | W135: 1 | X135: 0 | Y135: 0 | Z135: 0 | AA135: 0 | AB135: 1 | AC135: 1 | AD135: 0 | AE135: 0 | AF135: 1 | AG135: 0 | AH135: 0 | AI135: 0 | AJ135: 1 | AK135: 2 | AL135: 1 | AM135: 0 | AN135: 1 | AO135: 2 | AP135: 1 | AQ135: 1 | AR135: 0 | AS135: 2 | AT135: 0 | AU135: 0 | AV135: 0 | AW135: 0 | AX135: 1 | AY135: 0 | AZ135: 0 | BA135: 0 | BB135: 1 | BC135: 2 | BD135: 1 | BE135: 4 | BF135: 0 | BG135: 0 | BH135: 0 | BI135: 0 | BJ135: 0 | BK135: 0 | BL135: 0 | BM135: 0 | BN135: 0 | BO135: 0 | BP135: 0 | BQ135: 0 | BR135: 0 | BS135: 0 | BT135: 0 | BU135: 0 | BV135: 0 | BW135: 0 | BX135: 0 | BY135: 0 | BZ135: 0 | CA135: 0 | CB135: 0 | CC135: 0 | CD135: 0 | CE135: 0 | CF135: 0 | CG135: 0 | CH135: 0 | CI135: 0 | CJ135: 0 | CK135: 0 | CL135: 0 | CM135: 0 | CN135: 0 | CO135: 0 | CP135: 0 | CQ135: 0 | CR135: 0 | CS135: 0 | CT135: 0 | CU135: 0 | CV135: 0 | CW135: 0 | CX135: 0 | CY135: 0 | CZ135: 0 | DA135: 0 | DB135: 0 | DC135: 0 | DD135: 0 | DE135: 0 | DF135: 0 | DG135: 0 | DH135: 0
C136: > 275 kV & < = 330 kV ; < = 100 MVA
C137: > 275 kV & < = 330 kV ; > 100 MVA & < = 250 MVA
C138: > 275 kV & < = 330 kV ; > 250 MVA
C139: > 330 kV & < = 500 kV ; < = 150 MVA
C140: > 330 kV & < = 500 kV ; > 150 MVA & < = 300 MVA
C141: > 330 kV & < = 500 kV ; > 300 MVA
C142: > 500 kV ; < = 1000 MVA
C143: > 500 kV ; > 1000 MVA & < = 1500 MVA
C144: > 500 kV ; > 1500 MVA
C145: Other
B146: SUBSTATION REACTIVE PLANT BY: Highest operating voltage; Function | C146: < = 33 kV; SVCS
C147: > 33 kV & < = 66 kV ; SVCS
C148: > 66 kV & < = 132 kV ; SVCS
C149: > 132 kV & < = 275 kV ; SVCS | AH149: 2 | AI149: 2
C150: > 275 kV & < = 330 kV ; SVCS
C151: > 330 kV & < = 500 kV ; SVCS
C152: > 500 kV ; SVCS
C153: < = 33 kV; Capacitors | D153: 44.8 | E153: 6.693280212 | F153: 0 | G153: 0 | H153: 0 | I153: 0 | J153: 0 | K153: 0 | L153: 4 | M153: 0 | N153: 0 | O153: 0 | P153: 0 | Q153: 0 | R153: 0 | S153: 0 | T153: 0 | U153: 0 | V153: 0 | W153: 0 | X153: 0 | Y153: 0 | Z153: 0 | AA153: 0 | AB153: 0 | AC153: 0 | AD153: 0 | AE153: 0 | AF153: 0 | AG153: 0 | AH153: 0 | AI153: 4 | AJ153: 1 | AK153: 0 | AL153: 0 | AM153: 1 | AN153: 0 | AO153: 0 | AP153: 0 | AQ153: 0 | AR153: 0 | AS153: 0 | AT153: 3 | AU153: 2 | AV153: 1 | AW153: 1 | AX153: 2 | AY153: 0 | AZ153: 2 | BA153: 1 | BB153: 0 | BC153: 0 | BD153: 0 | BE153: 0 | BF153: 0 | BG153: 0 | BH153: 0 | BI153: 0 | BJ153: 0 | BK153: 0 | BL153: 0 | BM153: 0 | BN153: 0 | BO153: 0 | BP153: 0 | BQ153: 0 | BR153: 0 | BS153: 0 | BT153: 0 | BU153: 0 | BV153: 0 | BW153: 0 | BX153: 0 | BY153: 0 | BZ153: 0 | CA153: 0 | CB153: 0 | CC153: 0 | CD153: 0 | CE153: 0 | CF153: 0 | CG153: 0 | CH153: 0 | CI153: 0 | CJ153: 0 | CK153: 0 | CL153: 0 | CM153: 0 | CN153: 0 | CO153: 0 | CP153: 0 | CQ153: 0 | CR153: 0 | CS153: 0 | CT153: 0 | CU153: 0 | CV153: 0 | CW153: 0 | CX153: 0 | CY153: 0 | CZ153: 0 | DA153: 0 | DB153: 0 | DC153: 0 | DD153: 0 | DE153: 0 | DF153: 0 | DG153: 0 | DH153: 0
C154: > 33 kV & < = 66 kV ; Capacitors | D154: 44.8 | E154: 6.693280212 | F154: 0 | G154: 0 | H154: 0 | I154: 0 | J154: 0 | K154: 0 | L154: 0 | M154: 0 | N154: 0 | O154: 0 | P154: 0 | Q154: 0 | R154: 0 | S154: 0 | T154: 0 | U154: 0 | V154: 0 | W154: 0 | X154: 0 | Y154: 4 | Z154: 0 | AA154: 0 | AB154: 0 | AC154: 0 | AD154: 0 | AE154: 0 | AF154: 0 | AG154: 0 | AH154: 0 | AI154: 0 | AJ154: 0 | AK154: 0 | AL154: 0 | AM154: 0 | AN154: 0 | AO154: 2 | AP154: 0 | AQ154: 0 | AR154: 0 | AS154: 0 | AT154: 0 | AU154: 0 | AV154: 0 | AW154: 0 | AX154: 0 | AY154: 0 | AZ154: 0 | BA154: 0 | BB154: 0 | BC154: 0 | BD154: 0 | BE154: 0 | BF154: 0 | BG154: 0 | BH154: 0 | BI154: 0 | BJ154: 0 | BK154: 0 | BL154: 0 | BM154: 0 | BN154: 0 | BO154: 0 | BP154: 0 | BQ154: 0 | BR154: 0 | BS154: 0 | BT154: 0 | BU154: 0 | BV154: 0 | BW154: 0 | BX154: 0 | BY154: 0 | BZ154: 0 | CA154: 0 | CB154: 0 | CC154: 0 | CD154: 0 | CE154: 0 | CF154: 0 | CG154: 0 | CH154: 0 | CI154: 0 | CJ154: 0 | CK154: 0 | CL154: 0 | CM154: 0 | CN154: 0 | CO154: 0 | CP154: 0 | CQ154: 0 | CR154: 0 | CS154: 0 | CT154: 0 | CU154: 0 | CV154: 0 | CW154: 0 | CX154: 0 | CY154: 0 | CZ154: 0 | DA154: 0 | DB154: 0 | DC154: 0 | DD154: 0 | DE154: 0 | DF154: 0 | DG154: 0 | DH154: 0
C155: > 66 kV & < = 132 kV ; Capacitors | D155: 44.8 | E155: 6.693280212 | F155: 0 | G155: 0 | H155: 0 | I155: 1 | J155: 4 | K155: 0 | L155: 0 | M155: 0 | N155: 0 | O155: 0 | P155: 0 | Q155: 0 | R155: 0 | S155: 1 | T155: 0 | U155: 2 | V155: 0 | W155: 0 | X155: 0 | Y155: 0 | Z155: 0 | AA155: 0 | AB155: 0 | AC155: 0 | AD155: 0 | AE155: 0 | AF155: 0 | AG155: 0 | AH155: 0 | AI155: 0 | AJ155: 0 | AK155: 0 | AL155: 0 | AM155: 0 | AN155: 0 | AO155: 0 | AP155: 0 | AQ155: 0 | AR155: 0 | AS155: 0 | AT155: 0 | AU155: 0 | AV155: 0 | AW155: 0 | AX155: 0 | AY155: 0 | AZ155: 0 | BA155: 0 | BB155: 0 | BC155: 0 | BD155: 0 | BE155: 0 | BF155: 0 | BG155: 0 | BH155: 0 | BI155: 0 | BJ155: 0 | BK155: 0 | BL155: 0 | BM155: 0 | BN155: 0 | BO155: 0 | BP155: 0 | BQ155: 0 | BR155: 0 | BS155: 0 | BT155: 0 | BU155: 0 | BV155: 0 | BW155: 0 | BX155: 0 | BY155: 0 | BZ155: 0 | CA155: 0 | CB155: 0 | CC155: 0 | CD155: 0 | CE155: 0 | CF155: 0 | CG155: 0 | CH155: 0 | CI155: 0 | CJ155: 0 | CK155: 0 | CL155: 0 | CM155: 0 | CN155: 0 | CO155: 0 | CP155: 0 | CQ155: 0 | CR155: 0 | CS155: 0 | CT155: 0 | CU155: 0 | CV155: 0 | CW155: 0 | CX155: 0 | CY155: 0 | CZ155: 0 | DA155: 0 | DB155: 0 | DC155: 0 | DD155: 0 | DE155: 0 | DF155: 0 | DG155: 0 | DH155: 0
C156: > 132 kV & < = 275 kV ; Capacitors | D156: 44.8 | E156: 6.693280212 | F156: 0 | G156: 0 | H156: 0 | I156: 0 | J156: 1 | K156: 0 | L156: 0 | M156: 0 | N156: 0 | O156: 0 | P156: 0 | Q156: 0 | R156: 1 | S156: 0 | T156: 0 | U156: 0 | V156: 1 | W156: 1 | X156: 0 | Y156: 0 | Z156: 0 | AA156: 0 | AB156: 0 | AC156: 0 | AD156: 0 | AE156: 0 | AF156: 0 | AG156: 0 | AH156: 1 | AI156: 2 | AJ156: 0 | AK156: 0 | AL156: 0 | AM156: 0 | AN156: 0 | AO156: 0 | AP156: 0 | AQ156: 0 | AR156: 0 | AS156: 0 | AT156: 0 | AU156: 0 | AV156: 0 | AW156: 0 | AX156: 0 | AY156: 0 | AZ156: 0 | BA156: 0 | BB156: 0 | BC156: 0 | BD156: 0 | BE156: 0 | BF156: 0 | BG156: 0 | BH156: 0 | BI156: 0 | BJ156: 0 | BK156: 0 | BL156: 0 | BM156: 0 | BN156: 0 | BO156: 0 | BP156: 0 | BQ156: 0 | BR156: 0 | BS156: 0 | BT156: 0 | BU156: 0 | BV156: 0 | BW156: 0 | BX156: 0 | BY156: 0 | BZ156: 0 | CA156: 0 | CB156: 0 | CC156: 0 | CD156: 0 | CE156: 0 | CF156: 0 | CG156: 0 | CH156: 0 | CI156: 0 | CJ156: 0 | CK156: 0 | CL156: 0 | CM156: 0 | CN156: 0 | CO156: 0 | CP156: 0 | CQ156: 0 | CR156: 0 | CS156: 0 | CT156: 0 | CU156: 0 | CV156: 0 | CW156: 0 | CX156: 0 | CY156: 0 | CZ156: 0 | DA156: 0 | DB156: 0 | DC156: 0 | DD156: 0 | DE156: 0 | DF156: 0 | DG156: 0 | DH156: 0
C157: > 275 kV & < = 330 kV ; Capacitors | D157: 44.8 | E157: 6.693280212
C158: > 330 kV & < = 500 kV ; Capacitors | D158: 44.8 | E158: 6.693280212
C159: > 500 kV ; Capacitors | D159: 44.8 | E159: 6.693280212
C160: < = 33 kV; Oil Filled Reactors | D160: 44.8 | E160: 6.693280212 | F160: 0 | G160: 0 | H160: 0 | I160: 1 | J160: 1 | K160: 0 | L160: 0 | M160: 0 | N160: 0 | O160: 0 | P160: 0 | Q160: 0 | R160: 0 | S160: 0 | T160: 0 | U160: 0 | V160: 0 | W160: 0 | X160: 0 | Y160: 0 | Z160: 0 | AA160: 0 | AB160: 0 | AC160: 0 | AD160: 0 | AE160: 0 | AF160: 0 | AG160: 0 | AH160: 0 | AI160: 0 | AJ160: 0 | AK160: 0 | AL160: 0 | AM160: 0 | AN160: 0 | AO160: 0 | AP160: 0 | AQ160: 0 | AR160: 0 | AS160: 0 | AT160: 0 | AU160: 0 | AV160: 0 | AW160: 0 | AX160: 0 | AY160: 0 | AZ160: 0 | BA160: 0 | BB160: 0 | BC160: 0 | BD160: 0 | BE160: 0 | BF160: 4 | BG160: 0 | BH160: 0 | BI160: 0 | BJ160: 0 | BK160: 0 | BL160: 0 | BM160: 0 | BN160: 0 | BO160: 0 | BP160: 0 | BQ160: 0 | BR160: 0 | BS160: 0 | BT160: 0 | BU160: 0 | BV160: 0 | BW160: 0 | BX160: 0 | BY160: 0 | BZ160: 0 | CA160: 0 | CB160: 0 | CC160: 0 | CD160: 0 | CE160: 0 | CF160: 0 | CG160: 0 | CH160: 0 | CI160: 0 | CJ160: 0 | CK160: 0 | CL160: 0 | CM160: 0 | CN160: 0 | CO160: 0 | CP160: 0 | CQ160: 0 | CR160: 0 | CS160: 0 | CT160: 0 | CU160: 0 | CV160: 0 | CW160: 0 | CX160: 0 | CY160: 0 | CZ160: 0 | DA160: 0 | DB160: 0 | DC160: 0 | DD160: 0 | DE160: 0 | DF160: 0 | DG160: 0 | DH160: 0
C161: > 33 kV & < = 66 kV ; Oil Filled Reactors | D161: 44.8 | E161: 6.693280212 | F161: 0 | G161: 0 | H161: 0 | I161: 0 | J161: 0 | K161: 0 | L161: 0 | M161: 0 | N161: 0 | O161: 0 | P161: 0 | Q161: 0 | R161: 0 | S161: 0 | T161: 0 | U161: 0 | V161: 0 | W161: 0 | X161: 0 | Y161: 0 | Z161: 0 | AA161: 0 | AB161: 0 | AC161: 0 | AD161: 0 | AE161: 0 | AF161: 0 | AG161: 0 | AH161: 0 | AI161: 0 | AJ161: 0 | AK161: 0 | AL161: 0 | AM161: 0 | AN161: 0 | AO161: 0 | AP161: 0 | AQ161: 0 | AR161: 0 | AS161: 0 | AT161: 0 | AU161: 0 | AV161: 0 | AW161: 0 | AX161: 0 | AY161: 0 | AZ161: 0 | BA161: 0 | BB161: 0 | BC161: 0 | BD161: 0 | BE161: 0 | BF161: 0 | BG161: 0 | BH161: 0 | BI161: 0 | BJ161: 0 | BK161: 0 | BL161: 0 | BM161: 0 | BN161: 0 | BO161: 0 | BP161: 0 | BQ161: 0 | BR161: 0 | BS161: 0 | BT161: 0 | BU161: 0 | BV161: 0 | BW161: 0 | BX161: 0 | BY161: 0 | BZ161: 0 | CA161: 0 | CB161: 0 | CC161: 0 | CD161: 0 | CE161: 0 | CF161: 0 | CG161: 0 | CH161: 0 | CI161: 0 | CJ161: 0 | CK161: 0 | CL161: 0 | CM161: 0 | CN161: 0 | CO161: 0 | CP161: 0 | CQ161: 0 | CR161: 0 | CS161: 0 | CT161: 0 | CU161: 0 | CV161: 0 | CW161: 0 | CX161: 0 | CY161: 0 | CZ161: 0 | DA161: 0 | DB161: 0 | DC161: 0 | DD161: 0 | DE161: 0 | DF161: 0 | DG161: 0 | DH161: 0
C162: > 66 kV & < = 132 kV ; Oil Filled Reactors | D162: 44.8 | E162: 6.693280212 | F162: 0 | G162: 0 | H162: 0 | I162: 0 | J162: 0 | K162: 0 | L162: 0 | M162: 0 | N162: 0 | O162: 0 | P162: 0 | Q162: 0 | R162: 0 | S162: 0 | T162: 0 | U162: 0 | V162: 0 | W162: 0 | X162: 0 | Y162: 0 | Z162: 0 | AA162: 0 | AB162: 0 | AC162: 0 | AD162: 0 | AE162: 0 | AF162: 0 | AG162: 0 | AH162: 0 | AI162: 0 | AJ162: 0 | AK162: 0 | AL162: 0 | AM162: 0 | AN162: 0 | AO162: 0 | AP162: 0 | AQ162: 0 | AR162: 0 | AS162: 0 | AT162: 0 | AU162: 0 | AV162: 0 | AW162: 0 | AX162: 0 | AY162: 0 | AZ162: 0 | BA162: 0 | BB162: 0 | BC162: 0 | BD162: 0 | BE162: 0 | BF162: 0 | BG162: 0 | BH162: 0 | BI162: 0 | BJ162: 0 | BK162: 0 | BL162: 0 | BM162: 0 | BN162: 0 | BO162: 0 | BP162: 0 | BQ162: 0 | BR162: 0 | BS162: 0 | BT162: 0 | BU162: 0 | BV162: 0 | BW162: 0 | BX162: 0 | BY162: 0 | BZ162: 0 | CA162: 0 | CB162: 0 | CC162: 0 | CD162: 0 | CE162: 0 | CF162: 0 | CG162: 0 | CH162: 0 | CI162: 0 | CJ162: 0 | CK162: 0 | CL162: 0 | CM162: 0 | CN162: 0 | CO162: 0 | CP162: 0 | CQ162: 0 | CR162: 0 | CS162: 0 | CT162: 0 | CU162: 0 | CV162: 0 | CW162: 0 | CX162: 0 | CY162: 0 | CZ162: 0 | DA162: 0 | DB162: 0 | DC162: 0 | DD162: 0 | DE162: 0 | DF162: 0 | DG162: 0 | DH162: 0
C163: > 132 kV & < = 275 kV ; Oil Filled Reactors | D163: 44.8 | E163: 6.693280212 | F163: 0 | G163: 1 | H163: 0 | I163: 0 | J163: 1 | K163: 3 | L163: 0 | M163: 1 | N163: 0 | O163: 0 | P163: 0 | Q163: 0 | R163: 0 | S163: 0 | T163: 0 | U163: 0 | V163: 0 | W163: 0 | X163: 0 | Y163: 0 | Z163: 0 | AA163: 0 | AB163: 0 | AC163: 0 | AD163: 0 | AE163: 0 | AF163: 0 | AG163: 0 | AH163: 0 | AI163: 4 | AJ163: 0 | AK163: 0 | AL163: 0 | AM163: 0 | AN163: 0 | AO163: 0 | AP163: 0 | AQ163: 0 | AR163: 0 | AS163: 0 | AT163: 0 | AU163: 0 | AV163: 0 | AW163: 0 | AX163: 0 | AY163: 0 | AZ163: 0 | BA163: 0 | BB163: 0 | BC163: 0 | BD163: 0 | BE163: 0 | BF163: 0 | BG163: 0 | BH163: 0 | BI163: 0 | BJ163: 0 | BK163: 0 | BL163: 0 | BM163: 0 | BN163: 0 | BO163: 0 | BP163: 0 | BQ163: 0 | BR163: 0 | BS163: 0 | BT163: 0 | BU163: 0 | BV163: 0 | BW163: 0 | BX163: 0 | BY163: 0 | BZ163: 0 | CA163: 0 | CB163: 0 | CC163: 0 | CD163: 0 | CE163: 0 | CF163: 0 | CG163: 0 | CH163: 0 | CI163: 0 | CJ163: 0 | CK163: 0 | CL163: 0 | CM163: 0 | CN163: 0 | CO163: 0 | CP163: 0 | CQ163: 0 | CR163: 0 | CS163: 0 | CT163: 0 | CU163: 0 | CV163: 0 | CW163: 0 | CX163: 0 | CY163: 0 | CZ163: 0 | DA163: 0 | DB163: 0 | DC163: 0 | DD163: 0 | DE163: 0 | DF163: 0 | DG163: 0 | DH163: 0
C164: > 275 kV & < = 330 kV ; Oil Filled Reactors | D164: 44.8 | E164: 6.693280212
C165: > 330 kV & < = 500 kV ; Oil Filled Reactors | D165: 44.8 | E165: 6.693280212
C166: > 500 kV ; Oil Filled Reactors | D166: 44.8 | E166: 6.693280212
C167: Other
B168: SCADA, NETWORK CONTROL AND PROTECTION SYSTEMS BY: Function | C168: Communications Network Assets
C169: Master Station Assets
C170: Control equipment / systems
C171: Infrastructure: protection and control
C172: Metering systems
C173: OPGW | D173: 27 | E173: 5.196152423 | F173: 93.517 | G173: 0 | H173: 19.463 | I173: 229.01291 | J173: 22.730092 | K173: 73.657 | L173: 78.078295 | M173: 225.7249 | N173: 3.48 | O173: 42.158866 | P173: 0 | Q173: 32.860254 | R173: 67.0136 | S173: 0 | T173: 0 | U173: 3.803 | V173: 3.613 | W173: 3.698 | X173: 1.636 | Y173: 0.615 | Z173: 0 | AA173: 0 | AB173: 0 | AC173: 0 | AD173: 0 | AE173: 0 | AF173: 0 | AG173: 0 | AH173: 0 | AI173: 0 | AJ173: 0 | AK173: 0 | AL173: 0 | AM173: 0 | AN173: 0 | AO173: 0 | AP173: 0 | AQ173: 0 | AR173: 0 | AS173: 0 | AT173: 0 | AU173: 0 | AV173: 0 | AW173: 0 | AX173: 0 | AY173: 0 | AZ173: 0 | BA173: 0 | BB173: 0 | BC173: 0 | BD173: 0 | BE173: 0 | BF173: 0 | BG173: 0 | BH173: 0 | BI173: 0 | BJ173: 0 | BK173: 0 | BL173: 0 | BM173: 0 | BN173: 0 | BO173: 0 | BP173: 0 | BQ173: 0 | BR173: 0 | BS173: 0 | BT173: 0 | BU173: 0 | BV173: 0 | BW173: 0 | BX173: 0 | BY173: 0 | BZ173: 0 | CA173: 0 | CB173: 0 | CC173: 0 | CD173: 0 | CE173: 0 | CF173: 0 | CG173: 0 | CH173: 0 | CI173: 0 | CJ173: 0 | CK173: 0 | CL173: 0 | CM173: 0 | CN173: 0 | CO173: 0 | CP173: 0 | CQ173: 0 | CR173: 0 | CS173: 0 | CT173: 0 | CU173: 0 | CV173: 0 | CW173: 0 | CX173: 0 | CY173: 0 | CZ173: 0 | DA173: 0 | DB173: 0 | DC173: 0 | DD173: 0 | DE173: 0 | DF173: 0 | DG173: 0 | DH173: 0
C174: Protection schemes / systems
C175: Site establishment | D175: 55 | E175: 7.416198487 | F175: 1 | G175: 1 | H175: 0 | I175: 0 | J175: 1 | K175: 2 | L175: 2 | M175: 0 | N175: 0 | O175: 1 | P175: 0 | Q175: 1 | R175: 0 | S175: 1 | T175: 0 | U175: 1 | V175: 0 | W175: 1 | X175: 1 | Y175: 1 | Z175: 0 | AA175: 0 | AB175: 0 | AC175: 1 | AD175: 0 | AE175: 1 | AF175: 1 | AG175: 1 | AH175: 2 | AI175: 0 | AJ175: 2 | AK175: 1 | AL175: 0 | AM175: 1 | AN175: 2 | AO175: 2 | AP175: 1 | AQ175: 1 | AR175: 3 | AS175: 2 | AT175: 4 | AU175: 1 | AV175: 0 | AW175: 2 | AX175: 1 | AY175: 1 | AZ175: 3 | BA175: 2 | BB175: 5 | BC175: 2 | BD175: 2 | BE175: 3 | BF175: 5 | BG175: 3 | BH175: 1 | BI175: 0 | BJ175: 2 | BK175: 1 | BL175: 1 | BM175: 0 | BN175: 1 | BO175: 0 | BP175: 0 | BQ175: 1 | BR175: 2 | BS175: 0 | BT175: 0 | BU175: 0 | BV175: 0 | BW175: 0 | BX175: 0 | BY175: 0 | BZ175: 0 | CA175: 0 | CB175: 0 | CC175: 0 | CD175: 0 | CE175: 0 | CF175: 0 | CG175: 0 | CH175: 0 | CI175: 0 | CJ175: 0 | CK175: 0 | CL175: 0 | CM175: 0 | CN175: 0 | CO175: 0 | CP175: 0 | CQ175: 0 | CR175: 0 | CS175: 0 | CT175: 0 | CU175: 0 | CV175: 0 | CW175: 0 | CX175: 0 | CY175: 0 | CZ175: 0 | DA175: 0 | DB175: 0 | DC175: 0 | DD175: 0 | DE175: 0 | DF175: 0 | DG175: 0 | DH175: 0
C176: Station SCADA and control systems
C177: Telecommunications Network / Systems
C178: Total secondary systems | D178: 15 | E178: 3.872983346 | F178: 67 | G178: 73 | H178: 26 | I178: 206 | J178: 86 | K178: 55 | L178: 64 | M178: 52 | N178: 16 | O178: 87 | P178: 15 | Q178: 119 | R178: 52 | S178: 113 | T178: 16 | U178: 27 | V178: 8 | W178: 31 | X178: 9 | Y178: 25 | Z178: 0 | AA178: 0 | AB178: 0 | AC178: 0 | AD178: 0 | AE178: 0 | AF178: 0 | AG178: 11 | AH178: 12 | AI178: 12 | AJ178: 8 | AK178: 7 | AL178: 19 | AM178: 1 | AN178: 55 | AO178: 5 | AP178: 1 | AQ178: 0 | AR178: 16 | AS178: 6 | AT178: 18 | AU178: 2 | AV178: 0 | AW178: 29 | AX178: 1 | AY178: 3 | AZ178: 2 | BA178: 8 | BB178: 12 | BC178: 3 | BD178: 2 | BE178: 0 | BF178: 3 | BG178: 2 | BH178: 0 | BI178: 0 | BJ178: 0 | BK178: 3 | BL178: 0 | BM178: 0 | BN178: 0 | BO178: 0 | BP178: 0 | BQ178: 0 | BR178: 0 | BS178: 0 | BT178: 0 | BU178: 0 | BV178: 0 | BW178: 0 | BX178: 0 | BY178: 0 | BZ178: 0 | CA178: 0 | CB178: 0 | CC178: 0 | CD178: 0 | CE178: 0 | CF178: 0 | CG178: 0 | CH178: 0 | CI178: 0 | CJ178: 0 | CK178: 0 | CL178: 0 | CM178: 0 | CN178: 0 | CO178: 0 | CP178: 0 | CQ178: 0 | CR178: 0 | CS178: 0 | CT178: 0 | CU178: 0 | CV178: 0 | CW178: 0 | CX178: 0 | CY178: 0 | CZ178: 0 | DA178: 0 | DB178: 0 | DC178: 0 | DD178: 0 | DE178: 0 | DF178: 0 | DG178: 0 | DH178: 0
C179: Other
B180: OTHER BY: TNSP defined
C181: SCADA, NETWORK CONTROL AND PROTECTION SYSTEMS BY: FUNCTION Telecommunications | D181: 15 | E181: 3.872983346 | F181: 1 | G181: 4 | H181: 3 | I181: 1 | J181: 2 | K181: 5 | L181: 2 | M181: 3 | N181: 6 | O181: 4 | P181: 1 | Q181: 4 | R181: 0 | S181: 1 | T181: 0 | U181: 6 | V181: 1 | W181: 2 | X181: 1 | Y181: 1 | Z181: 0 | AA181: 0 | AB181: 1 | AC181: 1 | AD181: 0 | AE181: 1 | AF181: 1 | AG181: 2 | AH181: 4 | AI181: 2 | AJ181: 5 | AK181: 1 | AL181: 0 | AM181: 1 | AN181: 2 | AO181: 2 | AP181: 1 | AQ181: 1 | AR181: 3 | AS181: 2 | AT181: 4 | AU181: 1 | AV181: 0 | AW181: 2 | AX181: 1 | AY181: 1 | AZ181: 3 | BA181: 2 | BB181: 5 | BC181: 2 | BD181: 2 | BE181: 3 | BF181: 5 | BG181: 3 | BH181: 1 | BI181: 0 | BJ181: 2 | BK181: 1 | BL181: 1 | BM181: 0 | BN181: 1 | BO181: 0 | BP181: 0 | BQ181: 1 | BR181: 2 | BS181: 0 | BT181: 0 | BU181: 0 | BV181: 0 | BW181: 0 | BX181: 0 | BY181: 0 | BZ181: 0 | CA181: 0 | CB181: 0 | CC181: 0 | CD181: 0 | CE181: 0 | CF181: 0 | CG181: 0 | CH181: 0 | CI181: 0 | CJ181: 0 | CK181: 0 | CL181: 0 | CM181: 0 | CN181: 0 | CO181: 0 | CP181: 0 | CQ181: 0 | CR181: 0 | CS181: 0 | CT181: 0 | CU181: 0 | CV181: 0 | CW181: 0 | CX181: 0 | CY181: 0 | CZ181: 0 | DA181: 0 | DB181: 0 | DC181: 0 | DD181: 0 | DE181: 0 | DF181: 0 | DG181: 0 | DH181: 0

Sheet 5.3 MD - Network level
B1: REGULATORY REPORTING STATEMENT
B2: =INDEX(dms_TradingNameFull_List,MATCH(dms_TradingName,dms_TradingName_List)) -> ElectraNet
B3: =CONCATENATE((LOOKUP(dms_Model,dms_Model_List,dms_Worksheet_List))&" "&CRY) -> CATEGORY ANALYSIS 2016-17
B4: 5.3 MAXIMUM DEMAND AT NETWORK LEVEL
B7: 5.3.1 - RAW AND WEATHER CORRECTED COINCIDENT MD AT NETWORK LEVEL (Summed at transmission connection point)
C8: UNIT | D8: =CRY -> 2016-17
B9: Raw network coincident MD | C9: MW | D9: 2955.01515
B10: Date MD occurred | D10: 2017-02-08
B11: Half hour time period MD occurred | D11: 18:30:00
B12: Winter/summer peaking | D12: Summer
B13: Embedded generation | C13: MW | D13: 221.4825
B14: Weather corrected (10% POE) network coincident MD | C14: MW | D14: 3137.117807
B15: Weather corrected (50% POE) network coincident MD | C15: MW | D15: 2800.992022

Sheet 5.4 MD & utilisation-Spatial
B1: REGULATORY REPORTING STATEMENT
B2: =INDEX(dms_TradingNameFull_List,MATCH(dms_TradingName,dms_TradingName_List)) -> ElectraNet
B3: =CONCATENATE((LOOKUP(dms_Model,dms_Model_List,dms_Worksheet_List))&" "&CRY) -> CATEGORY ANALYSIS 2016-17
B4: 5.4 MAXIMUM DEMAND AND UTILISATION AT SPATIAL LEVEL
B6: There is ONE table on this worksheet. It has been sub-grouped into blocks of approximately 1000 rows for ease of navigation. See the Instructions sheet on how to group or ungroup data.
B8: TABLE 5.4.1 NON-COINCIDENT & COINCIDENT MAXIMUM DEMAND
B9: CONNECTION POINT | C9: FORECASTING ELEMENTS | D9: UNIT | E9: MAX DEMAND | F9: =CRY -> 2016-17
B10: ACR | C10: Connection Point Rating | D10: MVA | E10: Non-Coincident | F10: 600
E11: Coincident | F11: 600
C12: Raw Adjusted MD | D12: MW | E12: Non-Coincident | F12: 331.5540913
E13: Coincident | F13: 319.458266
C14: Raw Adjusted MD | D14: MVA | E14: Non-Coincident | F14: 335.1929535
E15: Coincident | F15: 324.4520633
C16: Date MD occurred | E16: Non-Coincident | F16: 2017-02-09
E17: Coincident | F17: 2017-02-08
C18: Half hour time period MD occurred | E18: Non-Coincident | F18: 19:00:00
E19: Coincident | F19: 18:30:00
C20: Winter/Summer Peaking | E20: Non-Coincident | F20: Summer
E21: Coincident | F21: Summer
C22: Adjustments - Embedded generation | D22: MW | E22: Non-Coincident | F22: 0.303899599
E23: Coincident | F23: 0.273100574
C24: Weather Corrected MD 10% POE | D24: MW | E24: Non-Coincident | F24: 341.5443604
E25: Coincident | F25: 328.6190906
C26: Weather Corrected MD 10% POE | D26: MVA | E26: Non-Coincident | F26: 345.3177808
E27: Coincident | F27: 333.8696687
C28: Weather Corrected MD 50% POE | D28: MW | E28: Non-Coincident | F28: 305.1027099
E29: Coincident | F29: 293.5860109
C30: Weather Corrected MD 50% POE | D30: MVA | E30: Non-Coincident | F30: 308.4719388
E31: Coincident | F31: 298.2696279
B32: Angas Creek | C32: Connection Point Rating | D32: MVA | E32: Non-Coincident | F32: 56.6
E33: Coincident | F33: 56.6
C34: Raw Adjusted MD | D34: MW | E34: Non-Coincident | F34: 16.556784
E35: Coincident | F35: 15.038294
C36: Raw Adjusted MD | D36: MVA | E36: Non-Coincident | F36: 17.086058
E37: Coincident | F37: 15.424064
C38: Date MD occurred | E38: Non-Coincident | F38: 2017-02-10
E39: Coincident | F39: 2017-02-08
C40: Half hour time period MD occurred | E40: Non-Coincident | F40: 19:00:00
E41: Coincident | F41: 18:30:00
C42: Winter/Summer Peaking | E42: Non-Coincident | F42: Summer
E43: Coincident | F43: Summer
C44: Adjustments - Embedded generation | D44: MW | E44: Non-Coincident | F44: 1.817857167
E45: Coincident | F45: 1.887329418
C46: Weather Corrected MD 10% POE | D46: MW | E46: Non-Coincident | F46: 17.43215625
E47: Coincident | F47: 15.8333823
C48: Weather Corrected MD 10% POE | D48: MVA | E48: Non-Coincident | F48: 17.98941344
E49: Coincident | F49: 16.23954831
C50: Weather Corrected MD 50% POE | D50: MW | E50: Non-Coincident | F50: 15.61046539
E51: Coincident | F51: 14.17876612
C52: Weather Corrected MD 50% POE | D52: MVA | E52: Non-Coincident | F52: 16.10948824
E53: Coincident | F53: 14.54248707
B54: Ardrossan West | C54: Connection Point Rating | D54: MVA | E54: Non-Coincident | F54: 50
E55: Coincident | F55: 50
C56: Raw Adjusted MD | D56: MW | E56: Non-Coincident | F56: 10.542
E57: Coincident | F57: 9.1699
C58: Raw Adjusted MD | D58: MVA | E58: Non-Coincident | F58: 10.74494887
E59: Coincident | F59: 9.318229553
C60: Date MD occurred | E60: Non-Coincident | F60: 2017-01-07
E61: Coincident | F61: 2017-02-08
C62: Half hour time period MD occurred | E62: Non-Coincident | F62: 16:30:00
E63: Coincident | F63: 18:30:00
C64: Winter/Summer Peaking | E64: Non-Coincident | F64: Summer
E65: Coincident | F65: Summer
C66: Adjustments - Embedded generation | D66: MW | E66: Non-Coincident | F66: 1.927375387
E67: Coincident | F67: 1.307344267
C68: Weather Corrected MD 10% POE | D68: MW | E68: Non-Coincident | F68: 8.841977173
E69: Coincident | F69: 7.69114461
C70: Weather Corrected MD 10% POE | D70: MVA | E70: Non-Coincident | F70: 9.012198126
E71: Coincident | F71: 7.815554259
C72: Weather Corrected MD 50% POE | D72: MW | E72: Non-Coincident | F72: 8.069960576
E73: Coincident | F73: 7.019610272
C74: Weather Corrected MD 50% POE | D74: MVA | E74: Non-Coincident | F74: 8.225319084
E75: Coincident | F75: 7.133157383
B76: Back Callington | C76: Connection Point Rating | D76: MVA | E76: Non-Coincident
E77: Coincident
C78: Raw Adjusted MD | D78: MW | E78: Non-Coincident
E79: Coincident
C80: Raw Adjusted MD | D80: MVA | E80: Non-Coincident
E81: Coincident
C82: Date MD occurred | E82: Non-Coincident
E83: Coincident
C84: Half hour time period MD occurred | E84: Non-Coincident
E85: Coincident
C86: Winter/Summer Peaking | E86: Non-Coincident
E87: Coincident
C88: Adjustments - Embedded generation | D88: MW | E88: Non-Coincident
E89: Coincident
C90: Weather Corrected MD 10% POE | D90: MW | E90: Non-Coincident
E91: Coincident
C92: Weather Corrected MD 10% POE | D92: MVA | E92: Non-Coincident
E93: Coincident
C94: Weather Corrected MD 50% POE | D94: MW | E94: Non-Coincident
E95: Coincident
C96: Weather Corrected MD 50% POE | D96: MVA | E96: Non-Coincident
E97: Coincident
B98: Baroota | C98: Connection Point Rating | D98: MVA | E98: Non-Coincident | F98: 11.8
E99: Coincident | F99: 11.8
C100: Raw Adjusted MD | D100: MW | E100: Non-Coincident | F100: 8.2372
E101: Coincident | F101: 7.463
C102: Raw Adjusted MD | D102: MVA | E102: Non-Coincident | F102: 8.258726333
E103: Coincident | F103: 7.478924912
C104: Date MD occurred | E104: Non-Coincident | F104: 2017-02-09
E105: Coincident | F105: 2017-02-08
C106: Half hour time period MD occurred | E106: Non-Coincident | F106: 19:30:00
E107: Coincident | F107: 18:30:00
C108: Winter/Summer Peaking | E108: Non-Coincident | F108: Summer
E109: Coincident | F109: Summer
C110: Adjustments - Embedded generation | D110: MW | E110: Non-Coincident | F110: 0.501946106
E111: Coincident | F111: 0.783270649
C112: Weather Corrected MD 10% POE | D112: MW | E112: Non-Coincident | F112: 8.244802582
E113: Coincident | F113: 7.469888029
C114: Weather Corrected MD 10% POE | D114: MVA | E114: Non-Coincident | F114: 8.266348783
E115: Coincident | F115: 7.485827639
C116: Weather Corrected MD 50% POE | D116: MW | E116: Non-Coincident | F116: 7.469794249
E117: Coincident | F117: 6.767721372
C118: Weather Corrected MD 50% POE | D118: MVA | E118: Non-Coincident | F118: 7.489315116
E119: Coincident | F119: 6.782162664
B120: Berri | C120: Connection Point Rating | D120: MVA | E120: Non-Coincident | F120: 200.1
E121: Coincident | F121: 200.1
C122: Raw Adjusted MD | D122: MW | E122: Non-Coincident | F122: 85.5478
E123: Coincident | F123: 76.2168
C124: Raw Adjusted MD | D124: MVA | E124: Non-Coincident | F124: 88.13417564
E125: Coincident | F125: 77.88062115
C126: Date MD occurred | E126: Non-Coincident | F126: 2017-02-09
E127: Coincident | F127: 2017-02-08
C128: Half hour time period MD occurred | E128: Non-Coincident | F128: 19:30:00
E129: Coincident | F129: 18:30:00
C130: Winter/Summer Peaking | E130: Non-Coincident | F130: Summer
E131: Coincident | F131: Summer
C132: Adjustments - Embedded generation | D132: MW | E132: Non-Coincident | F132: 3.408202046
E133: Coincident | F133: 5.318388953
C134: Weather Corrected MD 10% POE | D134: MW | E134: Non-Coincident | F134: 90.69780988
E135: Coincident | F135: 80.80508016
C136: Weather Corrected MD 10% POE | D136: MVA | E136: Non-Coincident | F136: 93.43988631
E137: Coincident | F137: 82.56906397
C138: Weather Corrected MD 50% POE | D138: MW | E138: Non-Coincident | F138: 83.47002294
E139: Coincident | F139: 74.36565341
C140: Weather Corrected MD 50% POE | D140: MVA | E140: Non-Coincident | F140: 85.99358092
E141: Coincident | F141: 75.98906382
B142: Blanche | C142: Connection Point Rating | D142: MVA | E142: Non-Coincident | F142: 134.8
E143: Coincident | F143: 134.8
C144: Raw Adjusted MD | D144: MW | E144: Non-Coincident | F144: 35.9136
E145: Coincident | F145: 35.6383
C146: Raw Adjusted MD | D146: MVA | E146: Non-Coincident | F146: 38.11220895
E147: Coincident | F147: 37.59932814
C148: Date MD occurred | E148: Non-Coincident | F148: 2017-02-08
E149: Coincident | F149: 2017-02-08
C150: Half hour time period MD occurred | E150: Non-Coincident | F150: 18:00:00
E151: Coincident | F151: 18:30:00
C152: Winter/Summer Peaking | E152: Non-Coincident | F152: Summer
E153: Coincident | F153: Summer
C154: Adjustments - Embedded generation | D154: MW | E154: Non-Coincident | F154: 1.97921551
E155: Coincident | F155: 1.532498301
C156: Weather Corrected MD 10% POE | D156: MW | E156: Non-Coincident | F156: 34.96582747
E157: Coincident | F157: 34.69779273
C158: Weather Corrected MD 10% POE | D158: MVA | E158: Non-Coincident | F158: 37.10641436
E159: Coincident | F159: 36.60706865
C160: Weather Corrected MD 50% POE | D160: MW | E160: Non-Coincident | F160: 33.1523489
E161: Coincident | F161: 32.8982156
C162: Weather Corrected MD 50% POE | D162: MVA | E162: Non-Coincident | F162: 35.18191573
E163: Coincident | F163: 34.70846824
B164: Brinkworth | C164: Connection Point Rating | D164: MVA | E164: Non-Coincident | F164: 24.6
E165: Coincident | F165: 24.6
C166: Raw Adjusted MD | D166: MW | E166: Non-Coincident | F166: 4.6211
E167: Coincident | F167: 4.2363
C168: Raw Adjusted MD | D168: MVA | E168: Non-Coincident | F168: 4.623786648
E169: Coincident | F169: 4.244965595
C170: Date MD occurred | E170: Non-Coincident | F170: 2017-02-10
E171: Coincident | F171: 2017-02-08
C172: Half hour time period MD occurred | E172: Non-Coincident | F172: 19:30:00
E173: Coincident | F173: 18:30:00
C174: Winter/Summer Peaking | E174: Non-Coincident | F174: Summer
E175: Coincident | F175: Summer
C176: Adjustments - Embedded generation | D176: MW | E176: Non-Coincident | F176: 0.27325847
E177: Coincident | F177: 0.418263015
C178: Weather Corrected MD 10% POE | D178: MW | E178: Non-Coincident | F178: 4.582677446
E179: Coincident | F179: 4.201076901
C180: Weather Corrected MD 10% POE | D180: MVA | E180: Non-Coincident | F180: 4.585341756
E181: Coincident | F181: 4.209670444
C182: Weather Corrected MD 50% POE | D182: MW | E182: Non-Coincident | F182: 4.134178468
E183: Coincident | F183: 3.78992453
C184: Weather Corrected MD 50% POE | D184: MVA | E184: Non-Coincident | F184: 4.136582027
E185: Coincident | F185: 3.797677038
B186: Bungama Rural | C186: Connection Point Rating | D186: MVA | E186: Non-Coincident | F186: 64
E187: Coincident | F187: 64
C188: Raw Adjusted MD | D188: MW | E188: Non-Coincident | F188: 18.28495971
E189: Coincident | F189: 17.15718548
C190: Raw Adjusted MD | D190: MVA | E190: Non-Coincident | F190: 19.05974169
E191: Coincident | F191: 17.90227585
C192: Date MD occurred | E192: Non-Coincident | F192: 2017-02-08
E193: Coincident | F193: 2017-02-08
C194: Half hour time period MD occurred | E194: Non-Coincident | F194: 20:00:00
E195: Coincident | F195: 18:30:00
C196: Winter/Summer Peaking | E196: Non-Coincident | F196: Summer
E197: Coincident | F197: Summer
C198: Adjustments - Embedded generation | D198: MW | E198: Non-Coincident | F198: 0
E199: Coincident | F199: 1.127660653
C200: Weather Corrected MD 10% POE | D200: MW | E200: Non-Coincident | F200: 12.37649897
E201: Coincident | F201: 11.613145
C202: Weather Corrected MD 10% POE | D202: MVA | E202: Non-Coincident | F202: 12.90092388
... 4229 more rows

Sheet Amendments
B1: NSP data amendments
B2: =INDEX(dms_TradingNameFull_List,MATCH(dms_TradingName,dms_TradingName_List)) -> ElectraNet | C2: Table | D2: Comments
